Workbook

Sheet 1st Advance Payment
A1: STATE OF CALIFORNIA | J1: Purchase Authority | L1: BSCC 5227
A2: BOARD OF STATE AND COMMUNITY CORRECTIONS | J2: Purchase Order: | L2: 2456
A3: Advance Payment Invoice: BSCC 201A (Revised 06/2020)
B6: Program: | C6: ='INVOICE 1'!B5 -> Youth Reinvestment Grant | H6: Grantee: | J6: ='INVOICE 1'!B7 -> Santa Cruz County
B8: Contract #: | C8: ='INVOICE 1'!B9 -> BSCC 591-19 | H8: Address | J8: 701 Ocean St. RM 520
J9: Address Line 1
B10: Term: | C10: ='INVOICE 1'!E9 -> 2019-07-01 | D10: TO | E10: ='INVOICE 1'!G9 -> 2023-02-28 | J10: Santa Cruz, CA 95060
J11: Address Line 2
B13: Advance Payment # | D13: 1 YRG 2019 | G13: Please Note: The California State Controller's Office will send all checks directly to the address listed in the "BSCC Vendor Data" section at the bottom of this invoice.
B15: Effective Invoice # | D15: 1
A18: Advance Payment Invoice
J19: Total Grant Award: | K19: 1000000
J20: Advance Total: | K20: 333333
J21: Grant Award Balance: | K21: =K19-K20 -> 666667
F29: BSCC USE ONLY
B31: Approved By: | C31: Kimberly Bushard | J31: BSCC Supplier Data
C32: BSCC Field Representative | I32: COUNTYOFSA-022
J33: Supplier Name
B34: Date: | C34: 2020-02-04 | I34: 12081
J35: Supplier Number

Sheet INVOICE 1
A1: STATE OF CALIFORNIA | L1: Purchase Authority | N1: BSCC 5227
A2: BOARD OF STATE AND COMMUNITY CORRECTIONS | L2: Purchase Order: | N2: 2456
A3: Financial Invoice Form: BSCC 201 (Revised 04/2020)
A5: Program: | B5: Youth Reinvestment Grant | K5: Please Note: The California State Controller's Office will send all checks directly to the address listed in the "BSCC Vendor Data" section at the bottom of this invoice.
A7: Grantee: | B7: Santa Cruz County | F7: Lead Public Agency: | G7: N/A
A9: Contract #: | B9: BSCC 591-19 | D9: Term: | E9: 2019-07-01 | F9: TO | G9: 2023-02-28 | L9: Invoicing Frequency | M9: Quarterly
A11: Invoice #: | B11: 1 | D11: Reporting Period: | E11: 2019-07-01 | F11: TO | G11: 2019-09-30 | H11: Due: | I11: 2019-11-14 | L11: Final Invoice (Y/N): | M11: No
A13: Line Items | B13: Budget | E13: Prior Expenditures | H13: This Reporting Period | K13: Balance | N13: Advance Disbursements
B14: Grant Funds | C14: Match | D14: TOTAL | E14: Grant Funds | F14: Match | G14: TOTAL | H14: Grant Funds | I14: Match | J14: TOTAL | K14: Grant Funds | L14: Match | M14: TOTAL
A15: Salaries & Benefits | B15: 42000 | C15: 251224 | D15: =SUM(B15:C15) -> 293224 | E15: 0 | F15: 0 | G15: =SUM(E15:F15) -> 0 | H15: 2161 | I15: 8262 | J15: =SUM(H15:I15) -> 10423 | K15: =B15-E15-H15 -> 39839 | L15: =C15-F15-I15 -> 242962 | M15: =SUM(K15:L15) -> 282801 | N15: 1st Advance [10/25/19]
A16: Services & Supplies | B16: 0 | C16: 117 | D16: 117 | E16: 0 | F16: 0 | G16: =SUM(E16:F16) -> 0 | H16: 0 | I16: 0 | J16: 0 | K16: 0 | L16: 117 | M16: 117 | N16: ='1st Advance Payment'!K20 -> 333333
A17: Professional Services | B17: 0 | C17: 0 | D17: 0 | E17: 0 | F17: 0 | G17: =SUM(E17:F17) -> 0 | H17: 0 | I17: 0 | J17: 0 | K17: 0 | L17: 0 | M17: 0
A18: NGO Subcontracts | B18: 900000 | C18: 0 | D18: 900000 | E18: 0 | F18: 0 | G18: 0 | H18: 0 | I18: 0 | J18: 0 | K18: 900000 | L18: 0 | M18: 900000 | N18: 2nd Advance [enter date]
A19: Equipment / Fixed Assets | B19: 0 | C19: 0 | D19: 0 | E19: 0 | F19: 0 | G19: 0 | H19: 0 | I19: 0 | J19: 0 | K19: 0 | L19: 0 | M19: 0 | N19: 0
A20: Data Collection | B20: 24000 | C20: 0 | D20: 24000 | E20: 0 | F20: 0 | G20: 0 | H20: 0 | I20: 0 | J20: 0 | K20: 24000 | L20: 0 | M20: 24000
A21: Project Evaluation | B21: 34000 | C21: 0 | D21: 34000 | E21: 0 | F21: 0 | G21: 0 | H21: 0 | I21: 0 | J21: 0 | K21: 34000 | L21: 0 | M21: 34000 | N21: 3rd Advance [enter date]
A22: Other | B22: 0 | C22: 804 | D22: =SUM(B22:C22) -> 804 | E22: 0 | F22: 0 | G22: 0 | H22: 0 | I22: 0 | J22: 0 | K22: 0 | L22: 804 | M22: 804 | N22: 0
A23: Indirect Costs | B23: 0 | C23: 0 | D23: 0 | E23: 0 | F23: 0 | G23: 0 | H23: 0 | I23: 0 | J23: 0 | K23: 0 | L23: 0 | M23: 0
A24: TOTAL | B24: =SUM(B15:B23) -> 1000000 | C24: =SUM(C15:C23) -> 252145 | D24: =SUM(D15:D23) -> 1252145 | E24: =SUM(E15:E23) -> 0 | F24: 0 | G24: 0 | H24: 2161 | I24: =SUM(I15:I23) -> 8262 | J24: 10423 | K24: 997839 | L24: 243883 | M24: 1241722 | N24: =SUM(N16+N19+N22) -> 333333
A26: Project Income | C26: Income reported to date | D26: =I26 -> 0 | F26: Prior allocated income | G26: 0 | H26: This Period | I26: 0 | L26: Unallocated income balance | M26: =D26-G26 -> 0
A27: 0
C28: Grant funds expended to date: | D28: =SUM(E24,H24) -> 2161 | G28: Grant funds claimed this period: | H28: =H24 -> 2161 | L28: Percentage Grant $$ expended to date: | M28: Percentage Grant $$ expended to date: | N28: =D28/N24 -> 0.006483006483
C29: Match funds to date: | D29: =SUM(F24,I24) -> 8262 | L29: % of Total Obligated Match to date: | M29: % of Total Obligated Match to date: | N29: =D29/C24 -> 0.03276686034
D33: Expenditure Descriptions - Units / $ Amounts | L33: Comments
A34: Salaries & Benefits | B34: Grant Funds | C34: =H15 -> 2161 | D34: .08 FTE Deputy Probation Officer $2,161/ 3 months | L34: See original application for salary/benefit breakdown
B35: Match | C35: =I15 -> 8262 | D35: .10 FTE Assistant Division Director $4,046/ 3 months .12 FTE Deputy Probation Officer $3,242/ 3 months .025 FTE Administrative Services Manager $974/ 3 months | L35: See original application for salary/benefit breakdown
A36: Services & Supplies | B36: Grant Funds | C36: =H16 -> 0
B37: Match | C37: =I16 -> 0
A38: Professional Services | B38: Grant Funds | C38: =H17 -> 0
B39: Match | C39: =I17 -> 0
A40: NGO Subcontracts | B40: Grant Funds | C40: =H18 -> 0
B41: Match | C41: =I18 -> 0
A42: Equipment / Fixed Assets | B42: Grant Funds | C42: =H19 -> 0
B43: Match | C43: =I19 -> 0
A44: Data Collection | B44: Grant Funds | C44: =H20 -> 0
B45: Match | C45: =I20 -> 0
A46: Project Evaluation | B46: Grant Funds | C46: =H21 -> 0
B47: Match | C47: =I21 -> 0
A48: Other | B48: Grant Funds | C48: =H22 -> 0
B49: Match | C49: =I22 -> 0
A50: Indirect Costs | B50: Grant Funds | C50: =H23 -> 0
B51: Match | C51: =I23 -> 0
A52: Project Income | C52: =I26 -> 0
A53: PERSON PREPARING REPORT | E53: AUTHORIZED FINANCIAL OFFICER | L53: BSCC Supplier Data - Internal Use Only
E54: By checking the box below, I hereby certify that I am the authorized financial officer of the herein named agency. I further certify that I have not violated any of the provisions of Section 1090 of the Government Code in incurring the expenditures reported in this invoice, nor in any other way; that Sections 1090 through 1096 of the Government Code will not be violated in any way in the expenditure of funds pursuant to this invoice; that statement of funds above is true, correct, and in accordance with program provisions in all respects; and that all expenditures submitted after the expiration date of this contract are for the purpose of substantiating obligations legally incurred during the contract period. Furthermore, by submitting this invoice, I acknowledge that it must adhere to all of the requirements in the BSCC Grant Administration Guide, including any updates to the Guide during the term of the grant agreement.
A55: Justin Nunes, Accountant III | L55: 12081
A56: Name, Title | L56: Supplier ID
A57: 831-454-3814 | L57: COUNTYOFSA-022
A58: Phone | L58: Supplier Name
A59: justin.nunes@santacruzcounty.us | L59: 701 OCEAN ST RM 520
A60: Email | L60: Address Line 1
A61: 2019-11-15 | L61: SANTA CRUZ CA 95060
A62: Date | L62: Address Line 2
E64: Melissa K. Allen, Administrative Services Manager
E65: Name, Title
E66: (831) 454-3884
E67: Phone
E68: 2019-11-15
E69: Date
A71: BSCC USE ONLY
A72: Date Received: | C72: 2019-11-15 | G72: Approved By: | I72: Kimberly Bushard
I73: BSCC Field Representative

Sheet INVOICE 2
A1: STATE OF CALIFORNIA | L1: Purchase Authority | N1: BSCC 5227
A2: BOARD OF STATE AND COMMUNITY CORRECTIONS | L2: Purchase Order: | N2: 2456
A3: Financial Invoice Form: BSCC 201 (Revised 04/2020)
A5: Program: | B5: ='INVOICE 1'!B5 -> Youth Reinvestment Grant | K5: Please Note: The California State Controller's Office will send all checks directly to the address listed in the "BSCC Vendor Data" section at the bottom of this invoice.
A7: Grantee: | B7: ='INVOICE 1'!B7 -> Santa Cruz County | F7: Lead Public Agency: | G7: N/A
A9: Contract #: | B9: ='INVOICE 1'!B9 -> BSCC 591-19 | D9: Term: | E9: ='INVOICE 1'!E9 -> 2019-07-01 | F9: TO | G9: ='INVOICE 1'!G9 -> 2023-02-28 | L9: Invoicing Frequency | M9: Quarterly
A11: Invoice #: | B11: 2 | D11: Reporting Period: | E11: 2019-10-01 | F11: TO | G11: 2019-12-31 | H11: Due: | I11: 2020-02-14 | L11: Final Invoice (Y/N): | M11: No
A13: Line Items | B13: Budget | E13: Prior Expenditures | H13: This Reporting Period | K13: Balance | N13: Advance Disbursements
B14: Grant Funds | C14: Match | D14: TOTAL | E14: Grant Funds | F14: Match | G14: TOTAL | H14: Grant Funds | I14: Match | J14: TOTAL | K14: Grant Funds | L14: Match | M14: TOTAL
A15: Salaries & Benefits | B15: ='INVOICE 1'!B15 -> 42000 | C15: ='INVOICE 1'!C15 -> 251224 | D15: =SUM(B15:C15) -> 293224 | E15: ='INVOICE 1'!E15+'INVOICE 1'!H15 -> 2161 | F15: ='INVOICE 1'!F15+'INVOICE 1'!I15 -> 8262 | G15: =SUM(E15:F15) -> 10423 | H15: 2214 | I15: 9036 | J15: =SUM(H15:I15) -> 11250 | K15: =B15-E15-H15 -> 37625 | L15: 233926 | M15: =SUM(K15:L15) -> 271551 | N15: 1st Advance [10/25/19]
A16: Services & Supplies | B16: ='INVOICE 1'!B16 -> 0 | C16: ='INVOICE 1'!C16 -> 117 | D16: 117 | E16: ='INVOICE 1'!E16+'INVOICE 1'!H16 -> 0 | F16: ='INVOICE 1'!F16+'INVOICE 1'!I16 -> 0 | G16: =SUM(E16:F16) -> 0 | H16: 0 | I16: 0 | J16: 0 | K16: 0 | L16: 117 | M16: 117 | N16: ='1st Advance Payment'!K20 -> 333333
A17: Professional Services | B17: ='INVOICE 1'!B17 -> 0 | C17: ='INVOICE 1'!C17 -> 0 | D17: 0 | E17: ='INVOICE 1'!E17+'INVOICE 1'!H17 -> 0 | F17: ='INVOICE 1'!F17+'INVOICE 1'!I17 -> 0 | G17: =SUM(E17:F17) -> 0 | H17: 0 | I17: 0 | J17: 0 | K17: 0 | L17: 0 | M17: 0
A18: NGO Subcontracts | B18: ='INVOICE 1'!B18 -> 900000 | C18: ='INVOICE 1'!C18 -> 0 | D18: 900000 | E18: ='INVOICE 1'!E18+'INVOICE 1'!H18 -> 0 | F18: ='INVOICE 1'!F18+'INVOICE 1'!I18 -> 0 | G18: 0 | H18: 0 | I18: 0 | J18: 0 | K18: 900000 | L18: 0 | M18: 900000 | N18: 2nd Advance [enter date]
A19: Equipment / Fixed Assets | B19: ='INVOICE 1'!B19 -> 0 | C19: ='INVOICE 1'!C19 -> 0 | D19: 0 | E19: ='INVOICE 1'!E19+'INVOICE 1'!H19 -> 0 | F19: ='INVOICE 1'!F19+'INVOICE 1'!I19 -> 0 | G19: 0 | H19: 0 | I19: 0 | J19: 0 | K19: 0 | L19: 0 | M19: 0 | N19: 0
A20: Data Collection | B20: ='INVOICE 1'!B20 -> 24000 | C20: ='INVOICE 1'!C20 -> 0 | D20: 24000 | E20: ='INVOICE 1'!E20+'INVOICE 1'!H20 -> 0 | F20: ='INVOICE 1'!F20+'INVOICE 1'!I20 -> 0 | G20: 0 | H20: 0 | I20: 0 | J20: 0 | K20: 24000 | L20: 0 | M20: 24000
A21: Project Evaluation | B21: ='INVOICE 1'!B21 -> 34000 | C21: ='INVOICE 1'!C21 -> 0 | D21: 34000 | E21: ='INVOICE 1'!E21+'INVOICE 1'!H21 -> 0 | F21: ='INVOICE 1'!F21+'INVOICE 1'!I21 -> 0 | G21: 0 | H21: 0 | I21: 0 | J21: 0 | K21: 34000 | L21: 0 | M21: 34000 | N21: 3rd Advance [enter date]
A22: Other | B22: ='INVOICE 1'!B22 -> 0 | C22: ='INVOICE 1'!C22 -> 804 | D22: =SUM(B22:C22) -> 804 | E22: ='INVOICE 1'!E22+'INVOICE 1'!H22 -> 0 | F22: ='INVOICE 1'!F22+'INVOICE 1'!I22 -> 0 | G22: 0 | H22: 0 | I22: 275 | J22: 275 | K22: 0 | L22: 529 | M22: 529 | N22: 0
A23: Indirect Costs | B23: ='INVOICE 1'!B23 -> 0 | C23: ='INVOICE 1'!C23 -> 0 | D23: 0 | E23: ='INVOICE 1'!E23+'INVOICE 1'!H23 -> 0 | F23: ='INVOICE 1'!F23+'INVOICE 1'!I23 -> 0 | G23: 0 | H23: 0 | I23: 0 | J23: 0 | K23: 0 | L23: 0 | M23: 0
A24: TOTAL | B24: =SUM(B15:B23) -> 1000000 | C24: =SUM(C15:C23) -> 252145 | D24: =SUM(D15:D23) -> 1252145 | E24: =SUM(E15:E23) -> 2161 | F24: 8262 | G24: 10423 | H24: 2214 | I24: =SUM(I15:I23) -> 9311 | J24: 11525 | K24: 995625 | L24: 234572 | M24: 1230197 | N24: =SUM(N16+N19+N22) -> 333333
A26: Project Income | C26: Income reported to date | D26: ='INVOICE 1'!D26+'INVOICE 2'!I26 -> 0 | F26: Prior allocated income | G26: 0 | H26: This Period | I26: 0 | L26: Unallocated income balance | M26: =D26-G26 -> 0
C28: Grant funds expended to date: | D28: =SUM(E24,H24) -> 4375 | G28: Grant funds claimed this period: | H28: =H24 -> 2214 | M28: % total dispursed fund expended to date: | N28: =D28/N24 -> 0.01312501313
C29: Match funds to date: | D29: =SUM(F24,I24) -> 17573 | G29: Advance disbursments balance: | H29: =N24-D28 -> 328958 | M29: % of Total Obligated Match to date: | N29: =D29/C24 -> 0.06969402526
D33: Expenditure Descriptions - Units / $ Amounts | L33: Comments
A34: Salaries & Benefits | B34: Grant Funds | C34: =H15 -> 2214 | D34: .08 FTE Deputy Probation Officer $2,214/ 3 months | L34: See original application for salary/benefit breakdown
B35: Match | C35: =I15 -> 9036 | D35: .10 FTE Assistant Division Director $4,572/ 3 months .12 FTE Deputy Probation Officer $3,321/ 3 months .025 FTE Administrative Services Manager $1,143/ 3 months | L35: See original application for salary/benefit breakdown
A36: Services & Supplies | B36: Grant Funds | C36: =H16 -> 0
B37: Match | C37: =I16 -> 0
A38: Professional Services | B38: Grant Funds | C38: =H17 -> 0
B39: Match | C39: =I17 -> 0
A40: NGO Subcontracts | B40: Grant Funds | C40: =H18 -> 0
B41: Match | C41: =I18 -> 0
A42: Equipment / Fixed Assets | B42: Grant Funds | C42: =H19 -> 0
B43: Match | C43: =I19 -> 0
A44: Data Collection | B44: Grant Funds | C44: =H20 -> 0
B45: Match | C45: =I20 -> 0
A46: Project Evaluation | B46: Grant Funds | C46: =H21 -> 0
B47: Match | C47: =I21 -> 0
A48: Other | B48: Grant Funds | C48: =H22 -> 0
B49: Match | C49: =I22 -> 275 | D49: Travel to YRG Grant Orientation in Sacramento: meal per diem 94.00/ Mileage $175.16 (302 miles @ $0.58/mile)/ $6 Bridge Toll | L49: Travel Expenses for ADD to attend orientation
A50: Indirect Costs | B50: Grant Funds | C50: =H23 -> 0
B51: Match | C51: =I23 -> 0
A52: Project Income | C52: =I26 -> 0
A53: PERSON PREPARING REPORT | E53: AUTHORIZED FINANCIAL OFFICER | L53: BSCC Supplier Data - Internal Use Only
E54: By checking the box below, I hereby certify that I am the authorized financial officer of the herein named agency. I further certify that I have not violated any of the provisions of Section 1090 of the Government Code in incurring the expenditures reported in this invoice, nor in any other way; that Sections 1090 through 1096 of the Government Code will not be violated in any way in the expenditure of funds pursuant to this invoice; that statement of funds above is true, correct, and in accordance with program provisions in all respects; and that all expenditures submitted after the expiration date of this contract are for the purpose of substantiating obligations legally incurred during the contract period. Furthermore, by submitting this invoice, I acknowledge that it must adhere to all of the requirements in the BSCC Grant Administration Guide, including any updates to the Guide during the term of the grant agreement.
A55: Justin Nunes, Accountant III | L55: ='INVOICE 1'!L55:O55 -> 12081
A56: Name, Title | L56: Supplier ID
A57: 831-454-3814 | L57: ='INVOICE 1'!L57:O57 -> COUNTYOFSA-022
A58: Phone | L58: Supplier Name
A59: justin.nunes@santacruzcounty.us | L59: ='INVOICE 1'!L59:O59 -> 701 OCEAN ST RM 520
A60: Email | L60: Address Line 1
A61: 2020-02-10 | L61: ='INVOICE 1'!L61:O61 -> SANTA CRUZ CA 95060
A62: Date | L62: Address Line 2
E64: Melissa Allen, Administrative Services Manager
E65: Name, Title
E66: (831) 454-3884
E67: Phone
E68: 2020-02-13
E69: Date
A71: BSCC USE ONLY
A72: Date Received: | C72: 2020-02-13 | G72: Approved By: | I72: Kimberly Bushard
I73: BSCC Field Representative

Sheet INVOICE 3
A1: STATE OF CALIFORNIA | L1: Purchase Authority | N1: BSCC 5227
A2: BOARD OF STATE AND COMMUNITY CORRECTIONS | L2: Purchase Order: | N2: 2456
A3: Financial Invoice Form: BSCC 201 (Revised 04/2020)
A5: Program: | B5: ='INVOICE 1'!B5 -> Youth Reinvestment Grant | K5: Please Note: The California State Controller's Office will send all checks directly to the address listed in the "BSCC Vendor Data" section at the bottom of this invoice.
A7: Grantee: | B7: ='INVOICE 1'!B7 -> Santa Cruz County | F7: Lead Public Agency: | G7: N/A
A9: Contract #: | B9: ='INVOICE 1'!B9 -> BSCC 591-19 | D9: Term: | E9: ='INVOICE 1'!E9 -> 2019-07-01 | F9: TO | G9: ='INVOICE 1'!G9 -> 2023-02-28 | L9: Invoicing Frequency | M9: Quarterly
A11: Invoice #: | B11: 3 | D11: Reporting Period: | E11: 2020-01-01 | F11: TO | G11: 2020-03-31 | H11: Due: | I11: 2020-05-15 | L11: Final Invoice (Y/N): | M11: No
A13: Line Items | B13: Budget | E13: Prior Expenditures | H13: This Reporting Period | K13: Balance | N13: Advance Disbursements
B14: Grant Funds | C14: Match | D14: TOTAL | E14: Grant Funds | F14: Match | G14: TOTAL | H14: Grant Funds | I14: Match | J14: TOTAL | K14: Grant Funds | L14: Match | M14: TOTAL
A15: Salaries & Benefits | B15: ='INVOICE 2'!B15 -> 42000 | C15: ='INVOICE 2'!C15 -> 251224 | D15: =SUM(B15:C15) -> 293224 | E15: ='INVOICE 2'!E15+'INVOICE 2'!H15 -> 4375 | F15: ='INVOICE 2'!F15+'INVOICE 2'!I15 -> 17298 | G15: =SUM(E15:F15) -> 21673 | H15: 1650 | I15: 8731 | J15: =SUM(H15:I15) -> 10381 | K15: =B15-E15-H15 -> 35975 | L15: 225195 | M15: =SUM(K15:L15) -> 261170 | N15: 1st Advance [10/25/19]
A16: Services & Supplies | B16: ='INVOICE 2'!B16 -> 0 | C16: ='INVOICE 2'!C16 -> 117 | D16: 117 | E16: ='INVOICE 2'!E16+'INVOICE 2'!H16 -> 0 | F16: ='INVOICE 2'!F16+'INVOICE 2'!I16 -> 0 | G16: =SUM(E16:F16) -> 0 | H16: 0 | I16: 0 | J16: 0 | K16: 0 | L16: 117 | M16: 117 | N16: ='1st Advance Payment'!K20 -> 333333
A17: Professional Services | B17: ='INVOICE 2'!B17 -> 0 | C17: ='INVOICE 2'!C17 -> 0 | D17: 0 | E17: ='INVOICE 2'!E17+'INVOICE 2'!H17 -> 0 | F17: ='INVOICE 2'!F17+'INVOICE 2'!I17 -> 0 | G17: =SUM(E17:F17) -> 0 | H17: 0 | I17: 0 | J17: 0 | K17: 0 | L17: 0 | M17: 0
A18: NGO Subcontracts | B18: ='INVOICE 2'!B18 -> 900000 | C18: ='INVOICE 2'!C18 -> 0 | D18: 900000 | E18: ='INVOICE 2'!E18+'INVOICE 2'!H18 -> 0 | F18: ='INVOICE 2'!F18+'INVOICE 2'!I18 -> 0 | G18: 0 | H18: 0 | I18: 0 | J18: 0 | K18: 900000 | L18: 0 | M18: 900000 | N18: 2nd Advance [enter date]
A19: Equipment / Fixed Assets | B19: ='INVOICE 2'!B19 -> 0 | C19: ='INVOICE 2'!C19 -> 0 | D19: 0 | E19: ='INVOICE 2'!E19+'INVOICE 2'!H19 -> 0 | F19: ='INVOICE 2'!F19+'INVOICE 2'!I19 -> 0 | G19: 0 | H19: 0 | I19: 0 | J19: 0 | K19: 0 | L19: 0 | M19: 0 | N19: 0
A20: Data Collection | B20: ='INVOICE 2'!B20 -> 24000 | C20: ='INVOICE 2'!C20 -> 0 | D20: 24000 | E20: ='INVOICE 2'!E20+'INVOICE 2'!H20 -> 0 | F20: ='INVOICE 2'!F20+'INVOICE 2'!I20 -> 0 | G20: 0 | H20: 0 | I20: 0 | J20: 0 | K20: 24000 | L20: 0 | M20: 24000
A21: Project Evaluation | B21: ='INVOICE 2'!B21 -> 34000 | C21: ='INVOICE 2'!C21 -> 0 | D21: 34000 | E21: ='INVOICE 2'!E21+'INVOICE 2'!H21 -> 0 | F21: ='INVOICE 2'!F21+'INVOICE 2'!I21 -> 0 | G21: 0 | H21: 0 | I21: 0 | J21: 0 | K21: 34000 | L21: 0 | M21: 34000 | N21: 3rd Advance [enter date]
A22: Other | B22: ='INVOICE 2'!B22 -> 0 | C22: ='INVOICE 2'!C22 -> 804 | D22: =SUM(B22:C22) -> 804 | E22: ='INVOICE 2'!E22+'INVOICE 2'!H22 -> 0 | F22: ='INVOICE 2'!F22+'INVOICE 2'!I22 -> 275 | G22: 275 | H22: 0 | I22: 0 | J22: 0 | K22: 0 | L22: 529 | M22: 529 | N22: 0
A23: Indirect Costs | B23: ='INVOICE 2'!B23 -> 0 | C23: ='INVOICE 2'!C23 -> 0 | D23: 0 | E23: ='INVOICE 2'!E23+'INVOICE 2'!H23 -> 0 | F23: ='INVOICE 2'!F23+'INVOICE 2'!I23 -> 0 | G23: 0 | H23: 0 | I23: 0 | J23: 0 | K23: 0 | L23: 0 | M23: 0
A24: TOTAL | B24: =SUM(B15:B23) -> 1000000 | C24: =SUM(C15:C23) -> 252145 | D24: =SUM(D15:D23) -> 1252145 | E24: =SUM(E15:E23) -> 4375 | F24: 17573 | G24: 21948 | H24: 1650 | I24: =SUM(I15:I23) -> 8731 | J24: 10381 | K24: 993975 | L24: 225841 | M24: 1219816 | N24: =SUM(N16+N19+N22) -> 333333
A26: Project Income | C26: Income reported to date | D26: ='INVOICE 1'!D26+'INVOICE 3'!I26 -> 0 | F26: Prior allocated income | G26: 0 | H26: This Period | I26: 0 | L26: Unallocated income balance | M26: =D26-G26 -> 0
C28: Grant funds expended to date: | D28: =SUM(E24,H24) -> 6025 | G28: Grant funds claimed this period: | H28: =H24 -> 1650 | M28: % total dispursed fund expended to date: | N28: =D28/N24 -> 0.01807501808
C29: Match funds to date: | D29: =SUM(F24,I24) -> 26304 | G29: Advance disbursments balance: | H29: =N24-D28 -> 327308 | M29: % of Total Obligated Match to date: | N29: =D29/C24 -> 0.1043209265
D33: Expenditure Descriptions - Units / $ Amounts | L33: Comments
A34: Salaries & Benefits | B34: Grant Funds | C34: =H15 -> 1650 | D34: .08 FTE Deputy Probation Officer/2 months (12/14/19-2/21/20)/ $1,650 | L34: See original application for salary/benefit breakdown
B35: Match | C35: =I15 -> 8731 | D35: .10 FTE Division Director/3 months (12/14/19-3/20/20)/$5,001 .12 FTE Deputy Probation Officer/2 months (12/14/19-2/21/20)/ $2,476 .025 FTE Administrative Services Manager/3 months (12/14/19-3/20/20)/$1,172 & <.01 FTE CAO Senior Admin Analyst/3 months (12/14/19-3/20/20)/ $82 | L35: See original application for salary/benefit breakdown
A36: Services & Supplies | B36: Grant Funds | C36: =H16 -> 0
B37: Match | C37: =I16 -> 0
A38: Professional Services | B38: Grant Funds | C38: =H17 -> 0
B39: Match | C39: =I17 -> 0
A40: NGO Subcontracts | B40: Grant Funds | C40: =H18 -> 0
B41: Match | C41: =I18 -> 0
A42: Equipment / Fixed Assets | B42: Grant Funds | C42: =H19 -> 0
B43: Match | C43: =I19 -> 0
A44: Data Collection | B44: Grant Funds | C44: =H20 -> 0
B45: Match | C45: =I20 -> 0
A46: Project Evaluation | B46: Grant Funds | C46: =H21 -> 0
B47: Match | C47: =I21 -> 0
A48: Other | B48: Grant Funds | C48: =H22 -> 0
B49: Match | C49: =I22 -> 0
A50: Indirect Costs | B50: Grant Funds | C50: =H23 -> 0
B51: Match | C51: =I23 -> 0
A52: Project Income | C52: =I26 -> 0
A53: PERSON PREPARING REPORT | E53: AUTHORIZED FINANCIAL OFFICER | L53: BSCC Supplier Data - Internal Use Only
E54: By checking the box below, I hereby certify that I am the authorized financial officer of the herein named agency. I further certify that I have not violated any of the provisions of Section 1090 of the Government Code in incurring the expenditures reported in this invoice, nor in any other way; that Sections 1090 through 1096 of the Government Code will not be violated in any way in the expenditure of funds pursuant to this invoice; that statement of funds above is true, correct, and in accordance with program provisions in all respects; and that all expenditures submitted after the expiration date of this contract are for the purpose of substantiating obligations legally incurred during the contract period. Furthermore, by submitting this invoice, I acknowledge that it must adhere to all of the requirements in the BSCC Grant Administration Guide, including any updates to the Guide during the term of the grant agreement.
A55: Justin Nunes, Administrative Services Officer I | L55: ='INVOICE 1'!L55:O55 -> 12081
A56: Name, Title | L56: Supplier ID
A57: 831-454-3814 | L57: ='INVOICE 1'!L57:O57 -> COUNTYOFSA-022
A58: Phone | L58: Supplier Name
A59: justin.nunes@santacruzcounty.us | L59: ='INVOICE 1'!L59:O59 -> 701 OCEAN ST RM 520
A60: Email | L60: Address Line 1
A61: 2020-05-15 | L61: ='INVOICE 1'!L61:O61 -> SANTA CRUZ CA 95060
A62: Date | L62: Address Line 2
E64: Melissa Allen, Administrative Services Manager
E65: Name, Title
E66: 831-3884
E67: Phone
E68: 2020-05-15
E69: Date
A71: BSCC USE ONLY
A72: Date Received: | C72: 2021-05-15 | G72: Approved By: | I72: Eddie Escobar
I73: BSCC Field Representative

Sheet INVOICE 4
A1: STATE OF CALIFORNIA | L1: Purchase Authority | N1: BSCC 5227
A2: BOARD OF STATE AND COMMUNITY CORRECTIONS | L2: Purchase Order: | N2: 2456
A3: Financial Invoice Form: BSCC 201 (Revised 04/2020)
A5: Program: | B5: ='INVOICE 1'!B5 -> Youth Reinvestment Grant | K5: Please Note: The California State Controller's Office will send all checks directly to the address listed in the "BSCC Vendor Data" section at the bottom of this invoice.
A7: Grantee: | B7: ='INVOICE 1'!B7 -> Santa Cruz County | F7: Lead Public Agency: | G7: N/A
A9: Contract #: | B9: ='INVOICE 1'!B9 -> BSCC 591-19 | D9: Term: | E9: ='INVOICE 1'!E9 -> 2019-07-01 | F9: TO | G9: ='INVOICE 1'!G9 -> 2023-02-28 | L9: Invoicing Frequency | M9: Quarterly
A11: Invoice #: | B11: 4 | D11: Reporting Period: | E11: 2020-04-01 | F11: TO | G11: 2020-06-30 | H11: Due: | I11: 2020-08-14 | L11: Final Invoice (Y/N): | M11: No
A13: Line Items | B13: Budget | E13: Prior Expenditures | H13: This Reporting Period | K13: Balance | N13: Advance Disbursements
B14: Grant Funds | C14: Match | D14: TOTAL | E14: Grant Funds | F14: Match | G14: TOTAL | H14: Grant Funds | I14: Match | J14: TOTAL | K14: Grant Funds | L14: Match | M14: TOTAL
A15: Salaries & Benefits | B15: ='INVOICE 3'!B15 -> 42000 | C15: ='INVOICE 3'!C15 -> 251224 | D15: =SUM(B15:C15) -> 293224 | E15: ='INVOICE 3'!E15+'INVOICE 3'!H15 -> 6025 | F15: ='INVOICE 3'!F15+'INVOICE 3'!I15 -> 26029 | G15: =SUM(E15:F15) -> 32054 | H15: 3175 | I15: 6787 | J15: =SUM(H15:I15) -> 9962 | K15: =B15-E15-H15 -> 32800 | L15: 218408 | M15: =SUM(K15:L15) -> 251208 | N15: 1st Advance [10/25/19]
A16: Services & Supplies | B16: ='INVOICE 3'!B16 -> 0 | C16: ='INVOICE 3'!C16 -> 117 | D16: 117 | E16: ='INVOICE 3'!E16+'INVOICE 3'!H16 -> 0 | F16: ='INVOICE 3'!F16+'INVOICE 3'!I16 -> 0 | G16: =SUM(E16:F16) -> 0 | H16: 0 | I16: 0 | J16: 0 | K16: 0 | L16: 117 | M16: 117 | N16: ='1st Advance Payment'!K20 -> 333333
A17: Professional Services | B17: ='INVOICE 3'!B17 -> 0 | C17: ='INVOICE 3'!C17 -> 0 | D17: 0 | E17: ='INVOICE 3'!E17+'INVOICE 3'!H17 -> 0 | F17: ='INVOICE 3'!F17+'INVOICE 3'!I17 -> 0 | G17: =SUM(E17:F17) -> 0 | H17: 0 | I17: 0 | J17: 0 | K17: 0 | L17: 0 | M17: 0
A18: NGO Subcontracts | B18: ='INVOICE 3'!B18 -> 900000 | C18: ='INVOICE 3'!C18 -> 0 | D18: 900000 | E18: ='INVOICE 3'!E18+'INVOICE 3'!H18 -> 0 | F18: ='INVOICE 3'!F18+'INVOICE 3'!I18 -> 0 | G18: 0 | H18: 108699 | I18: 0 | J18: 108699 | K18: 791301 | L18: 0 | M18: 791301 | N18: 2nd Advance [enter date]
A19: Equipment / Fixed Assets | B19: ='INVOICE 3'!B19 -> 0 | C19: ='INVOICE 3'!C19 -> 0 | D19: 0 | E19: ='INVOICE 3'!E19+'INVOICE 3'!H19 -> 0 | F19: ='INVOICE 3'!F19+'INVOICE 3'!I19 -> 0 | G19: 0 | H19: 0 | I19: 0 | J19: 0 | K19: 0 | L19: 0 | M19: 0 | N19: 0
A20: Data Collection | B20: ='INVOICE 3'!B20 -> 24000 | C20: ='INVOICE 3'!C20 -> 0 | D20: 24000 | E20: ='INVOICE 3'!E20+'INVOICE 3'!H20 -> 0 | F20: ='INVOICE 3'!F20+'INVOICE 3'!I20 -> 0 | G20: 0 | H20: 0 | I20: 0 | J20: 0 | K20: 24000 | L20: 0 | M20: 24000
A21: Project Evaluation | B21: ='INVOICE 3'!B21 -> 34000 | C21: ='INVOICE 3'!C21 -> 0 | D21: 34000 | E21: ='INVOICE 3'!E21+'INVOICE 3'!H21 -> 0 | F21: ='INVOICE 3'!F21+'INVOICE 3'!I21 -> 0 | G21: 0 | H21: 0 | I21: 0 | J21: 0 | K21: 34000 | L21: 0 | M21: 34000 | N21: 3rd Advance [enter date]
A22: Other | B22: ='INVOICE 3'!B22 -> 0 | C22: ='INVOICE 3'!C22 -> 804 | D22: =SUM(B22:C22) -> 804 | E22: ='INVOICE 3'!E22+'INVOICE 3'!H22 -> 0 | F22: ='INVOICE 3'!F22+'INVOICE 3'!I22 -> 275 | G22: 275 | H22: 0 | I22: 0 | J22: 0 | K22: 0 | L22: 529 | M22: 529 | N22: 0
A23: Indirect Costs | B23: ='INVOICE 3'!B23 -> 0 | C23: ='INVOICE 3'!C23 -> 0 | D23: 0 | E23: ='INVOICE 3'!E23+'INVOICE 3'!H23 -> 0 | F23: ='INVOICE 3'!F23+'INVOICE 3'!I23 -> 0 | G23: 0 | I23: 0 | J23: 0 | K23: 0 | L23: 0 | M23: 0
A24: TOTAL | B24: =SUM(B15:B23) -> 1000000 | C24: =SUM(C15:C23) -> 252145 | D24: =SUM(D15:D23) -> 1252145 | E24: =SUM(E15:E23) -> 6025 | F24: 26304 | G24: 32329 | H24: 111874 | I24: =SUM(I15:I23) -> 6787 | J24: 118661 | K24: 882101 | L24: 219054 | M24: 1101155 | N24: =SUM(N16+N19+N22) -> 333333
A26: Project Income | C26: Income reported to date | D26: ='INVOICE 1'!D26+'INVOICE 4'!I26 -> 0 | F26: Prior allocated income | G26: 0 | H26: This Period | I26: 0 | L26: Unallocated income balance | M26: =D26-G26 -> 0
C28: Grant funds expended to date: | D28: =SUM(E24,H24) -> 117899 | G28: Grant funds claimed this period: | H28: =H24 -> 111874 | M28: % total dispursed fund expended to date: | N28: =D28/N24 -> 0.3536973537
C29: Match funds to date: | D29: =SUM(F24,I24) -> 33091 | G29: Advance disbursments balance: | H29: =N24-D28 -> 215434 | M29: % of Total Obligated Match to date: | N29: =D29/C24 -> 0.1312379781
D33: Expenditure Descriptions - Units / $ Amounts | L33: Comments
A34: Salaries & Benefits | B34: Grant Funds | C34: =H15 -> 3175 | D34: .08 FTE Deputy Probation Officer/3 months (2/22/20-6/30/20)/ $3,175 | L34: See Salaries & Benefits Worksheet in supporting docs for desk review
B35: Match | C35: =I15 -> 6787 | D35: .08 FTE Division Director/3 months (2/22/20-6/30/20)/$4,396 .03 FTE Deputy Probation Officer/3 months (2/22/20-6/30/20)/ $1,174 .025 FTE Administrative Services Manager/3 months (2/22/20-6/30/20)/$1,217 | L35: See Salaries & Benefits Worksheet in supporting docs for desk review
A36: Services & Supplies | B36: Grant Funds | C36: =H16 -> 0
B37: Match | C37: =I16 -> 0
A38: Professional Services | B38: Grant Funds | C38: =H17 -> 0
B39: Match | C39: =I17 -> 0
A40: NGO Subcontracts | B40: Grant Funds | C40: =H18 -> 108699 | D40: NGO PVPSA 9 months of contracted services (July 2019 thru March 2020): Program Coordinator at $28,144; Case Manager 1 at $23,135; Case Manager 2 at $11,766; Mental Health Clinician at $33,738; Mileage $758; Facilities $471; Indirect $10,687; $108,699 subtotal for NGO PVPSA | L40: See NGO Subcontracts - Docs 1 thru 10 in supporting docs for desk review
B41: Match | C41: =I18 -> 0
A42: Equipment / Fixed Assets | B42: Grant Funds | C42: =H19 -> 0
B43: Match | C43: =I19 -> 0
A44: Data Collection | B44: Grant Funds | C44: =H20 -> 0
B45: Match | C45: =I20 -> 0
A46: Project Evaluation | B46: Grant Funds | C46: =H21 -> 0
B47: Match | C47: =I21 -> 0
A48: Other | B48: Grant Funds | C48: =H22 -> 0
B49: Match | C49: =I22 -> 0
A50: Indirect Costs | B50: Grant Funds | C50: =H23 -> 0
B51: Match | C51: =I23 -> 0
A52: Project Income | C52: =I26 -> 0
A53: PERSON PREPARING REPORT | E53: AUTHORIZED FINANCIAL OFFICER | L53: BSCC Supplier Data - Internal Use Only
E54: By checking the box below, I hereby certify that I am the authorized financial officer of the herein named agency. I further certify that I have not violated any of the provisions of Section 1090 of the Government Code in incurring the expenditures reported in this invoice, nor in any other way; that Sections 1090 through 1096 of the Government Code will not be violated in any way in the expenditure of funds pursuant to this invoice; that statement of funds above is true, correct, and in accordance with program provisions in all respects; and that all expenditures submitted after the expiration date of this contract are for the purpose of substantiating obligations legally incurred during the contract period. Furthermore, by submitting this invoice, I acknowledge that it must adhere to all of the requirements in the BSCC Grant Administration Guide, including any updates to the Guide during the term of the grant agreement.
A55: Justin Nunes, Adminstrative Services Officer I | L55: ='INVOICE 1'!L55:O55 -> 12081
A56: Name, Title | L56: Supplier ID
A57: 831-454-3814 | L57: ='INVOICE 1'!L57:O57 -> COUNTYOFSA-022
A58: Phone | L58: Supplier Name
A59: justin.nunes@santacruzcounty.us | L59: ='INVOICE 1'!L59:O59 -> 701 OCEAN ST RM 520
A60: Email | L60: Address Line 1
A61: 2020-08-14 | L61: ='INVOICE 1'!L61:O61 -> SANTA CRUZ CA 95060
A62: Date | L62: Address Line 2
E64: Melissa K. Allen, Administrative Services Manager
E65: Name, Title
E66: (831) 454-3884
E67: Phone
E68: 2020-08-14
E69: Date
A71: BSCC USE ONLY
A72: Date Received: | C72: 2020-08-14 | G72: Approved By: | I72: Eddie Escobar
I73: BSCC Field Representative

Sheet INVOICE 5
A1: STATE OF CALIFORNIA | L1: Purchase Authority | N1: BSCC 5227
A2: BOARD OF STATE AND COMMUNITY CORRECTIONS | L2: Purchase Order: | N2: 2456
A3: Financial Invoice Form: BSCC 201 (Revised 04/2020)
A5: Program: | B5: ='INVOICE 1'!B5 -> Youth Reinvestment Grant | K5: Please Note: The California State Controller's Office will send all checks directly to the address listed in the "BSCC Vendor Data" section at the bottom of this invoice.
A7: Grantee: | B7: ='INVOICE 1'!B7 -> Santa Cruz County | F7: Lead Public Agency: | G7: N/A
A9: Contract #: | B9: ='INVOICE 1'!B9 -> BSCC 591-19 | D9: Term: | E9: ='INVOICE 1'!E9 -> 2019-07-01 | F9: TO | G9: ='INVOICE 1'!G9 -> 2023-02-28 | L9: Invoicing Frequency | M9: Quarterly
A11: Invoice #: | B11: 5 | D11: Reporting Period: | E11: 2020-07-01 | F11: TO | G11: 2020-09-30 | H11: Due: | I11: 2020-11-16 | L11: Final Invoice (Y/N): | M11: No
A13: Line Items | B13: Budget | E13: Prior Expenditures | H13: This Reporting Period | K13: Balance | N13: Advance Disbursements
B14: Grant Funds | C14: Match | D14: TOTAL | E14: Grant Funds | F14: Match | G14: TOTAL | H14: Grant Funds | I14: Match | J14: TOTAL | K14: Grant Funds | L14: Match | M14: TOTAL
A15: Salaries & Benefits | B15: ='INVOICE 4'!B15 -> 42000 | C15: ='INVOICE 4'!C15 -> 251224 | D15: =SUM(B15:C15) -> 293224 | E15: ='INVOICE 4'!E15+'INVOICE 4'!H15 -> 9200 | F15: ='INVOICE 4'!F15+'INVOICE 4'!I15 -> 32816 | G15: =SUM(E15:F15) -> 42016 | H15: 1834 | I15: 7716 | J15: =SUM(H15:I15) -> 9550 | K15: =B15-E15-H15 -> 30966 | L15: 210692 | M15: =SUM(K15:L15) -> 241658 | N15: 1st Advance [10/25/19]
A16: Services & Supplies | B16: ='INVOICE 4'!B16 -> 0 | C16: ='INVOICE 4'!C16 -> 117 | D16: 117 | E16: ='INVOICE 4'!E16+'INVOICE 4'!H16 -> 0 | F16: ='INVOICE 4'!F16+'INVOICE 4'!I16 -> 0 | G16: =SUM(E16:F16) -> 0 | H16: 0 | I16: 0 | J16: 0 | K16: 0 | L16: 117 | M16: 117 | N16: ='1st Advance Payment'!K20 -> 333333
A17: Professional Services | B17: ='INVOICE 4'!B17 -> 0 | C17: ='INVOICE 4'!C17 -> 0 | D17: 0 | E17: ='INVOICE 4'!E17+'INVOICE 4'!H17 -> 0 | F17: ='INVOICE 4'!F17+'INVOICE 4'!I17 -> 0 | G17: =SUM(E17:F17) -> 0 | H17: 0 | I17: 0 | J17: 0 | K17: 0 | L17: 0 | M17: 0
A18: NGO Subcontracts | B18: ='INVOICE 4'!B18 -> 900000 | C18: ='INVOICE 4'!C18 -> 0 | D18: 900000 | E18: ='INVOICE 4'!E18+'INVOICE 4'!H18 -> 108699 | F18: ='INVOICE 4'!F18+'INVOICE 4'!I18 -> 0 | G18: 108699 | H18: 43095 | I18: 0 | J18: 43095 | K18: 748206 | L18: 0 | M18: 748206 | N18: 2nd Advance [enter date]
A19: Equipment / Fixed Assets | B19: ='INVOICE 4'!B19 -> 0 | C19: ='INVOICE 4'!C19 -> 0 | D19: 0 | E19: ='INVOICE 4'!E19+'INVOICE 4'!H19 -> 0 | F19: ='INVOICE 4'!F19+'INVOICE 4'!I19 -> 0 | G19: 0 | H19: 0 | I19: 0 | J19: 0 | K19: 0 | L19: 0 | M19: 0 | N19: 0
A20: Data Collection | B20: ='INVOICE 4'!B20 -> 24000 | C20: ='INVOICE 4'!C20 -> 0 | D20: 24000 | E20: ='INVOICE 4'!E20+'INVOICE 4'!H20 -> 0 | F20: ='INVOICE 4'!F20+'INVOICE 4'!I20 -> 0 | G20: 0 | H20: 0 | I20: 0 | J20: 0 | K20: 24000 | L20: 0 | M20: 24000
A21: Project Evaluation | B21: ='INVOICE 4'!B21 -> 34000 | C21: ='INVOICE 4'!C21 -> 0 | D21: 34000 | E21: ='INVOICE 4'!E21+'INVOICE 4'!H21 -> 0 | F21: ='INVOICE 4'!F21+'INVOICE 4'!I21 -> 0 | G21: 0 | H21: 0 | I21: 0 | J21: 0 | K21: 34000 | L21: 0 | M21: 34000 | N21: 3rd Advance [enter date]
A22: Other | B22: ='INVOICE 4'!B22 -> 0 | C22: ='INVOICE 4'!C22 -> 804 | D22: =SUM(B22:C22) -> 804 | E22: ='INVOICE 4'!E22+'INVOICE 4'!H22 -> 0 | F22: ='INVOICE 4'!F22+'INVOICE 4'!I22 -> 275 | G22: 275 | H22: 0 | I22: 0 | J22: 0 | K22: 0 | L22: 529 | M22: 529 | N22: 0
A23: Indirect Costs | B23: ='INVOICE 4'!B23 -> 0 | C23: ='INVOICE 4'!C23 -> 0 | D23: 0 | E23: ='INVOICE 4'!E23+'INVOICE 4'!H23 -> 0 | F23: ='INVOICE 4'!F23+'INVOICE 4'!I23 -> 0 | G23: 0 | H23: 0 | I23: 0 | J23: 0 | K23: 0 | L23: 0 | M23: 0
A24: TOTAL | B24: =SUM(B15:B23) -> 1000000 | C24: =SUM(C15:C23) -> 252145 | D24: =SUM(D15:D23) -> 1252145 | E24: =SUM(E15:E23) -> 117899 | F24: 33091 | G24: 150990 | H24: 44929 | I24: =SUM(I15:I23) -> 7716 | J24: 52645 | K24: 837172 | L24: 211338 | M24: 1048510 | N24: =SUM(N16+N19+N22) -> 333333
A26: Project Income | C26: Income reported to date | D26: ='INVOICE 1'!D26+'INVOICE 5'!I26 -> 0 | F26: Prior allocated income | G26: 0 | H26: This Period | I26: 0 | L26: Unallocated income balance | M26: =D26-G26 -> 0
C28: Grant funds expended to date: | D28: =SUM(E24,H24) -> 162828 | G28: Grant funds claimed this period: | H28: =H24 -> 44929 | M28: % total dispursed fund expended to date: | N28: =D28/N24 -> 0.4884844885
C29: Match funds to date: | D29: =SUM(F24,I24) -> 40807 | G29: Advance disbursments balance: | H29: =N24-D28 -> 170505 | M29: % of Total Obligated Match to date: | N29: =D29/C24 -> 0.1618394178
D33: Expenditure Descriptions - Units / $ Amounts | L33: Comments
A34: Salaries & Benefits | B34: Grant Funds | C34: =H15 -> 1834 | D34: .08 FTE Deputy Probation Officer 3 months (7/1/20-9/18/20)/ $1,834
B35: Match | C35: =I15 -> 7716 | D35: .10 FTE Division Director/ 3 months (7/1/20-9/18/20)/$3,979 ; .12 FTE Deputy Probation Officer 3 months (7/1/20-9/18/20)/$2,761 ; .025 FTE Administrative Services Manager/ 3 months (7/1/20-9/18/20)/ $976
A36: Services & Supplies | B36: Grant Funds | C36: =H16 -> 0
B37: Match | C37: =I16 -> 0
A38: Professional Services | B38: Grant Funds | C38: =H17 -> 0
B39: Match | C39: =I17 -> 0
A40: NGO Subcontracts | B40: Grant Funds | C40: =H18 -> 43095 | D40: NGO Pajaro Valley Prevention and Student Assistance, Inc./ 3 months of contracted services for Project CRYJ (April thru June 2020)
B41: Match | C41: =I18 -> 0
A42: Equipment / Fixed Assets | B42: Grant Funds | C42: =H19 -> 0
B43: Match | C43: =I19 -> 0
A44: Data Collection | B44: Grant Funds | C44: =H20 -> 0
B45: Match | C45: =I20 -> 0
A46: Project Evaluation | B46: Grant Funds | C46: =H21 -> 0
B47: Match | C47: =I21 -> 0
A48: Other | B48: Grant Funds | C48: =H22 -> 0
B49: Match | C49: =I22 -> 0
A50: Indirect Costs | B50: Grant Funds | C50: =H23 -> 0
B51: Match | C51: =I23 -> 0
A52: Project Income | C52: =I26 -> 0
A53: PERSON PREPARING REPORT | E53: AUTHORIZED FINANCIAL OFFICER | L53: BSCC Supplier Data - Internal Use Only
E54: By checking the box below, I hereby certify that I am the authorized financial officer of the herein named agency. I further certify that I have not violated any of the provisions of Section 1090 of the Government Code in incurring the expenditures reported in this invoice, nor in any other way; that Sections 1090 through 1096 of the Government Code will not be violated in any way in the expenditure of funds pursuant to this invoice; that statement of funds above is true, correct, and in accordance with program provisions in all respects; and that all expenditures submitted after the expiration date of this contract are for the purpose of substantiating obligations legally incurred during the contract period. Furthermore, by submitting this invoice, I acknowledge that it must adhere to all of the requirements in the BSCC Grant Administration Guide, including any updates to the Guide during the term of the grant agreement.
A55: Justin Nunes, Administrative Services Officer | L55: ='INVOICE 1'!L55:O55 -> 12081
A56: Name, Title | L56: Supplier ID
A57: 831-454-3814 | L57: ='INVOICE 1'!L57:O57 -> COUNTYOFSA-022
A58: Phone | L58: Supplier Name
A59: justin.nunes@santacruzcounty.us | L59: ='INVOICE 1'!L59:O59 -> 701 OCEAN ST RM 520
A60: Email | L60: Address Line 1
A61: 2020-11-16 | L61: ='INVOICE 1'!L61:O61 -> SANTA CRUZ CA 95060
A62: Date | L62: Address Line 2
E64: Melissa K. Allen, Administrative Services Manager
E65: Name, Title
E66: 831-454-3884
E67: Phone
E68: 2020-11-16
E69: Date
A71: BSCC USE ONLY
A72: Date Received: | C72: 2020-11-16 | G72: Approved By: | I72: Eddie Escobar
I73: BSCC Field Representative

Sheet INVOICE 6
A1: STATE OF CALIFORNIA | L1: Purchase Authority | N1: BSCC 5227
A2: BOARD OF STATE AND COMMUNITY CORRECTIONS | L2: Purchase Order: | N2: 2456
A3: Financial Invoice Form: BSCC 201 (Revised 04/2020)
A5: Program: | B5: ='INVOICE 1'!B5 -> Youth Reinvestment Grant | K5: Please Note: The California State Controller's Office will send all checks directly to the address listed in the "BSCC Vendor Data" section at the bottom of this invoice.
A7: Grantee: | B7: ='INVOICE 1'!B7 -> Santa Cruz County | F7: Lead Public Agency: | G7: N/A
A9: Contract #: | B9: ='INVOICE 1'!B9 -> BSCC 591-19 | D9: Term: | E9: ='INVOICE 1'!E9 -> 2019-07-01 | F9: TO | G9: ='INVOICE 1'!G9 -> 2023-02-28 | L9: Invoicing Frequency | M9: Quarterly
A11: Invoice #: | B11: 6 | D11: Reporting Period: | E11: 2020-10-01 | F11: TO | G11: 2020-12-31 | H11: Due: | I11: 2021-02-15 | L11: Final Invoice (Y/N): | M11: No
A13: Line Items | B13: Budget | E13: Prior Expenditures | H13: This Reporting Period | K13: Balance | N13: Advance Disbursements
B14: Grant Funds | C14: Match | D14: TOTAL | E14: Grant Funds | F14: Match | G14: TOTAL | H14: Grant Funds | I14: Match | J14: TOTAL | K14: Grant Funds | L14: Match | M14: TOTAL
A15: Salaries & Benefits | B15: ='INVOICE 5'!B15 -> 42000 | C15: ='INVOICE 5'!C15 -> 251224 | D15: =SUM(B15:C15) -> 293224 | E15: ='INVOICE 5'!E15+'INVOICE 5'!H15 -> 11034 | F15: ='INVOICE 5'!F15+'INVOICE 5'!I15 -> 40532 | G15: =SUM(E15:F15) -> 51566 | H15: 2054 | I15: 8647 | J15: =SUM(H15:I15) -> 10701 | K15: =B15-E15-H15 -> 28912 | L15: 202045 | M15: =SUM(K15:L15) -> 230957 | N15: 1st Advance [10/25/19]
A16: Services & Supplies | B16: ='INVOICE 5'!B16 -> 0 | C16: ='INVOICE 5'!C16 -> 117 | D16: 117 | E16: ='INVOICE 5'!E16+'INVOICE 5'!H16 -> 0 | F16: ='INVOICE 5'!F16+'INVOICE 5'!I16 -> 0 | G16: =SUM(E16:F16) -> 0 | H16: 0 | I16: 0 | J16: 0 | K16: 0 | L16: 117 | M16: 117 | N16: ='1st Advance Payment'!K20 -> 333333
A17: Professional Services | B17: ='INVOICE 5'!B17 -> 0 | C17: ='INVOICE 5'!C17 -> 0 | D17: 0 | E17: ='INVOICE 5'!E17+'INVOICE 5'!H17 -> 0 | F17: ='INVOICE 5'!F17+'INVOICE 5'!I17 -> 0 | G17: =SUM(E17:F17) -> 0 | H17: 0 | I17: 0 | J17: 0 | K17: 0 | L17: 0 | M17: 0
A18: NGO Subcontracts | B18: ='INVOICE 5'!B18 -> 900000 | C18: ='INVOICE 5'!C18 -> 0 | D18: 900000 | E18: ='INVOICE 5'!E18+'INVOICE 5'!H18 -> 151794 | F18: ='INVOICE 5'!F18+'INVOICE 5'!I18 -> 0 | G18: 151794 | H18: 85203 | I18: 0 | J18: 85203 | K18: 663003 | L18: 0 | M18: 663003 | N18: 2nd Advance [enter date]
A19: Equipment / Fixed Assets | B19: ='INVOICE 5'!B19 -> 0 | C19: ='INVOICE 5'!C19 -> 0 | D19: 0 | E19: ='INVOICE 5'!E19+'INVOICE 5'!H19 -> 0 | F19: ='INVOICE 5'!F19+'INVOICE 5'!I19 -> 0 | G19: 0 | H19: 0 | I19: 0 | J19: 0 | K19: 0 | L19: 0 | M19: 0 | N19: 0
A20: Data Collection | B20: ='INVOICE 5'!B20 -> 24000 | C20: ='INVOICE 5'!C20 -> 0 | D20: 24000 | E20: ='INVOICE 5'!E20+'INVOICE 5'!H20 -> 0 | F20: ='INVOICE 5'!F20+'INVOICE 5'!I20 -> 0 | G20: 0 | H20: 10000 | I20: 0 | J20: 10000 | K20: 14000 | L20: 0 | M20: 14000
A21: Project Evaluation | B21: ='INVOICE 5'!B21 -> 34000 | C21: ='INVOICE 5'!C21 -> 0 | D21: 34000 | E21: ='INVOICE 5'!E21+'INVOICE 5'!H21 -> 0 | F21: ='INVOICE 5'!F21+'INVOICE 5'!I21 -> 0 | G21: 0 | H21: 10000 | I21: 0 | J21: 10000 | K21: 24000 | L21: 0 | M21: 24000 | N21: 3rd Advance [enter date]
A22: Other | B22: ='INVOICE 5'!B22 -> 0 | C22: ='INVOICE 5'!C22 -> 804 | D22: =SUM(B22:C22) -> 804 | E22: ='INVOICE 5'!E22+'INVOICE 5'!H22 -> 0 | F22: ='INVOICE 5'!F22+'INVOICE 5'!I22 -> 275 | G22: 275 | H22: 0 | I22: 0 | J22: 0 | K22: 0 | L22: 529 | M22: 529 | N22: 0
A23: Indirect Costs | B23: ='INVOICE 5'!B23 -> 0 | C23: ='INVOICE 5'!C23 -> 0 | D23: 0 | E23: ='INVOICE 5'!E23+'INVOICE 5'!H23 -> 0 | F23: ='INVOICE 5'!F23+'INVOICE 5'!I23 -> 0 | G23: 0 | H23: 0 | I23: 0 | J23: 0 | K23: 0 | L23: 0 | M23: 0
A24: TOTAL | B24: =SUM(B15:B23) -> 1000000 | C24: =SUM(C15:C23) -> 252145 | D24: =SUM(D15:D23) -> 1252145 | E24: =SUM(E15:E23) -> 162828 | F24: 40807 | G24: 203635 | H24: 107257 | I24: =SUM(I15:I23) -> 8647 | J24: 115904 | K24: 729915 | L24: 202691 | M24: 932606 | N24: =SUM(N16+N19+N22) -> 333333
A26: Project Income | C26: Income reported to date | D26: ='INVOICE 1'!D26+'INVOICE 6'!I26 -> 0 | F26: Prior allocated income | G26: 0 | H26: This Period | I26: 0 | L26: Unallocated income balance | M26: =D26-G26 -> 0
C28: Grant funds expended to date: | D28: =SUM(E24,H24) -> 270085 | G28: Grant funds claimed this period: | H28: =H24 -> 107257 | M28: % total dispursed fund expended to date: | N28: =D28/N24 -> 0.8102558103
C29: Match funds to date: | D29: =SUM(F24,I24) -> 49454 | G29: Advance disbursments balance: | H29: =N24-D28 -> 63248 | M29: % of Total Obligated Match to date: | N29: =D29/C24 -> 0.1961331773
D33: Expenditure Descriptions - Units / $ Amounts | L33: Comments
A34: Salaries & Benefits | B34: Grant Funds | C34: =H15 -> 2054 | D34: .08 FTE Deputy Probation Officer 3 months (9/19/20-12/25/20)/ $2,054
B35: Match | C35: =I15 -> 8647 | D35: .10 FTE Division Director/ 3 months (9/19/20-12/25/20)/$4,361 ; .12 FTE Deputy Probation Officer 3 months (9/19/20-12/25/20)/$3,081 ; .025 FTE Administrative Services Manager/ 3 months (9/19/20-12/25/20)/ $1,205
A36: Services & Supplies | B36: Grant Funds | C36: =H16 -> 0
B37: Match | C37: =I16 -> 0
A38: Professional Services | B38: Grant Funds | C38: =H17 -> 0
B39: Match | C39: =I17 -> 0
A40: NGO Subcontracts | B40: Grant Funds | C40: =H18 -> 85203 | D40: NGO PVPSA 5 months of contracted services (July 2020 thru November 2020): Program Coordinator at $20,363; Case Manager 1 at $15,192; Case Manager 2 at $10,007; Mental Health Clinician at $32,101; Mileage $314; Facilities $3,410; Cell Phone $137; Indirect $3,679; $85,203 subtotal for NGO PVPSA
B41: Match | C41: =I18 -> 0
A42: Equipment / Fixed Assets | B42: Grant Funds | C42: =H19 -> 0
B43: Match | C43: =I19 -> 0
A44: Data Collection | B44: Grant Funds | C44: =H20 -> 10000 | D44: Applied Survey Research/ Data Collection services thru June 2020/ $10,000
B45: Match | C45: =I20 -> 0
A46: Project Evaluation | B46: Grant Funds | C46: =H21 -> 10000 | D46: Applied Survey Research/ Project Evaluation services thru June 2020/ $10,000
B47: Match | C47: =I21 -> 0
A48: Other | B48: Grant Funds | C48: =H22 -> 0
B49: Match | C49: =I22 -> 0
A50: Indirect Costs | B50: Grant Funds | C50: =H23 -> 0
B51: Match | C51: =I23 -> 0
A52: Project Income | C52: =I26 -> 0
A53: PERSON PREPARING REPORT | E53: AUTHORIZED FINANCIAL OFFICER | L53: BSCC Supplier Data - Internal Use Only
E54: By checking the box below, I hereby certify that I am the authorized financial officer of the herein named agency. I further certify that I have not violated any of the provisions of Section 1090 of the Government Code in incurring the expenditures reported in this invoice, nor in any other way; that Sections 1090 through 1096 of the Government Code will not be violated in any way in the expenditure of funds pursuant to this invoice; that statement of funds above is true, correct, and in accordance with program provisions in all respects; and that all expenditures submitted after the expiration date of this contract are for the purpose of substantiating obligations legally incurred during the contract period. Furthermore, by submitting this invoice, I acknowledge that it must adhere to all of the requirements in the BSCC Grant Administration Guide, including any updates to the Guide during the term of the grant agreement.
A55: Justin Nunes, Administrative Services Officer | L55: ='INVOICE 1'!L55:O55 -> 12081
A56: Name, Title | L56: Supplier ID
A57: 831-454-3814 | L57: ='INVOICE 1'!L57:O57 -> COUNTYOFSA-022
A58: Phone | L58: Supplier Name
A59: justin.nunes@santacruzcounty.us | L59: ='INVOICE 1'!L59:O59 -> 701 OCEAN ST RM 520
A60: Email | L60: Address Line 1
A61: 2021-02-11 | L61: ='INVOICE 1'!L61:O61 -> SANTA CRUZ CA 95060
A62: Date | L62: Address Line 2
E64: Melissa K. Allen, Administrative Services Manager
E65: Name, Title
E66: 831-454-3884
E67: Phone
E68: 2021-02-15
E69: Date
A71: BSCC USE ONLY
A72: Date Received: | C72: 2021-02-15 | G72: Approved By:
I73: BSCC Field Representative

Sheet 2nd Advance Payment
A1: STATE OF CALIFORNIA | J1: Purchase Authority | L1: BSCC 5227
A2: BOARD OF STATE AND COMMUNITY CORRECTIONS | J2: Purchase Order: | L2: 2456
A3: Advance Payment Invoice: BSCC 201A (Revised 06/2020)
B6: Program: | C6: ='INVOICE 1'!B5 -> Youth Reinvestment Grant | H6: Grantee: | I6: ='INVOICE 1'!B7 -> Santa Cruz County
B8: Contract #: | C8: ='INVOICE 1'!B9 -> BSCC 591-19 | H8: Address | J8: ='1st Advance Payment'!J8 -> 701 Ocean St. RM 520
J9: Address Line 1
B10: Term: | C10: ='INVOICE 1'!E9 -> 2019-07-01 | D10: TO | E10: ='INVOICE 1'!G9 -> 2023-02-28 | J10: ='1st Advance Payment'!J10 -> Santa Cruz, CA 95060
J11: Address Line 2
B13: Advance Payment # | D13: 2 YRG 2019 | G13: Please Note: The California State Controller's Office will send all checks directly to the address listed in the "BSCC Vendor Data" section at the bottom of this invoice.
B15: Effective Invoice # | C15: 7
A18: Advance Payment Invoice
J19: Total Grant Award: | K19: ='1st Advance Payment'!K19:L19 -> 1000000
J20: Advance Total: | K20: 333333
J21: Grant Award Balance: | K21: =K19-'1st Advance Payment'!K20:L20-'2nd Advance Payment'!K20:L20 -> 333334
B25: PERSON PREPARING REPORT | G25: AUTHORIZED FINANCIAL OFFICER
B26: Justin Nunes, Administrative Services Officer | G26: I hereby certify that I am the authorized financial officer of the herein named agency. I further certify that I have not violated any of the provisions of Section 1090 of the Government Code in incurring the expenditures reported in this invoice, nor in any other way; that Sections 1090 through 1096 of the Government Code will not be violated in any way in the expenditure of funds pursuant to this invoice; that statement of funds above is true, correct, and in accordance with program provisions in all respects; and that all expenditures submitted after the expiration date of this contract are for the purpose of substantiating obligations legally incurred during the contract period. Furthermore, by submitting this invoice, I acknowledge that it must adhere to all of the requirements in the BSCC Grant Administration Guide, including any updates to the Guide during the term of the grant agreement.
B27: Name, Title
B28: 831-454-3814
B29: Phone
B30: justin.nunes@santacruzcounty.us
B31: Email
B32: 2021-05-17
B33: Date
G35: Melissa K. Allen, Administrative Services Manager
G36: Name, Title
G37: 831-454-3884
G38: Phone
G39: melissa.allen@santacruzcounty.us
G40: Email
G41: 2021-05-18
G42: Date
G44: Signature
F48: BSCC USE ONLY
B50: Approved By: | C50: Eddie Escobar | J50: BSCC Supplier Data
C51: BSCC Field Representative | I51: ='1st Advance Payment'!I32:K32 -> COUNTYOFSA-022
J52: Supplier Name
B53: Date: | C53: 2021-10-26 | I53: ='1st Advance Payment'!I34:K34 -> 12081
J54: Supplier Number

Sheet INVOICE 7
A1: STATE OF CALIFORNIA | L1: Purchase Authority | N1: BSCC 5227
A2: BOARD OF STATE AND COMMUNITY CORRECTIONS | L2: Purchase Order: | N2: 2456
A3: Financial Invoice Form: BSCC 201 (Revised 04/2020)
A5: Program: | B5: ='INVOICE 1'!B5 -> Youth Reinvestment Grant | K5: Please Note: The California State Controller's Office will send all checks directly to the address listed in the "BSCC Vendor Data" section at the bottom of this invoice.
A7: Grantee: | B7: ='INVOICE 1'!B7 -> Santa Cruz County | F7: Lead Public Agency: | G7: N/A
A9: Contract #: | B9: ='INVOICE 1'!B9 -> BSCC 591-19 | D9: Term: | E9: ='INVOICE 1'!E9 -> 2019-07-01 | F9: TO | G9: ='INVOICE 1'!G9 -> 2023-02-28 | L9: Invoicing Frequency | M9: Quarterly
A11: Invoice #: | B11: 7 | D11: Reporting Period: | E11: 2021-01-01 | F11: TO | G11: 2021-03-31 | H11: Due: | I11: 2021-05-17 | L11: Final Invoice (Y/N): | M11: No
A13: Line Items | B13: Budget | E13: Prior Expenditures | H13: This Reporting Period | K13: Balance | N13: Advance Disbursements
B14: Grant Funds | C14: Match | D14: TOTAL | E14: Grant Funds | F14: Match | G14: TOTAL | H14: Grant Funds | I14: Match | J14: TOTAL | K14: Grant Funds | L14: Match | M14: TOTAL
A15: Salaries & Benefits | B15: ='INVOICE 6'!B15 -> 42000 | C15: ='INVOICE 6'!C15 -> 251224 | D15: =SUM(B15:C15) -> 293224 | E15: ='INVOICE 6'!E15+'INVOICE 6'!H15 -> 13088 | F15: ='INVOICE 6'!F15+'INVOICE 6'!I15 -> 49179 | G15: =SUM(E15:F15) -> 62267 | H15: 2016 | I15: 8410 | J15: =SUM(H15:I15) -> 10426 | K15: =B15-E15-H15 -> 26896 | L15: 193635 | M15: =SUM(K15:L15) -> 220531 | N15: 1st Advance [10/25/19]
A16: Services & Supplies | B16: ='INVOICE 6'!B16 -> 0 | C16: ='INVOICE 6'!C16 -> 117 | D16: 117 | E16: ='INVOICE 6'!E16+'INVOICE 6'!H16 -> 0 | F16: ='INVOICE 6'!F16+'INVOICE 6'!I16 -> 0 | G16: =SUM(E16:F16) -> 0 | H16: 0 | I16: 0 | J16: 0 | K16: 0 | L16: 117 | M16: 117 | N16: ='1st Advance Payment'!K20 -> 333333
A17: Professional Services | B17: ='INVOICE 6'!B17 -> 0 | C17: ='INVOICE 6'!C17 -> 0 | D17: 0 | E17: ='INVOICE 6'!E17+'INVOICE 6'!H17 -> 0 | F17: ='INVOICE 6'!F17+'INVOICE 6'!I17 -> 0 | G17: =SUM(E17:F17) -> 0 | H17: 0 | I17: 0 | J17: 0 | K17: 0 | L17: 0 | M17: 0
A18: NGO Subcontracts | B18: ='INVOICE 6'!B18 -> 900000 | C18: ='INVOICE 6'!C18 -> 0 | D18: 900000 | E18: ='INVOICE 6'!E18+'INVOICE 6'!H18 -> 236997 | F18: ='INVOICE 6'!F18+'INVOICE 6'!I18 -> 0 | G18: 236997 | H18: 41678 | I18: 0 | J18: 41678 | K18: 621325 | L18: 0 | M18: 621325 | N18: 2nd Advance [enter date]
A19: Equipment / Fixed Assets | B19: ='INVOICE 6'!B19 -> 0 | C19: ='INVOICE 6'!C19 -> 0 | D19: 0 | E19: ='INVOICE 6'!E19+'INVOICE 6'!H19 -> 0 | F19: ='INVOICE 6'!F19+'INVOICE 6'!I19 -> 0 | G19: 0 | H19: 0 | I19: 0 | J19: 0 | K19: 0 | L19: 0 | M19: 0 | N19: 0
A20: Data Collection | B20: ='INVOICE 6'!B20 -> 24000 | C20: ='INVOICE 6'!C20 -> 0 | D20: 24000 | E20: ='INVOICE 6'!E20+'INVOICE 6'!H20 -> 10000 | F20: ='INVOICE 6'!F20+'INVOICE 6'!I20 -> 0 | G20: 10000 | H20: 0 | I20: 0 | J20: 0 | K20: 14000 | L20: 0 | M20: 14000
A21: Project Evaluation | B21: ='INVOICE 6'!B21 -> 34000 | C21: ='INVOICE 6'!C21 -> 0 | D21: 34000 | E21: ='INVOICE 6'!E21+'INVOICE 6'!H21 -> 10000 | F21: ='INVOICE 6'!F21+'INVOICE 6'!I21 -> 0 | G21: 10000 | H21: 0 | I21: 0 | J21: 0 | K21: 24000 | L21: 0 | M21: 24000 | N21: 3rd Advance [enter date]
A22: Other | B22: ='INVOICE 6'!B22 -> 0 | C22: ='INVOICE 6'!C22 -> 804 | D22: =SUM(B22:C22) -> 804 | E22: ='INVOICE 6'!E22+'INVOICE 6'!H22 -> 0 | F22: ='INVOICE 6'!F22+'INVOICE 6'!I22 -> 275 | G22: 275 | H22: 0 | I22: 0 | J22: 0 | K22: 0 | L22: 529 | M22: 529 | N22: 0
A23: Indirect Costs | B23: ='INVOICE 6'!B23 -> 0 | C23: ='INVOICE 6'!C23 -> 0 | D23: 0 | E23: ='INVOICE 6'!E23+'INVOICE 6'!H23 -> 0 | F23: ='INVOICE 6'!F23+'INVOICE 6'!I23 -> 0 | G23: 0 | H23: 0 | I23: 0 | J23: 0 | K23: 0 | L23: 0 | M23: 0
A24: TOTAL | B24: =SUM(B15:B23) -> 1000000 | C24: =SUM(C15:C23) -> 252145 | D24: =SUM(D15:D23) -> 1252145 | E24: =SUM(E15:E23) -> 270085 | F24: 49454 | G24: 319539 | H24: 43694 | I24: =SUM(I15:I23) -> 8410 | J24: 52104 | K24: 686221 | L24: 194281 | M24: 880502 | N24: =SUM(N16+N19+N22) -> 333333
A26: Project Income | C26: Income reported to date | D26: ='INVOICE 1'!D26+'INVOICE 7'!I26 -> 0 | F26: Prior allocated income | G26: 0 | H26: This Period | I26: 0 | L26: Unallocated income balance | M26: =D26-G26 -> 0
C28: Grant funds expended to date: | D28: =SUM(E24,H24) -> 313779 | G28: Grant funds claimed this period: | H28: =H24 -> 43694 | M28: % total dispursed fund expended to date: | N28: =D28/N24 -> 0.9413379413
C29: Match funds to date: | D29: =SUM(F24,I24) -> 57864 | G29: Advance disbursments balance: | H29: =N24-D28 -> 19554 | M29: % of Total Obligated Match to date: | N29: =D29/C24 -> 0.2294870015
D33: Expenditure Descriptions - Units / $ Amounts | L33: Comments
A34: Salaries & Benefits | B34: Grant Funds | C34: =H15 -> 2016 | D34: .08 FTE Deputy Probation Officer 3 months (12/26/20-03/19/21)/ $2,016
B35: Match | C35: =I15 -> 8410 | D35: .10 FTE Division Director/ 3 months (12/26/20-03/19/21)/$4,377; .12 FTE Deputy Probation Officer 3 months (12/26/20-03/19/21)/$3,024; .025 FTE Administrative Services Manager/ 3 months (12/26/20-03/19/21)/ $1,009
A36: Services & Supplies | B36: Grant Funds | C36: =H16 -> 0
B37: Match | C37: =I16 -> 0
A38: Professional Services | B38: Grant Funds | C38: =H17 -> 0
B39: Match | C39: =I17 -> 0
A40: NGO Subcontracts | B40: Grant Funds | C40: =H18 -> 41678 | D40: NGO PVPSA 2 months of contracted services (December 2020 thru January 2021): Program Coordinator at $7,790; Case Manager 1 at $5,978; Case Manager 2 at $4,698; Mental Health Clinician at $12,631; Mileage $277; Facilities $1,726; Cell Phone $60; Indirect $2,590; $35,750 subtotal for PVPSA/ NGO CAB 3 months of contracted services (November 2020 thru January 2021) $5,928.
B41: Match | C41: =I18 -> 0
A42: Equipment / Fixed Assets | B42: Grant Funds | C42: =H19 -> 0
B43: Match | C43: =I19 -> 0
A44: Data Collection | B44: Grant Funds | C44: =H20 -> 0
B45: Match | C45: =I20 -> 0
A46: Project Evaluation | B46: Grant Funds | C46: =H21 -> 0
B47: Match | C47: =I21 -> 0
A48: Other | B48: Grant Funds | C48: =H22 -> 0
B49: Match | C49: =I22 -> 0
A50: Indirect Costs | B50: Grant Funds | C50: =H23 -> 0
B51: Match | C51: =I23 -> 0
A52: Project Income | C52: =I26 -> 0
A53: PERSON PREPARING REPORT | E53: AUTHORIZED FINANCIAL OFFICER | L53: BSCC Supplier Data - Internal Use Only
E54: By checking the box below, I hereby certify that I am the authorized financial officer of the herein named agency. I further certify that I have not violated any of the provisions of Section 1090 of the Government Code in incurring the expenditures reported in this invoice, nor in any other way; that Sections 1090 through 1096 of the Government Code will not be violated in any way in the expenditure of funds pursuant to this invoice; that statement of funds above is true, correct, and in accordance with program provisions in all respects; and that all expenditures submitted after the expiration date of this contract are for the purpose of substantiating obligations legally incurred during the contract period. Furthermore, by submitting this invoice, I acknowledge that it must adhere to all of the requirements in the BSCC Grant Administration Guide, including any updates to the Guide during the term of the grant agreement.
A55: Justin Nunes, Administrative Services Officer | L55: ='INVOICE 1'!L55:O55 -> 12081
A56: Name, Title | L56: Supplier ID
A57: 831-454-3814 | L57: ='INVOICE 1'!L57:O57 -> COUNTYOFSA-022
A58: Phone | L58: Supplier Name
A59: justin.nunes@santacruzcounty.us | L59: ='INVOICE 1'!L59:O59 -> 701 OCEAN ST RM 520
A60: Email | L60: Address Line 1
A61: 2021-05-17 | L61: ='INVOICE 1'!L61:O61 -> SANTA CRUZ CA 95060
A62: Date | L62: Address Line 2
E64: Melissa K. Allen, Administrative Services Manager
E65: Name, Title
E66: 831-454-3884
E67: Phone
E68: 2021-05-18
E69: Date
A71: BSCC USE ONLY
A72: Date Received: | C72: 2021-05-18 | G72: Approved By: | I72: Eddie Escobar
I73: BSCC Field Representative

Sheet INVOICE 8
A1: STATE OF CALIFORNIA | L1: Purchase Authority | N1: BSCC 5227
A2: BOARD OF STATE AND COMMUNITY CORRECTIONS | L2: Purchase Order: | N2: 2456
A3: Financial Invoice Form: BSCC 201 (Revised 04/2020)
A5: Program: | B5: ='INVOICE 1'!B5 -> Youth Reinvestment Grant | K5: Please Note: The California State Controller's Office will send all checks directly to the address listed in the "BSCC Vendor Data" section at the bottom of this invoice.
A7: Grantee: | B7: ='INVOICE 1'!B7 -> Santa Cruz County | F7: Lead Public Agency: | G7: N/A
A9: Contract #: | B9: ='INVOICE 1'!B9 -> BSCC 591-19 | D9: Term: | E9: ='INVOICE 1'!E9 -> 2019-07-01 | F9: TO | G9: ='INVOICE 1'!G9 -> 2023-02-28 | L9: Invoicing Frequency | M9: Quarterly
A11: Invoice #: | B11: 8 | D11: Reporting Period: | E11: 2021-04-01 | F11: TO | G11: 2021-06-30 | H11: Due: | I11: 2021-08-16 | L11: Final Invoice (Y/N): | M11: No
A13: Line Items | B13: Budget | E13: Prior Expenditures | H13: This Reporting Period | K13: Balance | N13: Advance Disbursements
B14: Grant Funds | C14: Match | D14: TOTAL | E14: Grant Funds | F14: Match | G14: TOTAL | H14: Grant Funds | I14: Match | J14: TOTAL | K14: Grant Funds | L14: Match | M14: TOTAL
A15: Salaries & Benefits | B15: ='INVOICE 7'!B15 -> 42000 | C15: ='INVOICE 7'!C15 -> 251224 | D15: =SUM(B15:C15) -> 293224 | E15: ='INVOICE 7'!E15+'INVOICE 7'!H15 -> 15104 | F15: ='INVOICE 7'!F15+'INVOICE 7'!I15 -> 57589 | G15: =SUM(E15:F15) -> 72693 | H15: 1184 | I15: 8543 | J15: =SUM(H15:I15) -> 9727 | K15: =B15-E15-H15 -> 25712 | L15: 185092 | M15: =SUM(K15:L15) -> 210804 | N15: 1st Advance [10/25/19]
A16: Services & Supplies | B16: ='INVOICE 7'!B16 -> 0 | C16: ='INVOICE 7'!C16 -> 117 | D16: 117 | E16: ='INVOICE 7'!E16+'INVOICE 7'!H16 -> 0 | F16: ='INVOICE 7'!F16+'INVOICE 7'!I16 -> 0 | G16: =SUM(E16:F16) -> 0 | H16: 0 | I16: 0 | J16: 0 | K16: 0 | L16: 117 | M16: 117 | N16: ='1st Advance Payment'!K20 -> 333333
A17: Professional Services | B17: ='INVOICE 7'!B17 -> 0 | C17: ='INVOICE 7'!C17 -> 0 | D17: 0 | E17: ='INVOICE 7'!E17+'INVOICE 7'!H17 -> 0 | F17: ='INVOICE 7'!F17+'INVOICE 7'!I17 -> 0 | G17: =SUM(E17:F17) -> 0 | H17: 0 | I17: 0 | J17: 0 | K17: 0 | L17: 0 | M17: 0
A18: NGO Subcontracts | B18: ='INVOICE 7'!B18 -> 900000 | C18: ='INVOICE 7'!C18 -> 0 | D18: 900000 | E18: ='INVOICE 7'!E18+'INVOICE 7'!H18 -> 278675 | F18: ='INVOICE 7'!F18+'INVOICE 7'!I18 -> 0 | G18: 278675 | H18: 55226 | I18: 0 | J18: 55226 | K18: 566099 | L18: 0 | M18: 566099 | N18: 2nd Advance [enter date]
A19: Equipment / Fixed Assets | B19: ='INVOICE 7'!B19 -> 0 | C19: ='INVOICE 7'!C19 -> 0 | D19: 0 | E19: ='INVOICE 7'!E19+'INVOICE 7'!H19 -> 0 | F19: ='INVOICE 7'!F19+'INVOICE 7'!I19 -> 0 | G19: 0 | H19: 0 | I19: 0 | J19: 0 | K19: 0 | L19: 0 | M19: 0 | N19: 0
A20: Data Collection | B20: ='INVOICE 7'!B20 -> 24000 | C20: ='INVOICE 7'!C20 -> 0 | D20: 24000 | E20: ='INVOICE 7'!E20+'INVOICE 7'!H20 -> 10000 | F20: ='INVOICE 7'!F20+'INVOICE 7'!I20 -> 0 | G20: 10000 | H20: 0 | I20: 0 | J20: 0 | K20: 14000 | L20: 0 | M20: 14000
A21: Project Evaluation | B21: ='INVOICE 7'!B21 -> 34000 | C21: ='INVOICE 7'!C21 -> 0 | D21: 34000 | E21: ='INVOICE 7'!E21+'INVOICE 7'!H21 -> 10000 | F21: ='INVOICE 7'!F21+'INVOICE 7'!I21 -> 0 | G21: 10000 | H21: 0 | I21: 0 | J21: 0 | K21: 24000 | L21: 0 | M21: 24000 | N21: 3rd Advance [enter date]
A22: Other | B22: ='INVOICE 7'!B22 -> 0 | C22: ='INVOICE 7'!C22 -> 804 | D22: =SUM(B22:C22) -> 804 | E22: ='INVOICE 7'!E22+'INVOICE 7'!H22 -> 0 | F22: ='INVOICE 7'!F22+'INVOICE 7'!I22 -> 275 | G22: 275 | H22: 0 | I22: 0 | J22: 0 | K22: 0 | L22: 529 | M22: 529 | N22: 0
A23: Indirect Costs | B23: ='INVOICE 7'!B23 -> 0 | C23: ='INVOICE 7'!C23 -> 0 | D23: 0 | E23: ='INVOICE 7'!E23+'INVOICE 7'!H23 -> 0 | F23: ='INVOICE 7'!F23+'INVOICE 7'!I23 -> 0 | G23: 0 | H23: 0 | I23: 0 | J23: 0 | K23: 0 | L23: 0 | M23: 0
A24: TOTAL | B24: =SUM(B15:B23) -> 1000000 | C24: =SUM(C15:C23) -> 252145 | D24: =SUM(D15:D23) -> 1252145 | E24: =SUM(E15:E23) -> 313779 | F24: 57864 | G24: 371643 | H24: 56410 | I24: =SUM(I15:I23) -> 8543 | J24: 64953 | K24: 629811 | L24: 185738 | M24: 815549 | N24: =SUM(N16+N19+N22) -> 333333
A26: Project Income | C26: Income reported to date | D26: ='INVOICE 1'!D26+'INVOICE 8'!I26 -> 0 | F26: Prior allocated income | G26: 0 | H26: This Period | I26: 0 | L26: Unallocated income balance | M26: =D26-G26 -> 0
C28: Grant funds expended to date: | D28: =SUM(E24,H24) -> 370189 | G28: Grant funds claimed this period: | H28: =H24 -> 56410 | M28: % total dispursed fund expended to date: | N28: =D28/N24 -> 1.110568111
C29: Match funds to date: | D29: =SUM(F24,I24) -> 66407 | G29: Advance disbursments balance: | H29: =N24-D28 -> -36856 | M29: % of Total Obligated Match to date: | N29: =D29/C24 -> 0.2633683
D33: Expenditure Descriptions - Units / $ Amounts | L33: Comments
A34: Salaries & Benefits | B34: Grant Funds | C34: =H15 -> 1184 | D34: .08 FTE Deputy Probation Officer 3 months (3/20/21-06/30/21)/ $1,184.
B35: Match | C35: =I15 -> 8543 | D35: .10 FTE Division Director/ 3 months (3/20/21-06/30/21)/$5,539; .12 FTE Deputy Probation Officer 3 months (3/20/21-06/30/21)/$1,776; .025 FTE Administrative Services Manager/ 3 months (3/20/21-06/30/21)/ $1,228.
A36: Services & Supplies | B36: Grant Funds | C36: =H16 -> 0
B37: Match | C37: =I16 -> 0
A38: Professional Services | B38: Grant Funds | C38: =H17 -> 0
B39: Match | C39: =I17 -> 0
A40: NGO Subcontracts | B40: Grant Funds | C40: =H18 -> 55226 | D40: NGO PVPSA 2 months of contracted services (February thru March 2021): Program Coordinator at $8,147; Case Manager 1 at $6,588; Mental Health Clinician at $13,210; Mileage $95; Facilities $863; Cell Phone $60; Indirect $2,590; $31,553 subtotal for PVPSA/ NGO CRC 5 months of contracted services (November 2020 thru March 2021) $14,562/ NGO CAB 4 months of contracted services (February thru May 2021) $9,111.
B41: Match | C41: =I18 -> 0
A42: Equipment / Fixed Assets | B42: Grant Funds | C42: =H19 -> 0
B43: Match | C43: =I19 -> 0
A44: Data Collection | B44: Grant Funds | C44: =H20 -> 0
B45: Match | C45: =I20 -> 0
A46: Project Evaluation | B46: Grant Funds | C46: =H21 -> 0
B47: Match | C47: =I21 -> 0
A48: Other | B48: Grant Funds | C48: =H22 -> 0
B49: Match | C49: =I22 -> 0
A50: Indirect Costs | B50: Grant Funds | C50: =H23 -> 0
B51: Match | C51: =I23 -> 0
A52: Project Income | C52: =I26 -> 0
A53: PERSON PREPARING REPORT | E53: AUTHORIZED FINANCIAL OFFICER | L53: BSCC Supplier Data - Internal Use Only
E54: By checking the box below, I hereby certify that I am the authorized financial officer of the herein named agency. I further certify that I have not violated any of the provisions of Section 1090 of the Government Code in incurring the expenditures reported in this invoice, nor in any other way; that Sections 1090 through 1096 of the Government Code will not be violated in any way in the expenditure of funds pursuant to this invoice; that statement of funds above is true, correct, and in accordance with program provisions in all respects; and that all expenditures submitted after the expiration date of this contract are for the purpose of substantiating obligations legally incurred during the contract period. Furthermore, by submitting this invoice, I acknowledge that it must adhere to all of the requirements in the BSCC Grant Administration Guide, including any updates to the Guide during the term of the grant agreement.
A55: Justin Nunes, Administrative Services Officer | L55: ='INVOICE 1'!L55:O55 -> 12081
A56: Name, Title | L56: Supplier ID
A57: 831-454-3814 | L57: ='INVOICE 1'!L57:O57 -> COUNTYOFSA-022
A58: Phone | L58: Supplier Name
A59: justin.nunes@santacruzcounty.us | L59: ='INVOICE 1'!L59:O59 -> 701 OCEAN ST RM 520
A60: Email | L60: Address Line 1
A61: 2021-10-11 | L61: ='INVOICE 1'!L61:O61 -> SANTA CRUZ CA 95060
A62: Date | L62: Address Line 2
E64: Melissa K. Allen, Administrative Services Manager
E65: Name, Title
E66: 831-454-3884
E67: Phone
E68: 2021-10-11
E69: Date
A71: BSCC USE ONLY
A72: Date Received: | C72: 2021-10-11 | G72: Approved By: | I72: Eddie Escobar
I73: BSCC Field Representative

Sheet MOD 1
M1: STATE OF CALIFORNIA
A2: MODIFICATION REQUEST - (FORM BSCC 223.1 (Revised 04/20) | M2: BOARD OF STATE AND COMMUNITY CORRECTIONS
B5: Line-Item Change | F5: Budget Modification | J5: Project Income Allocation
B6: Check this box if you are modifying narrative details within a line item (or line items) but not changing the budget. | F6: Check this box if you are modifying line-item dollar amounts by moving funds from one line-item to another. | J6: Check this box if you are allocating earned project income.
A8: Important Note: You must provide a detailed justification for all modification requests. All modifications require BSCC Field Representative approval.
A10: Grantee: | B10: ='INVOICE 1'!B7 -> Santa Cruz County | I10: Grant Program: | J10: ='INVOICE 1'!B5 -> Youth Reinvestment Grant
A12: Address | I12: Lead Public Agency: | J12: ='INVOICE 1'!G7 -> N/A
A16: Contract #: | B16: ='INVOICE 1'!B9 -> BSCC 591-19 | J16: Modification Request # | K16: 1
A18: Term: | B18: ='INVOICE 1'!E9 -> 2019-07-01 | C18: ='INVOICE 1'!F9 -> TO | D18: ='INVOICE 1'!G9 -> 2023-02-28 | J18: Effective on Invoice # | K18: 9
A20: Line Items | B20: Current Budget | E20: Available Budget | H20: Changes (+/-) | K20: Modified Budget
B21: Grant Funds | C21: Match | D21: TOTAL | E21: Grant Funds | F21: Match | G21: TOTAL | H21: Grant Funds | I21: Match | J21: TOTAL | K21: Grant Funds | L21: Match | M21: TOTAL
A22: Salaries & Benefits | B22: ='INVOICE 1'!B15 -> 42000 | C22: ='INVOICE 1'!C15 -> 251224 | D22: =SUM(B22:C22) -> 293224 | E22: ='INVOICE 2'!K15 -> 37625 | F22: ='INVOICE 2'!L15 -> 233926 | G22: =SUM(E22:F22) -> 271551 | H22: 0 | I22: 0 | J22: =SUM(H22:I22) -> 0 | K22: =SUM(B22,H22) -> 42000 | L22: 251224 | M22: =SUM(K22:L22) -> 293224
A23: Services & Supplies | B23: ='INVOICE 1'!B16 -> 0 | C23: ='INVOICE 1'!C16 -> 117 | D23: 117 | E23: ='INVOICE 2'!K16 -> 0 | F23: ='INVOICE 2'!L16 -> 117 | G23: 117 | H23: 0 | I23: 0 | J23: 0 | K23: 0 | L23: 117 | M23: 117
A24: Professional Services | B24: ='INVOICE 1'!B17 -> 0 | C24: ='INVOICE 1'!C17 -> 0 | D24: 0 | E24: ='INVOICE 2'!K17 -> 0 | F24: ='INVOICE 2'!L17 -> 0 | G24: 0 | H24: 0 | I24: 0 | J24: 0 | K24: 0 | L24: 0 | M24: 0
A25: NGO Subcontracts | B25: ='INVOICE 1'!B18 -> 900000 | C25: ='INVOICE 1'!C18 -> 0 | D25: 900000 | E25: ='INVOICE 2'!K18 -> 900000 | F25: ='INVOICE 2'!L18 -> 0 | G25: 900000 | H25: 0 | I25: 0 | J25: 0 | K25: 900000 | L25: 0 | M25: 900000
A26: Equipment / Fixed Assets | B26: ='INVOICE 1'!B19 -> 0 | C26: ='INVOICE 1'!C19 -> 0 | D26: 0 | E26: ='INVOICE 2'!K19 -> 0 | F26: ='INVOICE 2'!L19 -> 0 | G26: 0 | H26: 0 | I26: 0 | J26: 0 | K26: 0 | L26: 0 | M26: 0
A27: Data Collection | B27: ='INVOICE 1'!B20 -> 24000 | C27: ='INVOICE 1'!C20 -> 0 | D27: 24000 | E27: ='INVOICE 2'!K20 -> 24000 | F27: ='INVOICE 2'!L20 -> 0 | G27: 24000 | H27: 0 | I27: 0 | J27: 0 | K27: 24000 | L27: 0 | M27: 24000
A28: Project Evaluation | B28: ='INVOICE 1'!B21 -> 34000 | C28: ='INVOICE 1'!C21 -> 0 | D28: 34000 | E28: ='INVOICE 2'!K21 -> 34000 | F28: ='INVOICE 2'!L21 -> 0 | G28: 34000 | H28: 0 | I28: 0 | J28: 0 | K28: 34000 | L28: 0 | M28: 34000
A29: Other | B29: ='INVOICE 1'!B22 -> 0 | C29: ='INVOICE 1'!C22 -> 804 | D29: 804 | E29: ='INVOICE 2'!K22 -> 0 | F29: ='INVOICE 2'!L22 -> 529 | G29: 529 | H29: 0 | I29: 0 | J29: 0 | K29: 0 | L29: 804 | M29: 804
A30: Indirect Costs | B30: ='INVOICE 1'!B23 -> 0 | C30: ='INVOICE 1'!C23 -> 0 | D30: 0 | E30: ='INVOICE 2'!K23 -> 0 | F30: ='INVOICE 2'!L23 -> 0 | G30: 0 | H30: 0 | I30: 0 | J30: 0 | K30: 0 | L30: 0 | M30: 0
A31: TOTAL | B31: =SUM(B22:B30) -> 1000000 | C31: 252145 | D31: 1252145 | E31: 995625 | F31: 234572 | G31: 1230197 | H31: 0 | I31: 0 | J31: 0 | K31: 1000000 | L31: 252145 | M31: 1252145
A33: Project Income | C33: Income reported to date | D33: 0 | F33: Prior allocated income | G33: 0 | H33: Allocating | I33: 0 | L33: Unallocated income balance | M33: =D33-I33 -> 0
A35: JUSTIFICATION FOR MODIFICATION:
A36: Request to modify Budget Narrative Details within the NGO Subcontracts line to: (1) PVPSA - Program Diversion Coordinator: Salaries & Benefits @ $145,393. (2) PVPSA - Case Managers 1 & 2: Salaries & Benefits @ $210,938. (3) PVPSA - Mental Health Clinician: Salaries & Benefits @ $270,949. (4) PVPSA - Operating Expenses (mileage, phone, facilities, additional client support services, and other applicable operating expenses) @ $68,085. (5) PVPSA - Indirect PVPSA - Indirect costs up to 10% of total direct salaries and wages @ $44,635. (6) Other CBO(s) - Other Wrap Services: CAB & CRC @$160,000.\ \ Modification Changes/Justification: This grant modification to the NGO Subcontracts line does not result in moving any total grant funding from that line. It is requested to account for NGO budget modifications within that line to adjust cost savings from NGO PVPSA's Year 1 actual costs largely due to service adjustments in response to the COVID-19 pandemic and to apply that funding (within the NGO line) to increased benefits and annualized salary costs and to additional client supports and services through the remainder of the grant term. These adjustments do not result in a reduction of grant services and actually allow us to expand the target population to a new Probation Cohort (first time probation youth and youth experiencing limited school engagement and other school related challenges). Modification Details: (1) Recognized savings of $23,138 in Program Diversion Coordinator salary & benefits costs; (2) Reduced combined Case Managers 1 & 2 costs by $8,236, adjusted due to increase in CM 1 salary & benefits costs and savings from transition and temporary vacancy of CM 2 staff person; (3) Slight increase of $580 to MH Clinician cost; (4) Used costs savings to add $23,281 in PVPSA Operating Expenses for additional direct client support for Years 2-4 and during the pandemic (including transportation/bus passes, incentives, emergency food and support services) and other related operating expenses (including program supplies, facility maintenance/repairs, staff training costs); (5) Minor adjustment to PVPSA Indirect to decrease it by $2,487; (6) Used cost savings from NGO PVPSA to add $10,000 to Other CBOs for Community Action Board & Conflict Resolution Center to provide additional wrap-around client support services.
A55: PERSON PREPARING REPORT | I55: AUTHORIZED FINANCIAL OFFICER
I56: I hereby certify that I am the authorized financial officer of the herein named agency. I further certify that I have not violated any of the provisions of Section 1090 of the Government Code in incurring the expenditures reported in this invoice, nor in any other way; that Sections 1090 through 1096 of the Government Code will not be violated in any way in the expenditure of funds pursuant to this invoice; that statement of funds above is true, correct, and in accordance with program provisions in all respects; and that all expenditures submitted after the expiration date of this contract are for the purpose of substantiating obligations legally incurred during the contract period. Furthermore, by submitting this invoice, I acknowledge that it must adhere to all of the requirements in the BSCC Grant Administration Guide, including any updates to the Guide during the term of the grant agreement.
A57: Justin Nunes, Administrative Services Officer
A58: Name, Title
A59: 831-454-3814
A60: Phone
A61: justin.nunes@santacruzcounty.us
A62: Email
A63: 2021-10-06
A64: Date
I66: Melissa K. Allen, Administrative Services Manager
I67: Name, Title
I68: 831-454-3884
I69: Phone
I70: 2021-10-06
I71: Date
A73: BSCC USE ONLY
A74: Date Received: | C74: 2021-10-11 | H74: Approved By: | I74: Eddie Escobar | L74: Date: | M74: 2021-10-26
I75: BSCC Field Representative

Sheet INVOICE 9
A1: STATE OF CALIFORNIA | L1: Purchase Authority | N1: BSCC 5227
A2: BOARD OF STATE AND COMMUNITY CORRECTIONS | L2: Purchase Order: | N2: 2456
A3: Financial Invoice Form: BSCC 201 (Revised 04/2020)
A5: Program: | B5: ='INVOICE 1'!B5 -> Youth Reinvestment Grant | K5: Please Note: The California State Controller's Office will send all checks directly to the address listed in the "BSCC Vendor Data" section at the bottom of this invoice.
A7: Grantee: | B7: ='INVOICE 1'!B7 -> Santa Cruz County | F7: Lead Public Agency: | G7: N/A
A9: Contract #: | B9: ='INVOICE 1'!B9 -> BSCC 591-19 | D9: Term: | E9: ='INVOICE 1'!E9 -> 2019-07-01 | F9: TO | G9: ='INVOICE 1'!G9 -> 2023-02-28 | L9: Invoicing Frequency | M9: Quarterly
A11: Invoice #: | B11: 9 | D11: Reporting Period: | E11: 2021-07-01 | F11: TO | G11: 2021-09-30 | H11: Due: | I11: 2021-11-15 | L11: Final Invoice (Y/N): | M11: No
A13: Line Items | B13: Budget | E13: Prior Expenditures | H13: This Reporting Period | K13: Balance | N13: Advance Disbursements
B14: Grant Funds | C14: Match | D14: TOTAL | E14: Grant Funds | F14: Match | G14: TOTAL | H14: Grant Funds | I14: Match | J14: TOTAL | K14: Grant Funds | L14: Match | M14: TOTAL
A15: Salaries & Benefits | B15: ='INVOICE 8'!B15 -> 42000 | C15: ='INVOICE 8'!C15 -> 251224 | D15: =SUM(B15:C15) -> 293224 | E15: ='INVOICE 8'!E15+'INVOICE 8'!H15 -> 16288 | F15: ='INVOICE 8'!F15+'INVOICE 8'!I15 -> 66132 | G15: =SUM(E15:F15) -> 82420 | H15: 0 | I15: 0 | J15: =SUM(H15:I15) -> 0 | K15: =B15-E15-H15 -> 25712 | L15: 185092 | M15: =SUM(K15:L15) -> 210804 | N15: 1st Advance [10/25/19]
A16: Services & Supplies | B16: ='INVOICE 8'!B16 -> 0 | C16: ='INVOICE 8'!C16 -> 117 | D16: 117 | E16: ='INVOICE 8'!E16+'INVOICE 8'!H16 -> 0 | F16: ='INVOICE 8'!F16+'INVOICE 8'!I16 -> 0 | G16: =SUM(E16:F16) -> 0 | H16: 0 | I16: 0 | J16: 0 | K16: 0 | L16: 117 | M16: 117 | N16: ='1st Advance Payment'!K20 -> 333333
A17: Professional Services | B17: ='INVOICE 8'!B17 -> 0 | C17: ='INVOICE 8'!C17 -> 0 | D17: 0 | E17: ='INVOICE 8'!E17+'INVOICE 8'!H17 -> 0 | F17: ='INVOICE 8'!F17+'INVOICE 8'!I17 -> 0 | G17: =SUM(E17:F17) -> 0 | H17: 0 | I17: 0 | J17: 0 | K17: 0 | L17: 0 | M17: 0
A18: NGO Subcontracts | B18: ='INVOICE 8'!B18 -> 900000 | C18: ='INVOICE 8'!C18 -> 0 | D18: 900000 | E18: ='INVOICE 8'!E18+'INVOICE 8'!H18 -> 333901 | F18: ='INVOICE 8'!F18+'INVOICE 8'!I18 -> 0 | G18: 333901 | H18: 0 | I18: 0 | J18: 0 | K18: 566099 | L18: 0 | M18: 566099 | N18: 2nd Advance [enter date]
A19: Equipment / Fixed Assets | B19: ='INVOICE 8'!B19 -> 0 | C19: ='INVOICE 8'!C19 -> 0 | D19: 0 | E19: ='INVOICE 8'!E19+'INVOICE 8'!H19 -> 0 | F19: ='INVOICE 8'!F19+'INVOICE 8'!I19 -> 0 | G19: 0 | H19: 0 | I19: 0 | J19: 0 | K19: 0 | L19: 0 | M19: 0 | N19: 0
A20: Data Collection | B20: ='INVOICE 8'!B20 -> 24000 | C20: ='INVOICE 8'!C20 -> 0 | D20: 24000 | E20: ='INVOICE 8'!E20+'INVOICE 8'!H20 -> 10000 | F20: ='INVOICE 8'!F20+'INVOICE 8'!I20 -> 0 | G20: 10000 | H20: 0 | I20: 0 | J20: 0 | K20: 14000 | L20: 0 | M20: 14000
A21: Project Evaluation | B21: ='INVOICE 8'!B21 -> 34000 | C21: ='INVOICE 8'!C21 -> 0 | D21: 34000 | E21: ='INVOICE 8'!E21+'INVOICE 8'!H21 -> 10000 | F21: ='INVOICE 8'!F21+'INVOICE 8'!I21 -> 0 | G21: 10000 | H21: 0 | I21: 0 | J21: 0 | K21: 24000 | L21: 0 | M21: 24000 | N21: 3rd Advance [enter date]
A22: Other | B22: ='INVOICE 8'!B22 -> 0 | C22: ='INVOICE 8'!C22 -> 804 | D22: =SUM(B22:C22) -> 804 | E22: ='INVOICE 8'!E22+'INVOICE 8'!H22 -> 0 | F22: ='INVOICE 8'!F22+'INVOICE 8'!I22 -> 275 | G22: 275 | H22: 0 | I22: 0 | J22: 0 | K22: 0 | L22: 529 | M22: 529 | N22: 0
A23: Indirect Costs | B23: ='INVOICE 8'!B23 -> 0 | C23: ='INVOICE 8'!C23 -> 0 | D23: 0 | E23: ='INVOICE 8'!E23+'INVOICE 8'!H23 -> 0 | F23: ='INVOICE 8'!F23+'INVOICE 8'!I23 -> 0 | G23: 0 | H23: 0 | I23: 0 | J23: 0 | K23: 0 | L23: 0 | M23: 0
A24: TOTAL | B24: =SUM(B15:B23) -> 1000000 | C24: =SUM(C15:C23) -> 252145 | D24: =SUM(D15:D23) -> 1252145 | E24: =SUM(E15:E23) -> 370189 | F24: 66407 | G24: 436596 | H24: 0 | I24: =SUM(I15:I23) -> 0 | J24: 0 | K24: 629811 | L24: 185738 | M24: 815549 | N24: =SUM(N16+N19+N22) -> 333333
A26: Project Income | C26: Income reported to date | D26: ='INVOICE 1'!D26+'INVOICE 9'!I26 -> 0 | F26: Prior allocated income | G26: 0 | H26: This Period | I26: 0 | L26: Unallocated income balance | M26: =D26-G26 -> 0
C28: Grant funds expended to date: | D28: =SUM(E24,H24) -> 370189 | G28: Grant funds claimed this period: | H28: =H24 -> 0 | M28: % total dispursed fund expended to date: | N28: =D28/N24 -> 1.110568111
C29: Match funds to date: | D29: =SUM(F24,I24) -> 66407 | G29: Advance disbursments balance: | H29: =N24-D28 -> -36856 | M29: % of Total Obligated Match to date: | N29: =D29/C24 -> 0.2633683
D33: Expenditure Descriptions - Units / $ Amounts | L33: Comments
A34: Salaries & Benefits | B34: Grant Funds | C34: =H15 -> 0
B35: Match | C35: =I15 -> 0
A36: Services & Supplies | B36: Grant Funds | C36: =H16 -> 0
B37: Match | C37: =I16 -> 0
A38: Professional Services | B38: Grant Funds | C38: =H17 -> 0
B39: Match | C39: =I17 -> 0
A40: NGO Subcontracts | B40: Grant Funds | C40: =H18 -> 0
B41: Match | C41: =I18 -> 0
A42: Equipment / Fixed Assets | B42: Grant Funds | C42: =H19 -> 0
B43: Match | C43: =I19 -> 0
A44: Data Collection | B44: Grant Funds | C44: =H20 -> 0
B45: Match | C45: =I20 -> 0
A46: Project Evaluation | B46: Grant Funds | C46: =H21 -> 0
B47: Match | C47: =I21 -> 0
A48: Other | B48: Grant Funds | C48: =H22 -> 0
B49: Match | C49: =I22 -> 0
A50: Indirect Costs | B50: Grant Funds | C50: =H23 -> 0
B51: Match | C51: =I23 -> 0
A52: Project Income | C52: =I26 -> 0
A53: PERSON PREPARING REPORT | E53: AUTHORIZED FINANCIAL OFFICER | L53: BSCC Supplier Data - Internal Use Only
E54: By checking the box below, I hereby certify that I am the authorized financial officer of the herein named agency. I further certify that I have not violated any of the provisions of Section 1090 of the Government Code in incurring the expenditures reported in this invoice, nor in any other way; that Sections 1090 through 1096 of the Government Code will not be violated in any way in the expenditure of funds pursuant to this invoice; that statement of funds above is true, correct, and in accordance with program provisions in all respects; and that all expenditures submitted after the expiration date of this contract are for the purpose of substantiating obligations legally incurred during the contract period. Furthermore, by submitting this invoice, I acknowledge that it must adhere to all of the requirements in the BSCC Grant Administration Guide, including any updates to the Guide during the term of the grant agreement.
L55: ='INVOICE 1'!L55:O55 -> 12081
A56: Name, Title | L56: Supplier ID
L57: ='INVOICE 1'!L57:O57 -> COUNTYOFSA-022
A58: Phone | L58: Supplier Name
L59: ='INVOICE 1'!L59:O59 -> 701 OCEAN ST RM 520
A60: Email | L60: Address Line 1
L61: ='INVOICE 1'!L61:O61 -> SANTA CRUZ CA 95060
A62: Date | L62: Address Line 2
E65: Name, Title
E67: Phone
E69: Date
A71: BSCC USE ONLY
A72: Date Received: | G72: Approved By:
I73: BSCC Field Representative

Sheet INVOICE 10
A1: STATE OF CALIFORNIA | L1: Purchase Authority | N1: BSCC 5227
A2: BOARD OF STATE AND COMMUNITY CORRECTIONS | L2: Purchase Order: | N2: 2456
A3: Financial Invoice Form: BSCC 201 (Revised 04/2020)
A5: Program: | B5: ='INVOICE 1'!B5 -> Youth Reinvestment Grant | K5: Please Note: The California State Controller's Office will send all checks directly to the address listed in the "BSCC Vendor Data" section at the bottom of this invoice.
A7: Grantee: | B7: ='INVOICE 1'!B7 -> Santa Cruz County | F7: Lead Public Agency: | G7: N/A
A9: Contract #: | B9: ='INVOICE 1'!B9 -> BSCC 591-19 | D9: Term: | E9: ='INVOICE 1'!E9 -> 2019-07-01 | F9: TO | G9: ='INVOICE 1'!G9 -> 2023-02-28 | L9: Invoicing Frequency | M9: Quarterly
A11: Invoice #: | B11: 10 | D11: Reporting Period: | E11: 2021-10-01 | F11: TO | G11: 2021-12-31 | H11: Due: | I11: 2022-02-14 | L11: Final Invoice (Y/N): | M11: No
A13: Line Items | B13: Budget | E13: Prior Expenditures | H13: This Reporting Period | K13: Balance | N13: Advance Disbursements
B14: Grant Funds | C14: Match | D14: TOTAL | E14: Grant Funds | F14: Match | G14: TOTAL | H14: Grant Funds | I14: Match | J14: TOTAL | K14: Grant Funds | L14: Match | M14: TOTAL
A15: Salaries & Benefits | B15: ='INVOICE 9'!B15 -> 42000 | C15: ='INVOICE 9'!C15 -> 251224 | D15: =SUM(B15:C15) -> 293224 | E15: ='INVOICE 9'!E15+'INVOICE 9'!H15 -> 16288 | F15: ='INVOICE 9'!F15+'INVOICE 9'!I15 -> 66132 | G15: =SUM(E15:F15) -> 82420 | H15: 0 | I15: 0 | J15: =SUM(H15:I15) -> 0 | K15: =B15-E15-H15 -> 25712 | L15: 185092 | M15: =SUM(K15:L15) -> 210804 | N15: 1st Advance [10/25/19]
A16: Services & Supplies | B16: ='INVOICE 9'!B16 -> 0 | C16: ='INVOICE 9'!C16 -> 117 | D16: 117 | E16: ='INVOICE 9'!E16+'INVOICE 9'!H16 -> 0 | F16: ='INVOICE 9'!F16+'INVOICE 9'!I16 -> 0 | G16: =SUM(E16:F16) -> 0 | H16: 0 | I16: 0 | J16: 0 | K16: 0 | L16: 117 | M16: 117 | N16: ='1st Advance Payment'!K20 -> 333333
A17: Professional Services | B17: ='INVOICE 9'!B17 -> 0 | C17: ='INVOICE 9'!C17 -> 0 | D17: 0 | E17: ='INVOICE 9'!E17+'INVOICE 9'!H17 -> 0 | F17: ='INVOICE 9'!F17+'INVOICE 9'!I17 -> 0 | G17: =SUM(E17:F17) -> 0 | H17: 0 | I17: 0 | J17: 0 | K17: 0 | L17: 0 | M17: 0
A18: NGO Subcontracts | B18: ='INVOICE 9'!B18 -> 900000 | C18: ='INVOICE 9'!C18 -> 0 | D18: 900000 | E18: ='INVOICE 9'!E18+'INVOICE 9'!H18 -> 333901 | F18: ='INVOICE 9'!F18+'INVOICE 9'!I18 -> 0 | G18: 333901 | H18: 0 | I18: 0 | J18: 0 | K18: 566099 | L18: 0 | M18: 566099 | N18: 2nd Advance [enter date]
A19: Equipment / Fixed Assets | B19: ='INVOICE 9'!B19 -> 0 | C19: ='INVOICE 9'!C19 -> 0 | D19: 0 | E19: ='INVOICE 9'!E19+'INVOICE 9'!H19 -> 0 | F19: ='INVOICE 9'!F19+'INVOICE 9'!I19 -> 0 | G19: 0 | H19: 0 | I19: 0 | J19: 0 | K19: 0 | L19: 0 | M19: 0 | N19: 0
A20: Data Collection | B20: ='INVOICE 9'!B20 -> 24000 | C20: ='INVOICE 9'!C20 -> 0 | D20: 24000 | E20: ='INVOICE 9'!E20+'INVOICE 9'!H20 -> 10000 | F20: ='INVOICE 9'!F20+'INVOICE 9'!I20 -> 0 | G20: 10000 | H20: 0 | I20: 0 | J20: 0 | K20: 14000 | L20: 0 | M20: 14000
A21: Project Evaluation | B21: ='INVOICE 9'!B21 -> 34000 | C21: ='INVOICE 9'!C21 -> 0 | D21: 34000 | E21: ='INVOICE 9'!E21+'INVOICE 9'!H21 -> 10000 | F21: ='INVOICE 9'!F21+'INVOICE 9'!I21 -> 0 | G21: 10000 | H21: 0 | I21: 0 | J21: 0 | K21: 24000 | L21: 0 | M21: 24000 | N21: 3rd Advance [enter date]
A22: Other | B22: ='INVOICE 9'!B22 -> 0 | C22: ='INVOICE 9'!C22 -> 804 | D22: =SUM(B22:C22) -> 804 | E22: ='INVOICE 9'!E22+'INVOICE 9'!H22 -> 0 | F22: ='INVOICE 9'!F22+'INVOICE 9'!I22 -> 275 | G22: 275 | H22: 0 | I22: 0 | J22: 0 | K22: 0 | L22: 529 | M22: 529 | N22: 0
A23: Indirect Costs | B23: ='INVOICE 9'!B23 -> 0 | C23: ='INVOICE 9'!C23 -> 0 | D23: 0 | E23: ='INVOICE 9'!E23+'INVOICE 9'!H23 -> 0 | F23: ='INVOICE 9'!F23+'INVOICE 9'!I23 -> 0 | G23: 0 | H23: 0 | I23: 0 | J23: 0 | K23: 0 | L23: 0 | M23: 0
A24: TOTAL | B24: =SUM(B15:B23) -> 1000000 | C24: =SUM(C15:C23) -> 252145 | D24: =SUM(D15:D23) -> 1252145 | E24: =SUM(E15:E23) -> 370189 | F24: 66407 | G24: 436596 | H24: 0 | I24: =SUM(I15:I23) -> 0 | J24: 0 | K24: 629811 | L24: 185738 | M24: 815549 | N24: =SUM(N16+N19+N22) -> 333333
A26: Project Income | C26: Income reported to date | D26: ='INVOICE 1'!D26+'INVOICE 10'!I26 -> 0 | F26: Prior allocated income | G26: 0 | H26: This Period | I26: 0 | L26: Unallocated income balance | M26: =D26-G26 -> 0
C28: Grant funds expended to date: | D28: =SUM(E24,H24) -> 370189 | G28: Grant funds claimed this period: | H28: =H24 -> 0 | M28: % total dispursed fund expended to date: | N28: =D28/N24 -> 1.110568111
C29: Match funds to date: | D29: =SUM(F24,I24) -> 66407 | G29: Advance disbursments balance: | H29: =N24-D28 -> -36856 | M29: % of Total Obligated Match to date: | N29: =D29/C24 -> 0.2633683
D33: Expenditure Descriptions - Units / $ Amounts | L33: Comments
A34: Salaries & Benefits | B34: Grant Funds | C34: =H15 -> 0
B35: Match | C35: =I15 -> 0
A36: Services & Supplies | B36: Grant Funds | C36: =H16 -> 0
B37: Match | C37: =I16 -> 0
A38: Professional Services | B38: Grant Funds | C38: =H17 -> 0
B39: Match | C39: =I17 -> 0
A40: NGO Subcontracts | B40: Grant Funds | C40: =H18 -> 0
B41: Match | C41: =I18 -> 0
A42: Equipment / Fixed Assets | B42: Grant Funds | C42: =H19 -> 0
B43: Match | C43: =I19 -> 0
A44: Data Collection | B44: Grant Funds | C44: =H20 -> 0
B45: Match | C45: =I20 -> 0
A46: Project Evaluation | B46: Grant Funds | C46: =H21 -> 0
B47: Match | C47: =I21 -> 0
A48: Other | B48: Grant Funds | C48: =H22 -> 0
B49: Match | C49: =I22 -> 0
A50: Indirect Costs | B50: Grant Funds | C50: =H23 -> 0
B51: Match | C51: =I23 -> 0
A52: Project Income | C52: =I26 -> 0
A53: PERSON PREPARING REPORT | E53: AUTHORIZED FINANCIAL OFFICER | L53: BSCC Supplier Data - Internal Use Only
E54: By checking the box below, I hereby certify that I am the authorized financial officer of the herein named agency. I further certify that I have not violated any of the provisions of Section 1090 of the Government Code in incurring the expenditures reported in this invoice, nor in any other way; that Sections 1090 through 1096 of the Government Code will not be violated in any way in the expenditure of funds pursuant to this invoice; that statement of funds above is true, correct, and in accordance with program provisions in all respects; and that all expenditures submitted after the expiration date of this contract are for the purpose of substantiating obligations legally incurred during the contract period. Furthermore, by submitting this invoice, I acknowledge that it must adhere to all of the requirements in the BSCC Grant Administration Guide, including any updates to the Guide during the term of the grant agreement.
L55: ='INVOICE 1'!L55:O55 -> 12081
A56: Name, Title | L56: Supplier ID
L57: ='INVOICE 1'!L57:O57 -> COUNTYOFSA-022
A58: Phone | L58: Supplier Name
L59: ='INVOICE 1'!L59:O59 -> 701 OCEAN ST RM 520
A60: Email | L60: Address Line 1
L61: ='INVOICE 1'!L61:O61 -> SANTA CRUZ CA 95060
A62: Date | L62: Address Line 2
E65: Name, Title
E67: Phone
E69: Date
A71: BSCC USE ONLY
A72: Date Received: | G72: Approved By:
I73: BSCC Field Representative

Sheet INVOICE 11
A1: STATE OF CALIFORNIA | L1: Purchase Authority | N1: BSCC 5227
A2: BOARD OF STATE AND COMMUNITY CORRECTIONS | L2: Purchase Order: | N2: 2456
A3: Financial Invoice Form: BSCC 201 (Revised 04/2020)
A5: Program: | B5: ='INVOICE 1'!B5 -> Youth Reinvestment Grant | K5: Please Note: The California State Controller's Office will send all checks directly to the address listed in the "BSCC Vendor Data" section at the bottom of this invoice.
A7: Grantee: | B7: ='INVOICE 1'!B7 -> Santa Cruz County | F7: Lead Public Agency: | G7: N/A
A9: Contract #: | B9: ='INVOICE 1'!B9 -> BSCC 591-19 | D9: Term: | E9: ='INVOICE 1'!E9 -> 2019-07-01 | F9: TO | G9: ='INVOICE 1'!G9 -> 2023-02-28 | L9: Invoicing Frequency | M9: Quarterly
A11: Invoice #: | B11: 11 | D11: Reporting Period: | E11: 2022-01-01 | F11: TO | G11: 2022-03-31 | H11: Due: | I11: 2022-05-16 | L11: Final Invoice (Y/N): | M11: No
A13: Line Items | B13: Budget | E13: Prior Expenditures | H13: This Reporting Period | K13: Balance | N13: Advance Disbursements
B14: Grant Funds | C14: Match | D14: TOTAL | E14: Grant Funds | F14: Match | G14: TOTAL | H14: Grant Funds | I14: Match | J14: TOTAL | K14: Grant Funds | L14: Match | M14: TOTAL
A15: Salaries & Benefits | B15: ='INVOICE 10'!B15 -> 42000 | C15: ='INVOICE 10'!C15 -> 251224 | D15: =SUM(B15:C15) -> 293224 | E15: ='INVOICE 10'!E15+'INVOICE 10'!H15 -> 16288 | F15: ='INVOICE 10'!F15+'INVOICE 10'!I15 -> 66132 | G15: =SUM(E15:F15) -> 82420 | H15: 0 | I15: 0 | J15: =SUM(H15:I15) -> 0 | K15: =B15-E15-H15 -> 25712 | L15: 185092 | M15: =SUM(K15:L15) -> 210804 | N15: 1st Advance [10/25/19]
A16: Services & Supplies | B16: ='INVOICE 10'!B16 -> 0 | C16: ='INVOICE 10'!C16 -> 117 | D16: 117 | E16: ='INVOICE 10'!E16+'INVOICE 10'!H16 -> 0 | F16: ='INVOICE 10'!F16+'INVOICE 10'!I16 -> 0 | G16: =SUM(E16:F16) -> 0 | H16: 0 | I16: 0 | J16: 0 | K16: 0 | L16: 117 | M16: 117 | N16: ='1st Advance Payment'!K20 -> 333333
A17: Professional Services | B17: ='INVOICE 10'!B17 -> 0 | C17: ='INVOICE 10'!C17 -> 0 | D17: 0 | E17: ='INVOICE 10'!E17+'INVOICE 10'!H17 -> 0 | F17: ='INVOICE 10'!F17+'INVOICE 10'!I17 -> 0 | G17: =SUM(E17:F17) -> 0 | H17: 0 | I17: 0 | J17: 0 | K17: 0 | L17: 0 | M17: 0
A18: NGO Subcontracts | B18: ='INVOICE 10'!B18 -> 900000 | C18: ='INVOICE 10'!C18 -> 0 | D18: 900000 | E18: ='INVOICE 10'!E18+'INVOICE 10'!H18 -> 333901 | F18: ='INVOICE 10'!F18+'INVOICE 10'!I18 -> 0 | G18: 333901 | H18: 0 | I18: 0 | J18: 0 | K18: 566099 | L18: 0 | M18: 566099 | N18: 2nd Advance [enter date]
A19: Equipment / Fixed Assets | B19: ='INVOICE 10'!B19 -> 0 | C19: ='INVOICE 10'!C19 -> 0 | D19: 0 | E19: ='INVOICE 10'!E19+'INVOICE 10'!H19 -> 0 | F19: ='INVOICE 10'!F19+'INVOICE 10'!I19 -> 0 | G19: 0 | H19: 0 | I19: 0 | J19: 0 | K19: 0 | L19: 0 | M19: 0 | N19: 0
A20: Data Collection | B20: ='INVOICE 10'!B20 -> 24000 | C20: ='INVOICE 10'!C20 -> 0 | D20: 24000 | E20: ='INVOICE 10'!E20+'INVOICE 10'!H20 -> 10000 | F20: ='INVOICE 10'!F20+'INVOICE 10'!I20 -> 0 | G20: 10000 | H20: 0 | I20: 0 | J20: 0 | K20: 14000 | L20: 0 | M20: 14000
A21: Project Evaluation | B21: ='INVOICE 10'!B21 -> 34000 | C21: ='INVOICE 10'!C21 -> 0 | D21: 34000 | E21: ='INVOICE 10'!E21+'INVOICE 10'!H21 -> 10000 | F21: ='INVOICE 10'!F21+'INVOICE 10'!I21 -> 0 | G21: 10000 | H21: 0 | I21: 0 | J21: 0 | K21: 24000 | L21: 0 | M21: 24000 | N21: 3rd Advance [enter date]
A22: Other | B22: ='INVOICE 10'!B22 -> 0 | C22: ='INVOICE 10'!C22 -> 804 | D22: =SUM(B22:C22) -> 804 | E22: ='INVOICE 10'!E22+'INVOICE 10'!H22 -> 0 | F22: ='INVOICE 10'!F22+'INVOICE 10'!I22 -> 275 | G22: 275 | H22: 0 | I22: 0 | J22: 0 | K22: 0 | L22: 529 | M22: 529 | N22: 0
A23: Indirect Costs | B23: ='INVOICE 10'!B23 -> 0 | C23: ='INVOICE 10'!C23 -> 0 | D23: 0 | E23: ='INVOICE 10'!E23+'INVOICE 10'!H23 -> 0 | F23: ='INVOICE 10'!F23+'INVOICE 10'!I23 -> 0 | G23: 0 | H23: 0 | I23: 0 | J23: 0 | K23: 0 | L23: 0 | M23: 0
A24: TOTAL | B24: =SUM(B15:B23) -> 1000000 | C24: =SUM(C15:C23) -> 252145 | D24: =SUM(D15:D23) -> 1252145 | E24: =SUM(E15:E23) -> 370189 | F24: 66407 | G24: 436596 | H24: 0 | I24: =SUM(I15:I23) -> 0 | J24: 0 | K24: 629811 | L24: 185738 | M24: 815549 | N24: =SUM(N16+N19+N22) -> 333333
A26: Project Income | C26: Income reported to date | D26: ='INVOICE 1'!D26+'INVOICE 11'!I26 -> 0 | F26: Prior allocated income | G26: 0 | H26: This Period | I26: 0 | L26: Unallocated income balance | M26: =D26-G26 -> 0
C28: Grant funds expended to date: | D28: =SUM(E24,H24) -> 370189 | G28: Grant funds claimed this period: | H28: =H24 -> 0 | M28: % total dispursed fund expended to date: | N28: =D28/N24 -> 1.110568111
C29: Match funds to date: | D29: =SUM(F24,I24) -> 66407 | G29: Advance disbursments balance: | H29: =N24-D28 -> -36856 | M29: % of Total Obligated Match to date: | N29: =D29/C24 -> 0.2633683
D33: Expenditure Descriptions - Units / $ Amounts | L33: Comments
A34: Salaries & Benefits | B34: Grant Funds | C34: =H15 -> 0
B35: Match | C35: =I15 -> 0
A36: Services & Supplies | B36: Grant Funds | C36: =H16 -> 0
B37: Match | C37: =I16 -> 0
A38: Professional Services | B38: Grant Funds | C38: =H17 -> 0
B39: Match | C39: =I17 -> 0
A40: NGO Subcontracts | B40: Grant Funds | C40: =H18 -> 0
B41: Match | C41: =I18 -> 0
A42: Equipment / Fixed Assets | B42: Grant Funds | C42: =H19 -> 0
B43: Match | C43: =I19 -> 0
A44: Data Collection | B44: Grant Funds | C44: =H20 -> 0
B45: Match | C45: =I20 -> 0
A46: Project Evaluation | B46: Grant Funds | C46: =H21 -> 0
B47: Match | C47: =I21 -> 0
A48: Other | B48: Grant Funds | C48: =H22 -> 0
B49: Match | C49: =I22 -> 0
A50: Indirect Costs | B50: Grant Funds | C50: =H23 -> 0
B51: Match | C51: =I23 -> 0
A52: Project Income | C52: =I26 -> 0
A53: PERSON PREPARING REPORT | E53: AUTHORIZED FINANCIAL OFFICER | L53: BSCC Supplier Data - Internal Use Only
E54: By checking the box below, I hereby certify that I am the authorized financial officer of the herein named agency. I further certify that I have not violated any of the provisions of Section 1090 of the Government Code in incurring the expenditures reported in this invoice, nor in any other way; that Sections 1090 through 1096 of the Government Code will not be violated in any way in the expenditure of funds pursuant to this invoice; that statement of funds above is true, correct, and in accordance with program provisions in all respects; and that all expenditures submitted after the expiration date of this contract are for the purpose of substantiating obligations legally incurred during the contract period. Furthermore, by submitting this invoice, I acknowledge that it must adhere to all of the requirements in the BSCC Grant Administration Guide, including any updates to the Guide during the term of the grant agreement.
L55: ='INVOICE 1'!L55:O55 -> 12081
A56: Name, Title | L56: Supplier ID
L57: ='INVOICE 1'!L57:O57 -> COUNTYOFSA-022
A58: Phone | L58: Supplier Name
L59: ='INVOICE 1'!L59:O59 -> 701 OCEAN ST RM 520
A60: Email | L60: Address Line 1
L61: ='INVOICE 1'!L61:O61 -> SANTA CRUZ CA 95060
A62: Date | L62: Address Line 2
E65: Name, Title
E67: Phone
E69: Date
A71: BSCC USE ONLY
A72: Date Received: | G72: Approved By:
I73: BSCC Field Representative

Sheet INVOICE 12
A1: STATE OF CALIFORNIA | L1: Purchase Authority | N1: BSCC 5227
A2: BOARD OF STATE AND COMMUNITY CORRECTIONS | L2: Purchase Order: | N2: 2456
A3: Financial Invoice Form: BSCC 201 (Revised 04/2020)
A5: Program: | B5: ='INVOICE 1'!B5 -> Youth Reinvestment Grant | K5: Please Note: The California State Controller's Office will send all checks directly to the address listed in the "BSCC Vendor Data" section at the bottom of this invoice.
A7: Grantee: | B7: ='INVOICE 1'!B7 -> Santa Cruz County | F7: Lead Public Agency: | G7: N/A
A9: Contract #: | B9: ='INVOICE 1'!B9 -> BSCC 591-19 | D9: Term: | E9: ='INVOICE 1'!E9 -> 2019-07-01 | F9: TO | G9: ='INVOICE 1'!G9 -> 2023-02-28 | L9: Invoicing Frequency | M9: Quarterly
A11: Invoice #: | B11: 12 | D11: Reporting Period: | E11: 2022-04-01 | F11: TO | G11: 2022-06-30 | H11: Due: | I11: 2022-08-15 | L11: Final Invoice (Y/N): | M11: No
A13: Line Items | B13: Budget | E13: Prior Expenditures | H13: This Reporting Period | K13: Balance | N13: Advance Disbursements
B14: Grant Funds | C14: Match | D14: TOTAL | E14: Grant Funds | F14: Match | G14: TOTAL | H14: Grant Funds | I14: Match | J14: TOTAL | K14: Grant Funds | L14: Match | M14: TOTAL
A15: Salaries & Benefits | B15: ='INVOICE 11'!B15 -> 42000 | C15: ='INVOICE 11'!C15 -> 251224 | D15: =SUM(B15:C15) -> 293224 | E15: ='INVOICE 11'!E15+'INVOICE 11'!H15 -> 16288 | F15: ='INVOICE 11'!F15+'INVOICE 11'!I15 -> 66132 | G15: =SUM(E15:F15) -> 82420 | H15: 0 | I15: 0 | J15: =SUM(H15:I15) -> 0 | K15: =B15-E15-H15 -> 25712 | L15: 185092 | M15: =SUM(K15:L15) -> 210804 | N15: 1st Advance [10/25/19]
A16: Services & Supplies | B16: ='INVOICE 11'!B16 -> 0 | C16: ='INVOICE 11'!C16 -> 117 | D16: 117 | E16: ='INVOICE 11'!E16+'INVOICE 11'!H16 -> 0 | F16: ='INVOICE 11'!F16+'INVOICE 11'!I16 -> 0 | G16: =SUM(E16:F16) -> 0 | H16: 0 | I16: 0 | J16: 0 | K16: 0 | L16: 117 | M16: 117 | N16: ='1st Advance Payment'!K20 -> 333333
A17: Professional Services | B17: ='INVOICE 11'!B17 -> 0 | C17: ='INVOICE 11'!C17 -> 0 | D17: 0 | E17: ='INVOICE 11'!E17+'INVOICE 11'!H17 -> 0 | F17: ='INVOICE 11'!F17+'INVOICE 11'!I17 -> 0 | G17: =SUM(E17:F17) -> 0 | H17: 0 | I17: 0 | J17: 0 | K17: 0 | L17: 0 | M17: 0
A18: NGO Subcontracts | B18: ='INVOICE 11'!B18 -> 900000 | C18: ='INVOICE 11'!C18 -> 0 | D18: 900000 | E18: ='INVOICE 11'!E18+'INVOICE 11'!H18 -> 333901 | F18: ='INVOICE 11'!F18+'INVOICE 11'!I18 -> 0 | G18: 333901 | H18: 0 | I18: 0 | J18: 0 | K18: 566099 | L18: 0 | M18: 566099 | N18: 2nd Advance [enter date]
A19: Equipment / Fixed Assets | B19: ='INVOICE 11'!B19 -> 0 | C19: ='INVOICE 11'!C19 -> 0 | D19: 0 | E19: ='INVOICE 11'!E19+'INVOICE 11'!H19 -> 0 | F19: ='INVOICE 11'!F19+'INVOICE 11'!I19 -> 0 | G19: 0 | H19: 0 | I19: 0 | J19: 0 | K19: 0 | L19: 0 | M19: 0 | N19: 0
A20: Data Collection | B20: ='INVOICE 11'!B20 -> 24000 | C20: ='INVOICE 11'!C20 -> 0 | D20: 24000 | E20: ='INVOICE 11'!E20+'INVOICE 11'!H20 -> 10000 | F20: ='INVOICE 11'!F20+'INVOICE 11'!I20 -> 0 | G20: 10000 | H20: 0 | I20: 0 | J20: 0 | K20: 14000 | L20: 0 | M20: 14000
A21: Project Evaluation | B21: ='INVOICE 11'!B21 -> 34000 | C21: ='INVOICE 11'!C21 -> 0 | D21: 34000 | E21: ='INVOICE 11'!E21+'INVOICE 11'!H21 -> 10000 | F21: ='INVOICE 11'!F21+'INVOICE 11'!I21 -> 0 | G21: 10000 | H21: 0 | I21: 0 | J21: 0 | K21: 24000 | L21: 0 | M21: 24000 | N21: 3rd Advance [enter date]
A22: Other | B22: ='INVOICE 11'!B22 -> 0 | C22: ='INVOICE 11'!C22 -> 804 | D22: =SUM(B22:C22) -> 804 | E22: ='INVOICE 11'!E22+'INVOICE 11'!H22 -> 0 | F22: ='INVOICE 11'!F22+'INVOICE 11'!I22 -> 275 | G22: 275 | H22: 0 | I22: 0 | J22: 0 | K22: 0 | L22: 529 | M22: 529 | N22: 0
A23: Indirect Costs | B23: ='INVOICE 11'!B23 -> 0 | C23: ='INVOICE 11'!C23 -> 0 | D23: 0 | E23: ='INVOICE 11'!E23+'INVOICE 11'!H23 -> 0 | F23: ='INVOICE 11'!F23+'INVOICE 11'!I23 -> 0 | G23: 0 | H23: 0 | I23: 0 | J23: 0 | K23: 0 | L23: 0 | M23: 0
A24: TOTAL | B24: =SUM(B15:B23) -> 1000000 | C24: =SUM(C15:C23) -> 252145 | D24: =SUM(D15:D23) -> 1252145 | E24: =SUM(E15:E23) -> 370189 | F24: 66407 | G24: 436596 | H24: 0 | I24: =SUM(I15:I23) -> 0 | J24: 0 | K24: 629811 | L24: 185738 | M24: 815549 | N24: =SUM(N16+N19+N22) -> 333333
A26: Project Income | C26: Income reported to date | D26: ='INVOICE 1'!D26+'INVOICE 12'!I26 -> 0 | F26: Prior allocated income | G26: 0 | H26: This Period | I26: 0 | L26: Unallocated income balance | M26: =D26-G26 -> 0
C28: Grant funds expended to date: | D28: =SUM(E24,H24) -> 370189 | G28: Grant funds claimed this period: | H28: =H24 -> 0 | M28: % total dispursed fund expended to date: | N28: =D28/N24 -> 1.110568111
C29: Match funds to date: | D29: =SUM(F24,I24) -> 66407 | G29: Advance disbursments balance: | H29: =N24-D28 -> -36856 | M29: % of Total Obligated Match to date: | N29: =D29/C24 -> 0.2633683
D33: Expenditure Descriptions - Units / $ Amounts | L33: Comments
A34: Salaries & Benefits | B34: Grant Funds | C34: =H15 -> 0
B35: Match | C35: =I15 -> 0
A36: Services & Supplies | B36: Grant Funds | C36: =H16 -> 0
B37: Match | C37: =I16 -> 0
A38: Professional Services | B38: Grant Funds | C38: =H17 -> 0
B39: Match | C39: =I17 -> 0
A40: NGO Subcontracts | B40: Grant Funds | C40: =H18 -> 0
B41: Match | C41: =I18 -> 0
A42: Equipment / Fixed Assets | B42: Grant Funds | C42: =H19 -> 0
B43: Match | C43: =I19 -> 0
A44: Data Collection | B44: Grant Funds | C44: =H20 -> 0
B45: Match | C45: =I20 -> 0
A46: Project Evaluation | B46: Grant Funds | C46: =H21 -> 0
B47: Match | C47: =I21 -> 0
A48: Other | B48: Grant Funds | C48: =H22 -> 0
B49: Match | C49: =I22 -> 0
A50: Indirect Costs | B50: Grant Funds | C50: =H23 -> 0
B51: Match | C51: =I23 -> 0
A52: Project Income | C52: =I26 -> 0
A53: PERSON PREPARING REPORT | E53: AUTHORIZED FINANCIAL OFFICER | L53: BSCC Supplier Data - Internal Use Only
E54: By checking the box below, I hereby certify that I am the authorized financial officer of the herein named agency. I further certify that I have not violated any of the provisions of Section 1090 of the Government Code in incurring the expenditures reported in this invoice, nor in any other way; that Sections 1090 through 1096 of the Government Code will not be violated in any way in the expenditure of funds pursuant to this invoice; that statement of funds above is true, correct, and in accordance with program provisions in all respects; and that all expenditures submitted after the expiration date of this contract are for the purpose of substantiating obligations legally incurred during the contract period. Furthermore, by submitting this invoice, I acknowledge that it must adhere to all of the requirements in the BSCC Grant Administration Guide, including any updates to the Guide during the term of the grant agreement.
L55: ='INVOICE 1'!L55:O55 -> 12081
A56: Name, Title | L56: Supplier ID
L57: ='INVOICE 1'!L57:O57 -> COUNTYOFSA-022
A58: Phone | L58: Supplier Name
L59: ='INVOICE 1'!L59:O59 -> 701 OCEAN ST RM 520
A60: Email | L60: Address Line 1
L61: ='INVOICE 1'!L61:O61 -> SANTA CRUZ CA 95060
A62: Date | L62: Address Line 2
E65: Name, Title
E67: Phone
E69: Date
A71: BSCC USE ONLY
A72: Date Received: | G72: Approved By:
I73: BSCC Field Representative

Sheet INVOICE 13
A1: STATE OF CALIFORNIA | L1: Purchase Authority | N1: BSCC 5227
A2: BOARD OF STATE AND COMMUNITY CORRECTIONS | L2: Purchase Order: | N2: 2456
A3: Financial Invoice Form: BSCC 201 (Revised 04/2020)
A5: Program: | B5: ='INVOICE 1'!B5 -> Youth Reinvestment Grant | K5: Please Note: The California State Controller's Office will send all checks directly to the address listed in the "BSCC Vendor Data" section at the bottom of this invoice.
A7: Grantee: | B7: ='INVOICE 1'!B7 -> Santa Cruz County | F7: Lead Public Agency: | G7: N/A
A9: Contract #: | B9: ='INVOICE 1'!B9 -> BSCC 591-19 | D9: Term: | E9: ='INVOICE 1'!E9 -> 2019-07-01 | F9: TO | G9: ='INVOICE 1'!G9 -> 2023-02-28 | L9: Invoicing Frequency | M9: Quarterly
A11: Invoice #: | B11: 13 | D11: Reporting Period: | E11: 2022-07-01 | F11: TO | G11: 2022-09-30 | H11: Due: | I11: 2022-11-14 | L11: Final Invoice (Y/N): | M11: No
A13: Line Items | B13: Budget | E13: Prior Expenditures | H13: This Reporting Period | K13: Balance | N13: Advance Disbursements
B14: Grant Funds | C14: Match | D14: TOTAL | E14: Grant Funds | F14: Match | G14: TOTAL | H14: Grant Funds | I14: Match | J14: TOTAL | K14: Grant Funds | L14: Match | M14: TOTAL
A15: Salaries & Benefits | B15: ='INVOICE 12'!B15 -> 42000 | C15: ='INVOICE 12'!C15 -> 251224 | D15: =SUM(B15:C15) -> 293224 | E15: ='INVOICE 12'!E15+'INVOICE 12'!H15 -> 16288 | F15: ='INVOICE 12'!F15+'INVOICE 12'!I15 -> 66132 | G15: =SUM(E15:F15) -> 82420 | H15: 0 | I15: 0 | J15: =SUM(H15:I15) -> 0 | K15: =B15-E15-H15 -> 25712 | L15: 185092 | M15: =SUM(K15:L15) -> 210804 | N15: 1st Advance [10/25/19]
A16: Services & Supplies | B16: ='INVOICE 12'!B16 -> 0 | C16: ='INVOICE 12'!C16 -> 117 | D16: 117 | E16: ='INVOICE 12'!E16+'INVOICE 12'!H16 -> 0 | F16: ='INVOICE 12'!F16+'INVOICE 12'!I16 -> 0 | G16: =SUM(E16:F16) -> 0 | H16: 0 | I16: 0 | J16: 0 | K16: 0 | L16: 117 | M16: 117 | N16: ='1st Advance Payment'!K20 -> 333333
A17: Professional Services | B17: ='INVOICE 12'!B17 -> 0 | C17: ='INVOICE 12'!C17 -> 0 | D17: 0 | E17: ='INVOICE 12'!E17+'INVOICE 12'!H17 -> 0 | F17: ='INVOICE 12'!F17+'INVOICE 12'!I17 -> 0 | G17: =SUM(E17:F17) -> 0 | H17: 0 | I17: 0 | J17: 0 | K17: 0 | L17: 0 | M17: 0
A18: NGO Subcontracts | B18: ='INVOICE 12'!B18 -> 900000 | C18: ='INVOICE 12'!C18 -> 0 | D18: 900000 | E18: ='INVOICE 12'!E18+'INVOICE 12'!H18 -> 333901 | F18: ='INVOICE 12'!F18+'INVOICE 12'!I18 -> 0 | G18: 333901 | H18: 0 | I18: 0 | J18: 0 | K18: 566099 | L18: 0 | M18: 566099 | N18: 2nd Advance [enter date]
A19: Equipment / Fixed Assets | B19: ='INVOICE 12'!B19 -> 0 | C19: ='INVOICE 12'!C19 -> 0 | D19: 0 | E19: ='INVOICE 12'!E19+'INVOICE 12'!H19 -> 0 | F19: ='INVOICE 12'!F19+'INVOICE 12'!I19 -> 0 | G19: 0 | H19: 0 | I19: 0 | J19: 0 | K19: 0 | L19: 0 | M19: 0 | N19: 0
A20: Data Collection | B20: ='INVOICE 12'!B20 -> 24000 | C20: ='INVOICE 12'!C20 -> 0 | D20: 24000 | E20: ='INVOICE 12'!E20+'INVOICE 12'!H20 -> 10000 | F20: ='INVOICE 12'!F20+'INVOICE 12'!I20 -> 0 | G20: 10000 | H20: 0 | I20: 0 | J20: 0 | K20: 14000 | L20: 0 | M20: 14000
A21: Project Evaluation | B21: ='INVOICE 12'!B21 -> 34000 | C21: ='INVOICE 12'!C21 -> 0 | D21: 34000 | E21: ='INVOICE 12'!E21+'INVOICE 12'!H21 -> 10000 | F21: ='INVOICE 12'!F21+'INVOICE 12'!I21 -> 0 | G21: 10000 | H21: 0 | I21: 0 | J21: 0 | K21: 24000 | L21: 0 | M21: 24000 | N21: 3rd Advance [enter date]
A22: Other | B22: ='INVOICE 12'!B22 -> 0 | C22: ='INVOICE 12'!C22 -> 804 | D22: =SUM(B22:C22) -> 804 | E22: ='INVOICE 12'!E22+'INVOICE 12'!H22 -> 0 | F22: ='INVOICE 12'!F22+'INVOICE 12'!I22 -> 275 | G22: 275 | H22: 0 | I22: 0 | J22: 0 | K22: 0 | L22: 529 | M22: 529 | N22: 0
A23: Indirect Costs | B23: ='INVOICE 12'!B23 -> 0 | C23: ='INVOICE 12'!C23 -> 0 | D23: 0 | E23: ='INVOICE 12'!E23+'INVOICE 12'!H23 -> 0 | F23: ='INVOICE 12'!F23+'INVOICE 12'!I23 -> 0 | G23: 0 | H23: 0 | I23: 0 | J23: 0 | K23: 0 | L23: 0 | M23: 0
A24: TOTAL | B24: =SUM(B15:B23) -> 1000000 | C24: =SUM(C15:C23) -> 252145 | D24: =SUM(D15:D23) -> 1252145 | E24: =SUM(E15:E23) -> 370189 | F24: 66407 | G24: 436596 | H24: 0 | I24: =SUM(I15:I23) -> 0 | J24: 0 | K24: 629811 | L24: 185738 | M24: 815549 | N24: =SUM(N16+N19+N22) -> 333333
A26: Project Income | C26: Income reported to date | D26: ='INVOICE 1'!D26+'INVOICE 13'!I26 -> 0 | F26: Prior allocated income | G26: 0 | H26: This Period | I26: 0 | L26: Unallocated income balance | M26: =D26-G26 -> 0
C28: Grant funds expended to date: | D28: =SUM(E24,H24) -> 370189 | G28: Grant funds claimed this period: | H28: =H24 -> 0 | M28: % total dispursed fund expended to date: | N28: =D28/N24 -> 1.110568111
C29: Match funds to date: | D29: =SUM(F24,I24) -> 66407 | G29: Advance disbursments balance: | H29: =N24-D28 -> -36856 | M29: % of Total Obligated Match to date: | N29: =D29/C24 -> 0.2633683
D33: Expenditure Descriptions - Units / $ Amounts | L33: Comments
A34: Salaries & Benefits | B34: Grant Funds | C34: =H15 -> 0
B35: Match | C35: =I15 -> 0
A36: Services & Supplies | B36: Grant Funds | C36: =H16 -> 0
B37: Match | C37: =I16 -> 0
A38: Professional Services | B38: Grant Funds | C38: =H17 -> 0
B39: Match | C39: =I17 -> 0
A40: NGO Subcontracts | B40: Grant Funds | C40: =H18 -> 0
B41: Match | C41: =I18 -> 0
A42: Equipment / Fixed Assets | B42: Grant Funds | C42: =H19 -> 0
B43: Match | C43: =I19 -> 0
A44: Data Collection | B44: Grant Funds | C44: =H20 -> 0
B45: Match | C45: =I20 -> 0
A46: Project Evaluation | B46: Grant Funds | C46: =H21 -> 0
B47: Match | C47: =I21 -> 0
A48: Other | B48: Grant Funds | C48: =H22 -> 0
B49: Match | C49: =I22 -> 0
A50: Indirect Costs | B50: Grant Funds | C50: =H23 -> 0
B51: Match | C51: =I23 -> 0
A52: Project Income | C52: =I26 -> 0
A53: PERSON PREPARING REPORT | E53: AUTHORIZED FINANCIAL OFFICER | L53: BSCC Supplier Data - Internal Use Only
E54: By checking the box below, I hereby certify that I am the authorized financial officer of the herein named agency. I further certify that I have not violated any of the provisions of Section 1090 of the Government Code in incurring the expenditures reported in this invoice, nor in any other way; that Sections 1090 through 1096 of the Government Code will not be violated in any way in the expenditure of funds pursuant to this invoice; that statement of funds above is true, correct, and in accordance with program provisions in all respects; and that all expenditures submitted after the expiration date of this contract are for the purpose of substantiating obligations legally incurred during the contract period. Furthermore, by submitting this invoice, I acknowledge that it must adhere to all of the requirements in the BSCC Grant Administration Guide, including any updates to the Guide during the term of the grant agreement.
L55: ='INVOICE 1'!L55:O55 -> 12081
A56: Name, Title | L56: Supplier ID
L57: ='INVOICE 1'!L57:O57 -> COUNTYOFSA-022
A58: Phone | L58: Supplier Name
L59: ='INVOICE 1'!L59:O59 -> 701 OCEAN ST RM 520
A60: Email | L60: Address Line 1
L61: ='INVOICE 1'!L61:O61 -> SANTA CRUZ CA 95060
A62: Date | L62: Address Line 2
E65: Name, Title
E67: Phone
E69: Date
A71: BSCC USE ONLY
A72: Date Received: | G72: Approved By:
I73: BSCC Field Representative

Sheet INVOICE 14
A1: STATE OF CALIFORNIA | L1: Purchase Authority | N1: BSCC 5227
A2: BOARD OF STATE AND COMMUNITY CORRECTIONS | L2: Purchase Order: | N2: 2456
A3: Financial Invoice Form: BSCC 201 (Revised 04/2020)
A5: Program: | B5: ='INVOICE 1'!B5 -> Youth Reinvestment Grant | K5: Please Note: The California State Controller's Office will send all checks directly to the address listed in the "BSCC Vendor Data" section at the bottom of this invoice.
A7: Grantee: | B7: ='INVOICE 1'!B7 -> Santa Cruz County | F7: Lead Public Agency: | G7: N/A
A9: Contract #: | B9: ='INVOICE 1'!B9 -> BSCC 591-19 | D9: Term: | E9: ='INVOICE 1'!E9 -> 2019-07-01 | F9: TO | G9: ='INVOICE 1'!G9 -> 2023-02-28 | L9: Invoicing Frequency | M9: Quarterly
A11: Invoice #: | B11: 14 | D11: Reporting Period: | E11: 2022-10-01 | F11: TO | G11: 2022-12-31 | H11: Due: | I11: 2023-02-14 | L11: Final Invoice (Y/N): | M11: No
A13: Line Items | B13: Budget | E13: Prior Expenditures | H13: This Reporting Period | K13: Balance | N13: Advance Disbursements
B14: Grant Funds | C14: Match | D14: TOTAL | E14: Grant Funds | F14: Match | G14: TOTAL | H14: Grant Funds | I14: Match | J14: TOTAL | K14: Grant Funds | L14: Match | M14: TOTAL
A15: Salaries & Benefits | B15: ='INVOICE 13'!B15 -> 42000 | C15: ='INVOICE 13'!C15 -> 251224 | D15: =SUM(B15:C15) -> 293224 | E15: ='INVOICE 13'!E15+'INVOICE 13'!H15 -> 16288 | F15: ='INVOICE 13'!F15+'INVOICE 13'!I15 -> 66132 | G15: =SUM(E15:F15) -> 82420 | H15: 0 | I15: 0 | J15: =SUM(H15:I15) -> 0 | K15: =B15-E15-H15 -> 25712 | L15: 185092 | M15: =SUM(K15:L15) -> 210804 | N15: 1st Advance [10/25/19]
A16: Services & Supplies | B16: ='INVOICE 13'!B16 -> 0 | C16: ='INVOICE 13'!C16 -> 117 | D16: 117 | E16: ='INVOICE 13'!E16+'INVOICE 13'!H16 -> 0 | F16: ='INVOICE 13'!F16+'INVOICE 13'!I16 -> 0 | G16: =SUM(E16:F16) -> 0 | H16: 0 | I16: 0 | J16: 0 | K16: 0 | L16: 117 | M16: 117 | N16: ='1st Advance Payment'!K20 -> 333333
A17: Professional Services | B17: ='INVOICE 13'!B17 -> 0 | C17: ='INVOICE 13'!C17 -> 0 | D17: 0 | E17: ='INVOICE 13'!E17+'INVOICE 13'!H17 -> 0 | F17: ='INVOICE 13'!F17+'INVOICE 13'!I17 -> 0 | G17: =SUM(E17:F17) -> 0 | H17: 0 | I17: 0 | J17: 0 | K17: 0 | L17: 0 | M17: 0
A18: NGO Subcontracts | B18: ='INVOICE 13'!B18 -> 900000 | C18: ='INVOICE 13'!C18 -> 0 | D18: 900000 | E18: ='INVOICE 13'!E18+'INVOICE 13'!H18 -> 333901 | F18: ='INVOICE 13'!F18+'INVOICE 13'!I18 -> 0 | G18: 333901 | H18: 0 | I18: 0 | J18: 0 | K18: 566099 | L18: 0 | M18: 566099 | N18: 2nd Advance [enter date]
A19: Equipment / Fixed Assets | B19: ='INVOICE 13'!B19 -> 0 | C19: ='INVOICE 13'!C19 -> 0 | D19: 0 | E19: ='INVOICE 13'!E19+'INVOICE 13'!H19 -> 0 | F19: ='INVOICE 13'!F19+'INVOICE 13'!I19 -> 0 | G19: 0 | H19: 0 | I19: 0 | J19: 0 | K19: 0 | L19: 0 | M19: 0 | N19: 0
A20: Data Collection | B20: ='INVOICE 13'!B20 -> 24000 | C20: ='INVOICE 13'!C20 -> 0 | D20: 24000 | E20: ='INVOICE 13'!E20+'INVOICE 13'!H20 -> 10000 | F20: ='INVOICE 13'!F20+'INVOICE 13'!I20 -> 0 | G20: 10000 | H20: 0 | I20: 0 | J20: 0 | K20: 14000 | L20: 0 | M20: 14000
A21: Project Evaluation | B21: ='INVOICE 13'!B21 -> 34000 | C21: ='INVOICE 13'!C21 -> 0 | D21: 34000 | E21: ='INVOICE 13'!E21+'INVOICE 13'!H21 -> 10000 | F21: ='INVOICE 13'!F21+'INVOICE 13'!I21 -> 0 | G21: 10000 | H21: 0 | I21: 0 | J21: 0 | K21: 24000 | L21: 0 | M21: 24000 | N21: 3rd Advance [enter date]
A22: Other | B22: ='INVOICE 13'!B22 -> 0 | C22: ='INVOICE 13'!C22 -> 804 | D22: =SUM(B22:C22) -> 804 | E22: ='INVOICE 13'!E22+'INVOICE 13'!H22 -> 0 | F22: ='INVOICE 13'!F22+'INVOICE 13'!I22 -> 275 | G22: 275 | H22: 0 | I22: 0 | J22: 0 | K22: 0 | L22: 529 | M22: 529 | N22: 0
A23: Indirect Costs | B23: ='INVOICE 13'!B23 -> 0 | C23: ='INVOICE 13'!C23 -> 0 | D23: 0 | E23: ='INVOICE 13'!E23+'INVOICE 13'!H23 -> 0 | F23: ='INVOICE 13'!F23+'INVOICE 13'!I23 -> 0 | G23: 0 | H23: 0 | I23: 0 | J23: 0 | K23: 0 | L23: 0 | M23: 0
A24: TOTAL | B24: =SUM(B15:B23) -> 1000000 | C24: =SUM(C15:C23) -> 252145 | D24: =SUM(D15:D23) -> 1252145 | E24: =SUM(E15:E23) -> 370189 | F24: 66407 | G24: 436596 | H24: 0 | I24: =SUM(I15:I23) -> 0 | J24: 0 | K24: 629811 | L24: 185738 | M24: 815549 | N24: =SUM(N16+N19+N22) -> 333333
A26: Project Income | C26: Income reported to date | D26: ='INVOICE 1'!D26+'INVOICE 14'!I26 -> 0 | F26: Prior allocated income | G26: 0 | H26: This Period | I26: 0 | L26: Unallocated income balance | M26: =D26-G26 -> 0
C28: Grant funds expended to date: | D28: =SUM(E24,H24) -> 370189 | G28: Grant funds claimed this period: | H28: =H24 -> 0 | M28: % total dispursed fund expended to date: | N28: =D28/N24 -> 1.110568111
C29: Match funds to date: | D29: =SUM(F24,I24) -> 66407 | G29: Advance disbursments balance: | H29: =N24-D28 -> -36856 | M29: % of Total Obligated Match to date: | N29: =D29/C24 -> 0.2633683
D33: Expenditure Descriptions - Units / $ Amounts | L33: Comments
A34: Salaries & Benefits | B34: Grant Funds | C34: =H15 -> 0
B35: Match | C35: =I15 -> 0
A36: Services & Supplies | B36: Grant Funds | C36: =H16 -> 0
B37: Match | C37: =I16 -> 0
A38: Professional Services | B38: Grant Funds | C38: =H17 -> 0
B39: Match | C39: =I17 -> 0
A40: NGO Subcontracts | B40: Grant Funds | C40: =H18 -> 0
B41: Match | C41: =I18 -> 0
A42: Equipment / Fixed Assets | B42: Grant Funds | C42: =H19 -> 0
B43: Match | C43: =I19 -> 0
A44: Data Collection | B44: Grant Funds | C44: =H20 -> 0
B45: Match | C45: =I20 -> 0
A46: Project Evaluation | B46: Grant Funds | C46: =H21 -> 0
B47: Match | C47: =I21 -> 0
A48: Other | B48: Grant Funds | C48: =H22 -> 0
B49: Match | C49: =I22 -> 0
A50: Indirect Costs | B50: Grant Funds | C50: =H23 -> 0
B51: Match | C51: =I23 -> 0
A52: Project Income | C52: =I26 -> 0
A53: PERSON PREPARING REPORT | E53: AUTHORIZED FINANCIAL OFFICER | L53: BSCC Supplier Data - Internal Use Only
E54: By checking the box below, I hereby certify that I am the authorized financial officer of the herein named agency. I further certify that I have not violated any of the provisions of Section 1090 of the Government Code in incurring the expenditures reported in this invoice, nor in any other way; that Sections 1090 through 1096 of the Government Code will not be violated in any way in the expenditure of funds pursuant to this invoice; that statement of funds above is true, correct, and in accordance with program provisions in all respects; and that all expenditures submitted after the expiration date of this contract are for the purpose of substantiating obligations legally incurred during the contract period. Furthermore, by submitting this invoice, I acknowledge that it must adhere to all of the requirements in the BSCC Grant Administration Guide, including any updates to the Guide during the term of the grant agreement.
L55: ='INVOICE 1'!L55:O55 -> 12081
A56: Name, Title | L56: Supplier ID
L57: ='INVOICE 1'!L57:O57 -> COUNTYOFSA-022
A58: Phone | L58: Supplier Name
L59: ='INVOICE 1'!L59:O59 -> 701 OCEAN ST RM 520
A60: Email | L60: Address Line 1
L61: ='INVOICE 1'!L61:O61 -> SANTA CRUZ CA 95060
A62: Date | L62: Address Line 2
E65: Name, Title
E67: Phone
E69: Date
A71: BSCC USE ONLY
A72: Date Received: | G72: Approved By:
I73: BSCC Field Representative

Sheet INVOICE 15
A1: STATE OF CALIFORNIA | L1: Purchase Authority | N1: BSCC 5227
A2: BOARD OF STATE AND COMMUNITY CORRECTIONS | L2: Purchase Order: | N2: 2456
A3: Financial Invoice Form: BSCC 201 (Revised 04/2020)
A5: Program: | B5: ='INVOICE 1'!B5 -> Youth Reinvestment Grant | K5: Please Note: The California State Controller's Office will send all checks directly to the address listed in the "BSCC Vendor Data" section at the bottom of this invoice.
A7: Grantee: | B7: ='INVOICE 1'!B7 -> Santa Cruz County | F7: Lead Public Agency: | G7: N/A
A9: Contract #: | B9: ='INVOICE 1'!B9 -> BSCC 591-19 | D9: Term: | E9: ='INVOICE 1'!E9 -> 2019-07-01 | F9: TO | G9: ='INVOICE 1'!G9 -> 2023-02-28 | L9: Invoicing Frequency | M9: Quarterly
A11: Invoice #: | B11: 15 | D11: Reporting Period: | E11: 2023-01-01 | F11: TO | G11: 2023-02-28 | H11: Due: | I11: 2023-04-14 | L11: Final Invoice (Y/N): | M11: No
A13: Line Items | B13: Budget | E13: Prior Expenditures | H13: This Reporting Period | K13: Balance | N13: Advance Disbursements
B14: Grant Funds | C14: Match | D14: TOTAL | E14: Grant Funds | F14: Match | G14: TOTAL | H14: Grant Funds | I14: Match | J14: TOTAL | K14: Grant Funds | L14: Match | M14: TOTAL
A15: Salaries & Benefits | B15: ='INVOICE 14'!B15 -> 42000 | C15: ='INVOICE 14'!C15 -> 251224 | D15: =SUM(B15:C15) -> 293224 | E15: ='INVOICE 14'!E15+'INVOICE 14'!H15 -> 16288 | F15: ='INVOICE 14'!F15+'INVOICE 14'!I15 -> 66132 | G15: =SUM(E15:F15) -> 82420 | H15: 0 | I15: 0 | J15: =SUM(H15:I15) -> 0 | K15: =B15-E15-H15 -> 25712 | L15: 185092 | M15: =SUM(K15:L15) -> 210804 | N15: 1st Advance [10/25/19]
A16: Services & Supplies | B16: ='INVOICE 14'!B16 -> 0 | C16: ='INVOICE 14'!C16 -> 117 | D16: 117 | E16: ='INVOICE 14'!E16+'INVOICE 14'!H16 -> 0 | F16: ='INVOICE 14'!F16+'INVOICE 14'!I16 -> 0 | G16: =SUM(E16:F16) -> 0 | H16: 0 | I16: 0 | J16: 0 | K16: 0 | L16: 117 | M16: 117 | N16: ='1st Advance Payment'!K20 -> 333333
A17: Professional Services | B17: ='INVOICE 14'!B17 -> 0 | C17: ='INVOICE 14'!C17 -> 0 | D17: 0 | E17: ='INVOICE 14'!E17+'INVOICE 14'!H17 -> 0 | F17: ='INVOICE 14'!F17+'INVOICE 14'!I17 -> 0 | G17: =SUM(E17:F17) -> 0 | H17: 0 | I17: 0 | J17: 0 | K17: 0 | L17: 0 | M17: 0
A18: NGO Subcontracts | B18: ='INVOICE 14'!B18 -> 900000 | C18: ='INVOICE 14'!C18 -> 0 | D18: 900000 | E18: ='INVOICE 14'!E18+'INVOICE 14'!H18 -> 333901 | F18: ='INVOICE 14'!F18+'INVOICE 14'!I18 -> 0 | G18: 333901 | H18: 0 | I18: 0 | J18: 0 | K18: 566099 | L18: 0 | M18: 566099 | N18: 2nd Advance [enter date]
A19: Equipment / Fixed Assets | B19: ='INVOICE 14'!B19 -> 0 | C19: ='INVOICE 14'!C19 -> 0 | D19: 0 | E19: ='INVOICE 14'!E19+'INVOICE 14'!H19 -> 0 | F19: ='INVOICE 14'!F19+'INVOICE 14'!I19 -> 0 | G19: 0 | H19: 0 | I19: 0 | J19: 0 | K19: 0 | L19: 0 | M19: 0 | N19: 0
A20: Data Collection | B20: ='INVOICE 14'!B20 -> 24000 | C20: ='INVOICE 14'!C20 -> 0 | D20: 24000 | E20: ='INVOICE 14'!E20+'INVOICE 14'!H20 -> 10000 | F20: ='INVOICE 14'!F20+'INVOICE 14'!I20 -> 0 | G20: 10000 | H20: 0 | I20: 0 | J20: 0 | K20: 14000 | L20: 0 | M20: 14000
A21: Project Evaluation | B21: ='INVOICE 14'!B21 -> 34000 | C21: ='INVOICE 14'!C21 -> 0 | D21: 34000 | E21: ='INVOICE 14'!E21+'INVOICE 14'!H21 -> 10000 | F21: ='INVOICE 14'!F21+'INVOICE 14'!I21 -> 0 | G21: 10000 | H21: 0 | I21: 0 | J21: 0 | K21: 24000 | L21: 0 | M21: 24000 | N21: 3rd Advance [enter date]
A22: Other | B22: ='INVOICE 14'!B22 -> 0 | C22: ='INVOICE 14'!C22 -> 804 | D22: =SUM(B22:C22) -> 804 | E22: ='INVOICE 14'!E22+'INVOICE 14'!H22 -> 0 | F22: ='INVOICE 14'!F22+'INVOICE 14'!I22 -> 275 | G22: 275 | H22: 0 | I22: 0 | J22: 0 | K22: 0 | L22: 529 | M22: 529 | N22: 0
A23: Indirect Costs | B23: ='INVOICE 14'!B23 -> 0 | C23: ='INVOICE 14'!C23 -> 0 | D23: 0 | E23: ='INVOICE 14'!E23+'INVOICE 14'!H23 -> 0 | F23: ='INVOICE 14'!F23+'INVOICE 14'!I23 -> 0 | G23: 0 | H23: 0 | I23: 0 | J23: 0 | K23: 0 | L23: 0 | M23: 0
A24: TOTAL | B24: =SUM(B15:B23) -> 1000000 | C24: =SUM(C15:C23) -> 252145 | D24: =SUM(D15:D23) -> 1252145 | E24: =SUM(E15:E23) -> 370189 | F24: 66407 | G24: 436596 | H24: 0 | I24: =SUM(I15:I23) -> 0 | J24: 0 | K24: 629811 | L24: 185738 | M24: 815549 | N24: =SUM(N16+N19+N22) -> 333333
A26: Project Income | C26: Income reported to date | D26: ='INVOICE 1'!D26+'INVOICE 15'!I26 -> 0 | F26: Prior allocated income | G26: 0 | H26: This Period | I26: 0 | L26: Unallocated income balance | M26: =D26-G26 -> 0
C28: Grant funds expended to date: | D28: =SUM(E24,H24) -> 370189 | G28: Grant funds claimed this period: | H28: =H24 -> 0 | M28: % total dispursed fund expended to date: | N28: =D28/N24 -> 1.110568111
C29: Match funds to date: | D29: =SUM(F24,I24) -> 66407 | G29: Advance disbursments balance: | H29: =N24-D28 -> -36856 | M29: % of Total Obligated Match to date: | N29: =D29/C24 -> 0.2633683
D33: Expenditure Descriptions - Units / $ Amounts | L33: Comments
A34: Salaries & Benefits | B34: Grant Funds | C34: =H15 -> 0
B35: Match | C35: =I15 -> 0
A36: Services & Supplies | B36: Grant Funds | C36: =H16 -> 0
B37: Match | C37: =I16 -> 0
A38: Professional Services | B38: Grant Funds | C38: =H17 -> 0
B39: Match | C39: =I17 -> 0
A40: NGO Subcontracts | B40: Grant Funds | C40: =H18 -> 0
B41: Match | C41: =I18 -> 0
A42: Equipment / Fixed Assets | B42: Grant Funds | C42: =H19 -> 0
B43: Match | C43: =I19 -> 0
A44: Data Collection | B44: Grant Funds | C44: =H20 -> 0
B45: Match | C45: =I20 -> 0
A46: Project Evaluation | B46: Grant Funds | C46: =H21 -> 0
B47: Match | C47: =I21 -> 0
A48: Other | B48: Grant Funds | C48: =H22 -> 0
B49: Match | C49: =I22 -> 0
A50: Indirect Costs | B50: Grant Funds | C50: =H23 -> 0
B51: Match | C51: =I23 -> 0
A52: Project Income | C52: =I26 -> 0
A53: PERSON PREPARING REPORT | E53: AUTHORIZED FINANCIAL OFFICER | L53: BSCC Supplier Data - Internal Use Only
E54: By checking the box below, I hereby certify that I am the authorized financial officer of the herein named agency. I further certify that I have not violated any of the provisions of Section 1090 of the Government Code in incurring the expenditures reported in this invoice, nor in any other way; that Sections 1090 through 1096 of the Government Code will not be violated in any way in the expenditure of funds pursuant to this invoice; that statement of funds above is true, correct, and in accordance with program provisions in all respects; and that all expenditures submitted after the expiration date of this contract are for the purpose of substantiating obligations legally incurred during the contract period. Furthermore, by submitting this invoice, I acknowledge that it must adhere to all of the requirements in the BSCC Grant Administration Guide, including any updates to the Guide during the term of the grant agreement.
L55: ='INVOICE 1'!L55:O55 -> 12081
A56: Name, Title | L56: Supplier ID
L57: ='INVOICE 1'!L57:O57 -> COUNTYOFSA-022
A58: Phone | L58: Supplier Name
L59: ='INVOICE 1'!L59:O59 -> 701 OCEAN ST RM 520
A60: Email | L60: Address Line 1
L61: ='INVOICE 1'!L61:O61 -> SANTA CRUZ CA 95060
A62: Date | L62: Address Line 2
E65: Name, Title
E67: Phone
E69: Date
A71: BSCC USE ONLY
A72: Date Received: | G72: Approved By:
I73: BSCC Field Representative

Sheet 3rd Advance Payment
A1: STATE OF CALIFORNIA | J1: Purchase Authority | L1: BSCC 5227
A2: BOARD OF STATE AND COMMUNITY CORRECTIONS | J2: Purchase Order: | L2: 2456
A3: Advance Payment Invoice: BSCC 201A (Revised 06/2020)
B6: Program: | C6: ='INVOICE 1'!B5 -> Youth Reinvestment Grant | H6: Grantee: | I6: ='INVOICE 1'!B7 -> Santa Cruz County
B8: Contract #: | C8: ='INVOICE 1'!B9 -> BSCC 591-19 | H8: Address | I8: ='2nd Advance Payment'!J8 -> 701 Ocean St. RM 520
J9: Address Line 1
B10: Term: | C10: ='INVOICE 1'!E9 -> 2019-07-01 | D10: TO | E10: ='INVOICE 1'!G9 -> 2023-02-28 | I10: ='2nd Advance Payment'!J10 -> Santa Cruz, CA 95060
J11: Address Line 2
B13: Advance Payment # | D13: 3 YRG 2019 | G13: Please Note: The California State Controller's Office will send all checks directly to the address listed in the "BSCC Vendor Data" section at the bottom of this invoice.
B15: Effective Invoice #
A18: Advance Payment Invoice
J19: Total Grant Award: | K19: ='1st Advance Payment'!K19:L19 -> 1000000
J20: Advance Total: | K20: 333334
J21: Grant Award Balance: | K21: ='1st Advance Payment'!K19:L19-'1st Advance Payment'!K20:L20-'2nd Advance Payment'!K20:L20-'3rd Advance Payment'!K20:L20 -> 0
B25: PERSON PREPARING REPORT | G25: AUTHORIZED FINANCIAL OFFICER
G26: I hereby certify that I am the authorized financial officer of the herein named agency. I further certify that I have not violated any of the provisions of Section 1090 of the Government Code in incurring the expenditures reported in this invoice, nor in any other way; that Sections 1090 through 1096 of the Government Code will not be violated in any way in the expenditure of funds pursuant to this invoice; that statement of funds above is true, correct, and in accordance with program provisions in all respects; and that all expenditures submitted after the expiration date of this contract are for the purpose of substantiating obligations legally incurred during the contract period. Furthermore, by submitting this invoice, I acknowledge that it must adhere to all of the requirements in the BSCC Grant Administration Guide, including any updates to the Guide during the term of the grant agreement.
B27: Name, Title
B29: Phone
B31: Email
B33: Date
G36: Name, Title
G38: Phone
G40: Email
G42: Date
G44: Signature
F48: BSCC USE ONLY
B50: Approved By: | J50: BSCC Supplier Data
C51: BSCC Field Representative | I51: ='2nd Advance Payment'!I51:K51 -> COUNTYOFSA-022
J52: Supplier Name
B53: Date: | I53: ='2nd Advance Payment'!I53:K53 -> 12081
J54: Supplier Number

Sheet MODIFICATION REQUEST
M1: STATE OF CALIFORNIA
A2: MODIFICATION REQUEST - (FORM BSCC 223.1 (Revised 04/20) | M2: BOARD OF STATE AND COMMUNITY CORRECTIONS
B5: Line-Item Change | F5: Budget Modification | J5: Project Income Allocation
B6: Check this box if you are modifying narrative details within a line item (or line items) but not changing the budget. | F6: Check this box if you are modifying line-item dollar amounts by moving funds from one line-item to another. | J6: Check this box if you are allocating earned project income.
A8: Important Note: You must provide a detailed justification for all modification requests. All modifications require BSCC Field Representative approval.
A10: Grantee: | B10: ='INVOICE 1'!B7 -> Santa Cruz County | I10: Grant Program: | J10: ='INVOICE 1'!B5 -> Youth Reinvestment Grant
A12: Address | I12: Lead Public Agency: | J12: ='INVOICE 1'!G7 -> N/A
A16: Contract #: | B16: ='INVOICE 1'!B9 -> BSCC 591-19 | J16: Modification Request # | K16: 2
A18: Term: | B18: ='INVOICE 1'!E9 -> 2019-07-01 | C18: ='INVOICE 1'!F9 -> TO | D18: ='INVOICE 1'!G9 -> 2023-02-28 | J18: Effective on Invoice #
A20: Line Items | B20: Current Budget | E20: Available Budget | H20: Changes (+/-) | K20: Modified Budget
B21: Grant Funds | C21: Match | D21: TOTAL | E21: Grant Funds | F21: Match | G21: TOTAL | H21: Grant Funds | I21: Match | J21: TOTAL | K21: Grant Funds | L21: Match | M21: TOTAL
A22: Salaries & Benefits | B22: ='INVOICE 1'!B15 -> 42000 | C22: ='INVOICE 1'!C15 -> 251224 | D22: =SUM(B22:C22) -> 293224 | E22: ='INVOICE 2'!K15 -> 37625 | F22: ='INVOICE 2'!L15 -> 233926 | G22: =SUM(E22:F22) -> 271551 | H22: 0 | I22: 0 | J22: =SUM(H22:I22) -> 0 | K22: =SUM(B22,H22) -> 42000 | L22: =SUM(C22,I22) -> 251224 | M22: =SUM(K22:L22) -> 293224
A23: Services & Supplies | B23: ='INVOICE 1'!B16 -> 0 | C23: ='INVOICE 1'!C16 -> 117 | D23: 117 | E23: ='INVOICE 2'!K16 -> 0 | F23: ='INVOICE 2'!L16 -> 117 | G23: 117 | H23: 0 | I23: 0 | J23: 0 | K23: 0 | L23: 117 | M23: 117
A24: Professional Services | B24: ='INVOICE 1'!B17 -> 0 | C24: ='INVOICE 1'!C17 -> 0 | D24: 0 | E24: ='INVOICE 2'!K17 -> 0 | F24: ='INVOICE 2'!L17 -> 0 | G24: 0 | H24: 0 | I24: 0 | J24: 0 | K24: 0 | L24: 0 | M24: 0
A25: NGO Subcontracts | B25: ='INVOICE 1'!B18 -> 900000 | C25: ='INVOICE 1'!C18 -> 0 | D25: 900000 | E25: ='INVOICE 2'!K18 -> 900000 | F25: ='INVOICE 2'!L18 -> 0 | G25: 900000 | H25: 0 | I25: 0 | J25: 0 | K25: 900000 | L25: 0 | M25: 900000
A26: Equipment / Fixed Assets | B26: ='INVOICE 1'!B19 -> 0 | C26: ='INVOICE 1'!C19 -> 0 | D26: 0 | E26: ='INVOICE 2'!K19 -> 0 | F26: ='INVOICE 2'!L19 -> 0 | G26: 0 | H26: 0 | I26: 0 | J26: 0 | K26: 0 | L26: 0 | M26: 0
A27: Data Collection | B27: ='INVOICE 1'!B20 -> 24000 | C27: ='INVOICE 1'!C20 -> 0 | D27: 24000 | E27: ='INVOICE 2'!K20 -> 24000 | F27: ='INVOICE 2'!L20 -> 0 | G27: 24000 | H27: 0 | I27: 0 | J27: 0 | K27: 24000 | L27: 0 | M27: 24000
A28: Project Evaluation | B28: ='INVOICE 1'!B21 -> 34000 | C28: ='INVOICE 1'!C21 -> 0 | D28: 34000 | E28: ='INVOICE 2'!K21 -> 34000 | F28: ='INVOICE 2'!L21 -> 0 | G28: 34000 | H28: 0 | I28: 0 | J28: 0 | K28: 34000 | L28: 0 | M28: 34000
A29: Other | B29: ='INVOICE 1'!B22 -> 0 | C29: ='INVOICE 1'!C22 -> 804 | D29: 804 | E29: ='INVOICE 2'!K22 -> 0 | F29: ='INVOICE 2'!L22 -> 529 | G29: 529 | H29: 0 | I29: 0 | J29: 0 | K29: 0 | L29: 804 | M29: 804
A30: Indirect Costs | B30: ='INVOICE 1'!B23 -> 0 | C30: ='INVOICE 1'!C23 -> 0 | D30: 0 | E30: ='INVOICE 2'!K23 -> 0 | F30: ='INVOICE 2'!L23 -> 0 | G30: 0 | H30: 0 | I30: 0 | J30: 0 | K30: 0 | L30: 0 | M30: 0
A31: TOTAL | B31: =SUM(B22:B30) -> 1000000 | C31: 252145 | D31: 1252145 | E31: 995625 | F31: 234572 | G31: 1230197 | H31: 0 | I31: 0 | J31: 0 | K31: 1000000 | L31: 252145 | M31: 1252145
A33: Project Income | C33: Income reported to date | D33: 0 | F33: Prior allocated income | G33: 0 | H33: Allocating | I33: 0 | L33: Unallocated income balance | M33: =D33-I33 -> 0
A35: JUSTIFICATION FOR MODIFICATION:
A55: PERSON PREPARING REPORT | I55: AUTHORIZED FINANCIAL OFFICER
I56: I hereby certify that I am the authorized financial officer of the herein named agency. I further certify that I have not violated any of the provisions of Section 1090 of the Government Code in incurring the expenditures reported in this invoice, nor in any other way; that Sections 1090 through 1096 of the Government Code will not be violated in any way in the expenditure of funds pursuant to this invoice; that statement of funds above is true, correct, and in accordance with program provisions in all respects; and that all expenditures submitted after the expiration date of this contract are for the purpose of substantiating obligations legally incurred during the contract period. Furthermore, by submitting this invoice, I acknowledge that it must adhere to all of the requirements in the BSCC Grant Administration Guide, including any updates to the Guide during the term of the grant agreement.
A58: Name, Title
A60: Phone
A62: Email
A64: Date
I67: Name, Title
I69: Phone
I71: Date
A73: BSCC USE ONLY
A74: Date Received: | H74: Approved By: | L74: Date:
I75: BSCC Field Representative

Sheet Project Budget
A2: Youth Reinvestment Grant - Project Budget and Budget Narrative
A3: Name of County or City: | D3: County of Santa Cruz
A4: Program Term: July 1, 2019 - February 28, 2023
A5: Budget Line Item | F5: Grant Funds | G5: Match Funds | H5: Total
A6: 1. Salaries and Benefits | F6: =F32 -> 42000 | G6: =G32 -> 251224 | H6: =H32 -> 293224
A7: 2. Services and Supplies | F7: =F67 -> 0 | G7: =G67 -> 117 | H7: =H67 -> 117
A8: 3. Professional Services | F8: =F96 -> 0 | G8: =G96 -> 0 | H8: =H96 -> 0
A9: 4. Non-Governmental Organization (NGO) Subcontracts | F9: =F131 -> 900000 | G9: =G131 -> 0 | H9: =H131 -> 900000
A10: 5. Equipment/Fixed Assets | F10: =F162 -> 0 | G10: =G162 -> 0 | H10: =H162 -> 0
A11: 6. Data Collection | F11: =F190 -> 24000 | G11: =G190 -> 0 | H11: =H190 -> 24000
A12: 7. Project Evaluation | F12: =F223 -> 34000 | G12: =G223 -> 0 | H12: =H223 -> 34000
A13: 8. Other (Travel, Training, etc.) | F13: =F258 -> 0 | G13: =G258 -> 804 | H13: =H258 -> 804
A14: 9. Indirect Costs | F14: =F283 -> 0 | G14: =G283 -> 0 | H14: =H283 -> 0
A15: TOTAL | F15: =SUM(F6:F14) -> 1000000 | G15: =SUM(G6:G14) -> 252145 | H15: =SUM(F15:G15) -> 1252145
A16: Required match: | B16: 10%: no less than: | C16: =F15*10% -> 100000 | D16: 25%: no less than: | E16: =F15*25% -> 250000
A18: 1. Salaries and Benefits
A19: Name and Title | C19: (% FTE or Hourly Rate) & Benefits | F19: Grant Funds | G19: Match Funds | H19: Total
A20: Rob Doty, Juvenile Division Director (Project Manager) | C20: Year 1: 10% FTE @ $132,306 x 1 year = $13,231 + .1 benefits @ $65,954 = $6,595 = $19,826; Year 2: 10% FTE @ $142,748 x 1/yr =$14,275 + benefits @ 10% : $7,501 = $21,776 (Yrs 2-4 at increased cost of FTE @ $142,748) Year 4: Sal & Bens at 8 mos/yr = x .6667. | F20: 0 | G20: 77895 | H20: =SUM(F20:G20) -> 77895
A21: Miguel Ramirez, Deputy Probation Officer II (Program Lead) | C21: Year 1: 20% FTE @ $73,744 x 1 year = $14,749 + .2 benefits @ $49,368 = $9,874 = $14,774; Year 2&3: 20% FTE @$77,865 x 1 yr =$15,573 + 20% benefits=$10,816 = $15,833; Year 4: 20% FTE @ $77,865 x .6667 year = $10,382 + benefits @ 20%: $54,079 = $7,211 = $12,315 | F21: 36239 | G21: 58755 | H21: 94994
A22: Diane Culcasi, Departmental Systems Analyst (Data Collection & Analysis) | C22: 10% FTE @ $112,875 x 1 year = $11,288 + .1 benefits @ $49,770 = $4,977 = $14,639; | F22: 5761 | G22: 56482 | H22: 62243
A23: Melissa Allen, Administrative Services Manager (Fiscal Manager) | C23: Year 1: 2.5% FTE @ $128,876 x 1 year = $3,222 + .06 benefits @ $55,034 = $1,376 = $4,598; Year 2: 7% FTE @ $136,391 x 1 year = $9,547 + .07 benefits @ $67,050 = $4,694 = $14,241; Year 3: 7.5% FTE @ $136,391 x 1 year = $10,229 + .075 benefits @ $67,050 = $5,029 = $15,258; Year 4: 9% FTE @ $136,391 x .6667 year = $8,183 + .09 benefits @ $67,050 = $4,023 = $12,206 | F23: 0 | G23: 46303 | H23: 46303
A24: Sven Stafford, CAO Senior Administrative Analyst (Applicant/Grantee Project Manager) | C24: Years 1-3: 2% FTE @ $101,400 x 1 year = $2,028 + .02 benefits @ $59,371 = $1,187 = $3,215; Year 4 @ 8 mos = x 0.667. | F24: 0 | G24: 11789 | H24: 11789
H25: 0
H26: 0
H27: 0
H28: 0
H29: 0
H30: 0
F31: 36239 | G31: 136650 | H31: 172889
A32: TOTAL | F32: =SUM(F22:F31) -> 42000 | G32: =SUM(G22:G31) -> 251224 | H32: 293224
A34: Salaries and Benefits
A35: The Probation Department Juvenile Division Director, serving as the Project Manager, will provide coordination of the "Community Reclaiming Youth Justice" project activities with oversight for YRG grant compliance. This includes coordination and oversight of project implementation, the justice referral system, and data collection and evaluation. He will facilitate collaboration with the NGOs, Watsonville Police Department, County District Attorney's office, and other justice partners as needed. He will oversee program compliance with the grant guidelines and work to ensure that the program is using approaches that are evidence-based, culturally relevant, trauma-informed and developmentally appropriate. He will work closely with the Probation Officer and NGO administering the program to provide the locally needed youth services and ensure the goals of the grant are achieved. The lead Deputy Probation Officer assigned to manage the grant program for the Probation Department will be directly involved in administering the services and related operations. He will help review and evaluate the probation cases who may be served through this program and work with the NGOs and local justice agencies to provide referrals for youth on our caseloads. He will also work with the project team to help accomplish the reduction of racial and ethnic disparities in the local youth justice system. This position will help the team to implement a responsive continuum of interventions in the justice system and work toward addressing mental health, behavioral health and educational issues. The County Departmental Systems Analyst will be responsible for technical data extraction from internal systems, data analysis in concert with project partners, and distribution to the external evaluator. The Administrative Services Manager will serve as the project Fiscal Manager and will oversee the grant financials and reporting requirements for the Probation Department. Representing the County Administrative Office as the Applicant/Grantee, the Senior Administrative Analyst will work with the Probation Department to administer the Youth Reinvestment Grant project and to oversee grant compliance and adherence to award requirements.
A58: 2. Services and Supplies
A59: Description of Services or Supplies | C59: Calculation for Expenditure | F59: Grant Funds | G59: Match Funds | H59: Total
A60: Office Supplies | C60: Minimal allocation for basic office supplies to implement program over 4 yrs. Years 1-3 @ $30/yr and Yr 4 @ $27/yr. | F60: 0 | G60: 117 | H60: =SUM(F60:G60) -> 117
H61: 0
H62: 0
H63: 0
H64: 0
H65: 0
H66: 0
A67: TOTAL | F67: =SUM(F60:F66) -> 0 | G67: =SUM(G60:G66) -> 117 | H67: 117
A69: Services and Supplies Narrative:
A70: Minimal allocation for basic office supplies needed for Lead Agency to implement program referrals, oversight and coordination of services.
A84: 3. Professional Services
A85: Description of Professional Service(s) | C85: Calculation for Expenditure | F85: Grant Funds | G85: Match Funds | H85: Total
A86: N/A | F86: 0 | G86: 0 | H86: =SUM(F86:G86) -> 0
H87: 0
H88: 0
H89: 0
H90: 0
H91: 0
H92: 0
H93: 0
H94: 0
H95: 0
A96: TOTAL | F96: =SUM(F86:F95) -> 0 | G96: =SUM(G86:G95) -> 0 | H96: 0
A98: Professional Services Narrative
A99: N/A
A120: 4. Non-Governmental Organizations (NGO) Subcontracts
A121: Description of Subcontract | C121: Calculation for Expenditure | F121: Grant Funds | G121: Match Funds | H121: Total
A122: PVPSA - Program Diversion Coordinator | C122: 0.54 FTE @ $60,373 x 1 year = $32,601 + benefits @ 35% = $11,410. FTE total cost increases 3% yearly w/4.4 % inc in Year 4. | F122: 168531 | G122: 0 | H122: =SUM(F122:G122) -> 168531
A123: PVPSA - Case Manager 1 | C123: .50 FTE @ $42,507 x 1 year = $21,254 + benefites @ 35% = $7,439, w/annual increase after yr 1 | F123: 109587 | G123: 0 | H123: 109587
A124: PVPSA - Case Manager 2 | C124: .50 FTE @ $42,507 x 1 year = $21,254 + benefites @ 35% = $7,439, w/annual increase after yr 1 | F124: 109587 | G124: 0 | H124: 109587
A125: PVPSA - Mental Health Clinician | C125: 1.00 FTE @ $52,436 x 1 year = $52,436 + benefits @ 35% = $18,353, w/annual increase after yr 1 | F125: 270369 | G125: 0 | H125: 270369
A126: PVPSA - Mileage | C126: 25 miles per week x 52 weeks x 2.00 FTE x $.535 per mile = $1,391 | F126: 5564 | G126: 0 | H126: 5564
A127: PVPSA - Facilities | C127: 3.00 FTE x 150 sq. ft. x $1.75 cost per sq. ft. x 12 months = $9,450 | F127: 37800 | G127: 0 | H127: 37800
A128: PVPSA - Cell Phone for Coordinator | C128: $30 per month x 12 months = $360 | F128: 1440 | G128: 0 | H128: 1440
A129: PVPSA - Indirect | C129: PVPSA - Indirect costs will be charged as 10% of total direct salaries and wages | F129: 47122 | G129: 0 | H129: 47122
A130: Other CBO(s) - Other Wrap Services | C130: Specifics TBD | F130: 150000 | G130: 0 | H130: 150000
A131: TOTALS | F131: =SUM(F122:F130) -> 900000 | G131: =SUM(G122:G130) -> 0 | H131: 900000
A133: Non-Governmental Organizations (NGO) Subcontracts Narrative
A134: The coordinated locus of the referral process will be overseen by Pajaro Valley Prevention and Student Assistance (PVPSA), a non-governmental organization (NGO). Criteria and referral processes will be collaboratively enhanced and or developed by PVPSA and a system of stakeholders actively partnering in this project. A responsive continuum of interventions will be enhanced and or developed to allow for predictable adolescent missteps and setbacks. Interventions will range from warn and release to evidence-based modalities that are trauma informed, culturally and developmentally responsive and address mental health, behavioral health and educational issues. PVPSA will focus on the case management, mental health and behavioral health services. Educational services, employment services and other services determined as needed through program assessments after year 1 will be provided by other CBO(s). Opportunities for pro-social activities will be key. Program integrity will be ensured by the consistent collection of quantitative and qualitative data and by the Program Diversion Coordinator. Opportunities for pro-social activities will be key. Program integrity will be ensured by the consistent collection of quantitative and qualitative data and by the Program Diversion Coordinator.
A155: 5. Equipment/Fixed Assets
A156: Description of Equipment/Fixed Asset | C156: Calculation for Expense | F156: Grant Funds | G156: Match Funds | H156: Total
A157: N/A | F157: 0 | G157: 0 | H157: =SUM(F157:G157) -> 0
H158: 0
H159: 0
H160: 0
H161: 0
A162: TOTALS | F162: =SUM(F157:F161) -> 0 | G162: =SUM(G157:G161) -> 0 | H162: 0
A164: Equipment/Fixed Assets Narrative
A165: N/A
A184: 6. Data Collection
A185: Description | F185: Grant Funds | G185: Match Funds | H185: Total
A186: Applied Survey Research (ASR) | F186: 24000 | G186: 0 | H186: =SUM(F186:G186) -> 24000
H187: =SUM(F187:G187) -> 0
H188: =SUM(F188:G188) -> 0
H189: =SUM(F189:G189) -> 0
A190: TOTAL | F190: =SUM(F186:F189) -> 24000 | G190: =SUM(G186:G189) -> 0 | H190: =SUM(F190:G190) -> 24000
A192: Data Collection
A193: Applied Survey Research will develop, provide and support a local evaluation plan, provide technical assistance to Probation, CBO(s) and other project partners to ensure consistency in data collection, and help provide summaries of key data points and findings for ongoing monitoring and continuous improvements. ASR will also develop a final report which may be shared with the community. The County Departmental Systems Analyst will be responsible for technical data extraction from internal systems, data analysis in concert with project partners, and distribution to the external evaluator.
A217: 7. Project Evaluation
A218: Description | F218: Grant Funds | G218: Match Funds | H218: Total
A219: Applied Survey Research (ASR) | F219: 34000 | G219: 0 | H219: =SUM(F219:G219) -> 34000
H220: =SUM(F220:G220) -> 0
H221: =SUM(F221:G221) -> 0
H222: =SUM(F222:G222) -> 0
A223: TOTAL | F223: =SUM(F219:F222) -> 34000 | G223: =SUM(G219:G222) -> 0 | H223: =SUM(F223:G223) -> 34000
A225: Project Evaluation Narrative:
A226: Applied Survey Research will support project management by developing and providing an annual evaluation report based on collected data from the current and prior year with a final evaluation in year 4 based on all of the grant years, attend partner meetings and provide technical assistance to Probation, the CBO(s) and other program partners, and provide summaries of key data points and findings for ongoing monitoring and continuous improvements.
A250: 8. Other (Travel, Training, etc.)
A251: Description | C251: Calculation for Expense | F251: Grant Funds | G251: Match Funds | H251: Total
F252: 0 | G252: 804 | H252: =SUM(F252:G252) -> 804
H253: 0
H254: 0
H255: 0
H256: 0
H257: 0
A258: TOTAL | F258: =SUM(F252:F257) -> 0 | G258: =SUM(G252:G257) -> 804 | H258: 804
A260: Other (Travel, Training, etc.) Narrative:
A261: Year 1: Allocation for staff to attend 1-2 meeting(s) in Sacramento from Santa Cruz in Years 1 and 2 @ $0.58/mile and 144 mi ea way = 288 mi x $0.58/mi = $167 x 2 vehs = $334 + lunch per diem at $17 ea x 4 staff = $68 = $402 total each year.
A279: 9. Indirect Costs
A280: Indirect costs may be charged by choosing only one of options 1) or 2) listed below. | F280: Grant Funds | G280: Match Funds | H280: Total
A281: 1. Indirect costs will be charged as 10% of total direct salaries and wages, not to exceed: | E281: =SUM(G32)*10% -> 25122.4 | F281: 0 | G281: 0 | H281: =SUM(F281:G281) -> 0
A282: 2. Indirect costs will be charged as 5% of direct total direct project costs (excluding equipment) not to exceed: | E282: =SUM(G258,G223,G190,G131,G96,G67,G32)*5% -> 12607.25 | F282: 0 | G282: 0 | H282: =SUM(F282:G282) -> 0
A283: If the amount entered turns red, adjust it to not exceed the maximum noted above: TOTAL | F283: =SUM(F281:F282) -> 0 | G283: =SUM(G281:G282) -> 0 | H283: =SUM(H281:H282) -> 0
A285: Indirect Costs Narrative:

Sheet INVOICE DUE DATES
A1: Invoice # | B1: Reporting Period | C1: Due Date
A2: Invoice 1 | B2: July 1, 2019 to September 30, 2019 | C2: 2019-11-14
A3: Invoice 2 | B3: October 1, 2019 to December 31, 2019 | C3: 2020-02-14
A4: Invoice 3 | B4: January 1, 2020 to March 31, 2020 | C4: 2020-05-15
A5: Invoice 4 | B5: April 1, 2020 to June 30, 2020 | C5: 2020-08-14
A6: Invoice 5 | B6: July 1, 2020 to September 30, 2020 | C6: 2020-11-16
A7: Invoice 6 | B7: October 1, 2020 to December 31, 2020 | C7: 2021-02-15
A8: Invoice 7 | B8: January 1, 2021 to March 31, 2021 | C8: 2021-05-17
A9: Invoice 8 | B9: April 1, 2021 to June 30, 2021 | C9: 2021-08-16
A10: Invoice 9 | B10: July 1, 2021 to September 30, 2021 | C10: 2021-11-15
A11: Invoice 10 | B11: October 1, 2021 to December 31, 2021 | C11: 2022-02-14
A12: Invoice 11 | B12: January 1, 2022 to March 31, 2022 | C12: 2022-05-16
A13: Invoice 12 | B13: April 1, 2022 to June 30, 2022 | C13: 2022-08-15
A14: Invoice 13 | B14: July 1, 2022 to September 30, 2022 | C14: 2022-11-14
A15: Invoice 14 | B15: October 1, 2022 to December 31, 2022 | C15: 2023-02-14
A16: Invoice 15 | B16: January 1, 2023 to February 28, 2023 | C16: 2023-04-14

Sheet INSTRUCTIONS
A1: Invoice Workbook
A3: How to Locate the Invoice Workbook
A4: Invoice workbooks are located on the Board of State and Community Corrections (BSCC) website under the Corrections Planning and Grant Programs Division (CPGP) webpage: http://www.bscc.ca.gov/s_correctionsplanningandprograms/.
A6: On the CPGP webpage, locate the CPGP Quick Links and select Grantee Invoicing.
A8: Invoice Workbooks are located under the respective grantee program (e.g., California Violence Intervention and Prevention, Edward Byrne Memorial Justice Assistance Grant, Law Enforcement Assisted Diversion, Proposition 47, etc.).
A10: How to Save the Invoice Workbook
A11: Right click on the file and select Save Link as. This will navigate the grantee to their computer files. The grantee shall navigate to a folder where they would like to save their Invoice Workbook. Do not rename the file.
A13: The grantee should then exit the web browser and work directly from the saved file.
A15: Prior to each reporting period, it is the grantee’s responsibility to download and save the Invoice Workbook to their local computer. This will ensure the most current budget information is being used in the Invoice Workbook.
A17: Forms Included in the Invoice Workbook
A18: The Invoice Workbook is an Excel file arranged by worksheet tabs (located along the bottom). The tabs included in the Invoice workbook are listed below:
A19:  Invoice (Form BSCC 201) for each reporting period;
A20:  Advance Payment (Form BSCC 201) for each of three advance disbursements;
A21:  Modification Request (Form BSCC 223.1 Rev 4/20);
A22:  Project Budget Narrative
A23:  Invoice Due Dates
A24:  Instructions.
A26: Passwords and Formulas in the Invoice Workbook
A27: Each time the grantee opens the Invoice workbook, they will be prompted to enter a password. The password is the grant agreement number (e.g. 990-19, include the -, do not include BSCC).
A29: The Invoice Workbook has specific functions which require macros to be enabled. A macro is a series of commands, such as calculations, that are stored within the document for tasks performed repeatedly. In most cases, Excel will prompt the grantee to enable macros. When this prompt appears, select Enable Editing then Enable Content. Enabling macros for the Invoice Workbook will not compromise the security of the local system nor the security of the agency's network.
A32: Financial Invoice - Form BSCC 201
A34: How to Complete a Financial Invoice
A35: Each Financial Invoice has a separate workbook tab titled, INVOICE #. The Financial Invoice will allow grantees to enter data into the green-shaded fields; all other fields are locked.
A37: The following instructions are for the green-shaded fields the Invoice to be completed by the Grantee.
A39: THIS REPORTING PERIOD
A40: The grantee shall enter the line item expenditures and match contributions incurred during the reporting period.
A41: All expenditures should be rounded to the nearest whole dollar; do not enter decimals.
A42: If an amount entered into a cell is greater than the available balance, an Invalid Dollar error message will appear. If the error is typographical, select Retry and enter the correct amount. If the amount entered is correct, however greater than the available balance, select Cancel and submit a Budget Modification. See, Budget Modification details below.
A44: EXPENDITURE DESCRIPTION
A45: For each dollar amount entered as an expenditure, enter a brief but detailed description. Your expenditures should correlate to Project Budget Narrative, which is listed on its own tab along with approved modification requests.
A47: PERSON PREPARING REPORT
A48: The grantee will designate an individual to prepare invoices. The Authorized Financial Officer cannot prepare invoices.
A49: The individual who prepares invoices will provide their contact information and the date the invoice was prepared under the PERSON PREPARING REPORT section. Then, forward the Invoice Workbook to the Authorized Financial Officer for review and approval.
A51: AUTHORIZED FINANCIAL OFFICER
A52: The Authorized Financial Officer is the Financial Officer listed in the Grant Agreement, STD 213 and/or Grantee Contact Information Sheet, Form 227.
A53: The Authorized Financial Officer cannot be the Project Director or the individual preparing the invoice.
A54: The Authorized Financial Officer must review each line item expenditure and description. Then, approve the invoice by checking the certification box and providing their contact information and the date of approval.
A55: Once the invoice is approved, the Authorized Financial Officer shall email the Invoice Workbook to the any grant inbox: anygrant@bscc.ca.gov. The Authorized Financial Officer is the only authorized party to submit an Invoice Workbook to the BSCC.
A56: Approved Financial Invoice
A57: Once BSCC staff reviews and approves the Financial Invoice, an updated Invoice Workbook will be available on the BSCC website. All approved Financial Invoices will be locked from editing but will be viewable in the Invoice Workbook.
A59: Advance Payment Invoice – Form 201A
A61: How to Complete the Advance Payment Invoice
A62: Each Advance Payment Invoice has a separate workbook tab titled, # ADVANCE PAYMENT. The Advance Payment Invoice will allow grantees to enter data into the green shaded fields; all other fields are locked.
A63: To complete the Advance Payment form, grantees must complete the following:
A64:  Idenitfy the effective invoice
A65:  Idenitfy the person preparing the report
A66:  Complete the information and signature for the Authorized Financial Officer.
A67: Advance Disbursement Details
A68: Grantees will receive three advance payments throughout the life of the grant agreement. Each advance payment will be one-third of the total grant award.
A69: Eight percent of the total advance disbursement must be expended prior to requesting the next advance payment.
A70: Approved Advance Payment Invoice
A71: Once BSCC staff reviews and approves the Advance Payment Invoice, the updated Invoice Workbook will be emailed to the Authorized Financial Officer and the individual that prepared the report. All approved Advance Payment Invoices will be locked from editing but will be viewable in the Invoice Workbook.
A73: Modification Request - Form BSCC 223.1
A75: Modification Request Requirements
A76: It is the grantees responsibility to receive prior approval from the Field Representative for modifications to the budget or budget narrative. Once the Field Representative approves a modification to the budget or budget narrative, the grantee may complete and submit a Modification Request.
A77: The Modification Request Form allows the grantee to:  Make a change within a line-item change that modifies the grant project narrative, but does not change the total dollar amount of the line item.  Modify the budget by moving funds from one line item to another; or  Allocate earned project income
A79: The grantee must allow a minimum of 10 working days, for the modification form to be submitted and approved by the BSCC prior to completing the next invoice.
A81: How to Complete a Modification Request
A82: Grantees can access the Modification Request form by selecting the tab titled, MODIFICATION REQUEST. For the Modification Request form, grantees can enter data into the yellow-shaded fields; all other fields are locked. First, the grantee must select the purpose of the modification by checking the appropriate box in the yellow section at the top of the form.
A84: The following instructions are for the yellow-shaded fields in the Modification Request to be completed by the Grantee.
A86: Modification Request # and Effective on Invoice #
A87: The grantee shall identify the budget modification number by selecting the next number in sequential order (1 if it's the first) and then identify on which invoice the modification becomes effective.
A89: CHANGES (+/-) and JUSTIFICATION FOR MODIFIED BUDGET
A90: Line-item changes - Complete only the JUSTIFICATION FOR MODIFICATION section below the budget table. The justification must: list the affected line-item(s), detail how the original budget narrative has changed, and explain why the change is necessary. Line-item changes do not change the budget $$. Budget modifications - complete the CHANGES (+/-) section by using a + (plus symbol) followed by a whole dollar amount in the line item that is increasing and using a - (minus symbol) followed by a whole dollar amount in the line item that is decreasing. The TOTAL line must show zeros. In addition, complete the JUSTIFICATION FOR MODIFICATION section. The justification must: list the affected line-item(s), detail how the original budget narrative has changed, and explain why the change is necessary Project Income Allocation - use the Grant Funds column in the CHANGES (+/-) to show how the income will be allocated across line-items. In the Total Allocating box on the Project Income line copy the amount shown in the TOTAL line of Grant Funds column. In addition, complete the JUSTIFICATION FOR MODIFICATION section. The justification must: list the affected line-item(s) and provide narrative detail about how the project income will be used to advance program objectives. (See Grant Administration Guide, Section 13, Project and Other Income)
A92: PERSON PREPARING REPORT
A93: The grantee will designate an individual to prepare Modification Requests. The Authorized Financial Officer cannot prepare Modification Requests.
A94: The individual who prepares the request will provide their contact information and the date the modification was prepared under the PERSON PREPARING REPORT section. Then, forward the Invoice Workbook to the Authorized Financial Officer for review and approval.
A96: AUTHORIZED FINANCIAL OFFICER
A97: The Authorized Financial Officer is the Financial Officer listed in the Grant Agreement, STD 213 and/or Grantee Contact Information Sheet, Form 227.
A98: The Authorized Financial Officer cannot be the Project Director or the individual preparing the modification request.
A99: The Authorized Financial Officer must review each line item change, narrative change and justifications. Then, approve the modification request by checking the certification box and providing their contact information and the date of approval.
A100: Once the modification request is approved, the Authorized Financial Officer shall email the Invoice Workbook to the any grant inbox: anygrant@bscc.ca.gov. The Authorized Financial Officer is the only authorized party to submit it an Invoice Workbook to the BSCC.
A102: Approved Modification Request
A103: Once BSCC staff reviews and approves the Modification Request, the updated Invoice Workbook will be emailed to the Authorized Financial Officer and the individual who prepared the re quest. All approved modifications will be locked from editing but will be viewable in the Invoice Workbook.
